Workbook

Sheet OLD PAPI_24- 27 (Delib. 246) (hidden)
A1: ID Ação | B1: Ação iniciou no PA/PI anterior? | C1: Se sim, id da ação anterior | D1: Ano previsto para início | E1: Tipo de ação | F1: É ou será empreendimento FEHIDRO? | G1: Ação requer recursos financeiros? | H1: SubPDC | I1: Prioridade do SubPDC | J1: Ação | K1: Meta | L1: % Execução da meta do quadriênio | M1: Segmento do executor | N1: Área de abrangência | O1: Nome da área de abrangência | P1: Recurso financeiro estimado no ano (R$) - Cobrança Estadual | Q1: Recurso financeiro estimado no ano (R$) - CFURH | R1: Recurso financeiro estimado no ano (R$) - Cobrança Federal | S1: Recurso financeiro estimado no ano (R$) - Outras | T1: Especificar Fonte - "Outras" | U1: Recurso financeiro estimado no ano (R$) | V1: Recurso financeiro disponibilizado no ano (R$) | W1: Recurso financeiro executado no ano (R$) | X1: Justificativa sobre execução física e financeira
A2: SID012024 | B2: Não | D2: 2024 | F2: Sim | H2: 3.1 - Efluentes | I2: Não prioritário | J2: Efetuar estudos de detalhe sobre a disponibilidade hídrica superficial e subterrânea (AG.11) | K2: MG.4 - Realizar ao menos 01 estudo que subsidie o planejamento e a gestão de recursos hídricos na UGRHi 18 | N2: Sub-bacia | O2: Sub-bacia crítica conforme classe de vazão de referência apontadas no Relatório de Situação | U2: =IF(SUM(PAPI20_22_23[[#This Row],[Recurso financeiro estimado no ano (R$) - Cobrança Estadual]:[Recurso financeiro estimado no ano (R$) - Outras]]) >0,SUM(PAPI20_22_23[[#This Row],[Recurso financeiro estimado no ano (R$) - Cobrança Estadual]:[Recurso financeiro estimado no ano (R$) - Outras]]),"") -> 
A3: SID012025 | D3: 2024 | J3: Manter o cadastro atualizado na bacia hidrográfica SJD (AG.13) | K3: MG.4 - Realizar ao menos 01 estudo para acompanhamento e adequação da cobrança pelo uso dos recursos hídricos | M3: Estado | N3: UGRHi | O3: UGRHi 18 | P3: 170000 | U3: =IF(SUM(PAPI20_22_23[[#This Row],[Recurso financeiro estimado no ano (R$) - Cobrança Estadual]:[Recurso financeiro estimado no ano (R$) - Outras]]) >0,SUM(PAPI20_22_23[[#This Row],[Recurso financeiro estimado no ano (R$) - Cobrança Estadual]:[Recurso financeiro estimado no ano (R$) - Outras]]),"") -> 170000
A4: SID012024 | J4: Execução de obras de sistemas de esgotamento sanitário, bem como de tratamento de efluentes provenientes de ETE (AI.3, 4, 5 e 6) | K4: MI. 2 e 3 - Efetuar melhorias nos sistemas de tratamento de esgoto em ao menos 02 municípios | M4: Município | N4: Município | O4: Municípios da UGRHi 18 que apresentem proporção de redução da carga orgânica poluidora domestica ≤ 80%. | P4: 260000 | U4: =IF(SUM(PAPI20_22_23[[#This Row],[Recurso financeiro estimado no ano (R$) - Cobrança Estadual]:[Recurso financeiro estimado no ano (R$) - Outras]]) >0,SUM(PAPI20_22_23[[#This Row],[Recurso financeiro estimado no ano (R$) - Cobrança Estadual]:[Recurso financeiro estimado no ano (R$) - Outras]]),"") -> 260000
A5: SID042022 | J5: Execução de obras e projetos (AI 8 e 9) nos casos em que haja comprometimento dos recursos hídricos | K5: MI.4 - Efetuar melhorias nos sistemas de aterros sanitários em ao menos 02 municípios | M5: Município | N5: Município | O5: Municípios com sistema de tratamento e coleta de resíduos sólidos ineficientes, conforme consta no Rel. Situação. | P5: 250000 | U5: =IF(SUM(PAPI20_22_23[[#This Row],[Recurso financeiro estimado no ano (R$) - Cobrança Estadual]:[Recurso financeiro estimado no ano (R$) - Outras]]) >0,SUM(PAPI20_22_23[[#This Row],[Recurso financeiro estimado no ano (R$) - Cobrança Estadual]:[Recurso financeiro estimado no ano (R$) - Outras]]),"") -> 250000
A6: SID052022 | J6: Execução de obras ou projetos que controle a erosão do solo ou assoreamento dos corpos d’água, em áreas urbanas ou rurais (AI. 14, 15 e 16) | K6: MI. 6 e MI. 7 - Aprimorar sistemas de conservação do solo e controle de erosão em ao menos 03 municípios | M6: Município | N6: Município | O6: Municípios com Plano de Drenagem ou Plano Diretor de Erosão elaborado | Q6: 288866.7 | U6: =IF(SUM(PAPI20_22_23[[#This Row],[Recurso financeiro estimado no ano (R$) - Cobrança Estadual]:[Recurso financeiro estimado no ano (R$) - Outras]]) >0,SUM(PAPI20_22_23[[#This Row],[Recurso financeiro estimado no ano (R$) - Cobrança Estadual]:[Recurso financeiro estimado no ano (R$) - Outras]]),"") -> 288866.7
A7: SID062022 | J7: Implementação das açoes indicadas no Plano de Saneamento (AI.11 e 12) (troca de hidrômetros, manutenção de rede, instalação de válvulas redutoras de pressão, entre outros) | K7: MI.5 - Reduzir perdas em sistemas de abastecimento de água em ao menos 02 municípios | M7: Município | N7: Município | O7: Ilha Solteira, Santa Fé do Sul, Suzanápolis, São João de Iracema e Neves Paulista | P7: 170000 | U7: =IF(SUM(PAPI20_22_23[[#This Row],[Recurso financeiro estimado no ano (R$) - Cobrança Estadual]:[Recurso financeiro estimado no ano (R$) - Outras]]) >0,SUM(PAPI20_22_23[[#This Row],[Recurso financeiro estimado no ano (R$) - Cobrança Estadual]:[Recurso financeiro estimado no ano (R$) - Outras]]),"") -> 170000
A8: SID072022 | J8: Execução de obras ou projetos de galerias de águas pluviais e canalização de curso d'água em área urbana e periurbana (AI.17, AI. 21, 22 e 23 ) | K8: MI. 7 e MI. 9 - Realizar melhorias nos sistemas de drenagem em ao menos 02 municípios | M8: Município | N8: Município | O8: Obras indicadas no Plano/Estudo de Drenagem no Município e para Projetos com necessidades de readequação/ampliação | Q8: 200000 | U8: =IF(SUM(PAPI20_22_23[[#This Row],[Recurso financeiro estimado no ano (R$) - Cobrança Estadual]:[Recurso financeiro estimado no ano (R$) - Outras]]) >0,SUM(PAPI20_22_23[[#This Row],[Recurso financeiro estimado no ano (R$) - Cobrança Estadual]:[Recurso financeiro estimado no ano (R$) - Outras]]),"") -> 200000
A9: SID082022 | J9: Orientação aos produtores rurais quanto à importância da outorga e treinamento/capacitação sobre os procedimentos de outorga e licenciamento ambiental (AG.25) | K9: MG.9. Realizar ao menos 1 curso de capacitação técnica relacionada ao planejamento e gestão de recursos hídricos | N9: UGRHi | O9: UGRHi 18 | P9: 150000 | U9: =IF(SUM(PAPI20_22_23[[#This Row],[Recurso financeiro estimado no ano (R$) - Cobrança Estadual]:[Recurso financeiro estimado no ano (R$) - Outras]]) >0,SUM(PAPI20_22_23[[#This Row],[Recurso financeiro estimado no ano (R$) - Cobrança Estadual]:[Recurso financeiro estimado no ano (R$) - Outras]]),"") -> 150000 | V9: 150000 | W9: 0 | X9: empreendimento não iniciado - emitiu o contrato
A10: SID012023 | J10: Realizar estudo/diagnóstico ambiental das nascentes, por sub-bacia, na UGRHI | K10: Aumentar as informações afim de subsidiar o planejamento e a gestão dos recursos hídricos na UGRHI | M10: DIVERSOS | N10: UGRHi | O10: UGRHi 18 | P10: 200197.43 | U10: =IF(SUM(PAPI20_22_23[[#This Row],[Recurso financeiro estimado no ano (R$) - Cobrança Estadual]:[Recurso financeiro estimado no ano (R$) - Outras]]) >0,SUM(PAPI20_22_23[[#This Row],[Recurso financeiro estimado no ano (R$) - Cobrança Estadual]:[Recurso financeiro estimado no ano (R$) - Outras]]),"") -> 200197.43
A11: SID022023 | J11: Elaborar mapa de feições erosivas da UGRHI | K11: Aumentar as informações afim de subsidiar o planejamento e a gestão dos recursos hídricos na UGRHI | M11: DIVERSOS | N11: UGRHi | O11: UGRHi 18 | Q11: 280000 | U11: =IF(SUM(PAPI20_22_23[[#This Row],[Recurso financeiro estimado no ano (R$) - Cobrança Estadual]:[Recurso financeiro estimado no ano (R$) - Outras]]) >0,SUM(PAPI20_22_23[[#This Row],[Recurso financeiro estimado no ano (R$) - Cobrança Estadual]:[Recurso financeiro estimado no ano (R$) - Outras]]),"") -> 280000
A12: SID032022 | J12: Elaboração do Plano diretor de controle de perdas | K12: Aumentar as informações afim de subsidiar o planejamento e a gestão dos recursos hídricos na UGRHI | M12: Município | N12: Município | O12: Ilha Solteira, Neves Paulista, São João de Iracema e Santa Fé do Sul. | P12: 170000 | U12: =IF(SUM(PAPI20_22_23[[#This Row],[Recurso financeiro estimado no ano (R$) - Cobrança Estadual]:[Recurso financeiro estimado no ano (R$) - Outras]]) >0,SUM(PAPI20_22_23[[#This Row],[Recurso financeiro estimado no ano (R$) - Cobrança Estadual]:[Recurso financeiro estimado no ano (R$) - Outras]]),"") -> 170000
A13: SID042023 | J13: Elaborar estudos para o controle de processos erosivos e projetos (básicos e/ou executivos), serviços ou obras para prevenção, prioritariamente em bacias de abastecimento, nascentes e áreas de recarga (troca de hidrômetros, manutenção de rede, instalação de válvulas redutoras de pressão, entre outros) | K13: Prevenir e controlar processos de erosão e assoreamento, visando a melhoria ou recuperação dos corpos d’água | M13: Município | N13: Município | O13: Floreal, General Salgado, Ilha Solteira, Jales, Monte Aprazível, Neves Paulista, Nhandeara, Palmeira d´oeste, Santa Fé do Sul, Sebastianópolis do Sul, Cosmorama, Monte Aprazível, Poloni, Santa Salete, Santana da Ponte Pensa, São Francisco, Tanabi, Três Fronteiras e Votuporanga | P13: 400000 | Q13: 300000 | U13: =IF(SUM(PAPI20_22_23[[#This Row],[Recurso financeiro estimado no ano (R$) - Cobrança Estadual]:[Recurso financeiro estimado no ano (R$) - Outras]]) >0,SUM(PAPI20_22_23[[#This Row],[Recurso financeiro estimado no ano (R$) - Cobrança Estadual]:[Recurso financeiro estimado no ano (R$) - Outras]]),"") -> 700000
A14: SID052023 | J14: Elaborar Projetos (básicos e/ou executivos), obras ou serviços em sistemas de abastecimento, visando controle e redução de perdas de água | K14: Alcance de uma média de 25% de perdas globais nos municípios da Bacia | M14: Município | N14: Município | O14: Ilha Solteira, Suzanápolis, Santa Fé do Sul, Neves Paulista e São João de Iracema. | P14: 300000 | U14: =IF(SUM(PAPI20_22_23[[#This Row],[Recurso financeiro estimado no ano (R$) - Cobrança Estadual]:[Recurso financeiro estimado no ano (R$) - Outras]]) >0,SUM(PAPI20_22_23[[#This Row],[Recurso financeiro estimado no ano (R$) - Cobrança Estadual]:[Recurso financeiro estimado no ano (R$) - Outras]]),"") -> 300000
A15: SID092023 | J15: Aquisição de equipamentos para operacionalização de sistemas de alerta, radares meteorológicos ou redes telemétricas integrados a sistemas de suporte à decisão; divulgação de informações e apoio à defesa civil (AG. 24) | K15: MG. 8 - Estruturar 01 Sala de Situação visando o Monitoramento de eventos extremos e sistemas de suporte a decisão | N15: Sub-bacia | O15: UGRHi 18 | P15: 400000 | U15: =IF(SUM(PAPI20_22_23[[#This Row],[Recurso financeiro estimado no ano (R$) - Cobrança Estadual]:[Recurso financeiro estimado no ano (R$) - Outras]]) >0,SUM(PAPI20_22_23[[#This Row],[Recurso financeiro estimado no ano (R$) - Cobrança Estadual]:[Recurso financeiro estimado no ano (R$) - Outras]]),"") -> 400000 | V15: 851322.1 | W15: 0 | X15: adiantamos a indicação da ação prevista para 2023 - empreendimento cancelado
A16: SID07023 | J16: Elaborar projetos (básicos e/ou executivos), serviços, obras em municípios com sistema de coleta e disposição final de resíduos sólidos ineficientes e/ou inadequadas; e implantar pontos de entrega voluntária (PEV), e programas de coleta seletiva | K16: Aumentar a cobertura da coleta de resíduos sólidos em áreas urbanas e rurais dos municípios | M16: Município | N16: Município | O16: Município | P16: 308323.15 | U16: =IF(SUM(PAPI20_22_23[[#This Row],[Recurso financeiro estimado no ano (R$) - Cobrança Estadual]:[Recurso financeiro estimado no ano (R$) - Outras]]) >0,SUM(PAPI20_22_23[[#This Row],[Recurso financeiro estimado no ano (R$) - Cobrança Estadual]:[Recurso financeiro estimado no ano (R$) - Outras]]),"") -> 308323.15
A17: SID08023 | J17: Elaborar projetos (básicos e/ou executivos), executar obras ou serviços em sistemas de abastecimento, visando propor soluções alternativas e a ampliação da rede de distribuição, das demais estruturas de apoio ao abastecimento | K17: Aproveitamento dos recursos hídricos e segurança hídrica | M17: Município | N17: Município | O17: Município | P17: 179324.92 | U17: =IF(SUM(PAPI20_22_23[[#This Row],[Recurso financeiro estimado no ano (R$) - Cobrança Estadual]:[Recurso financeiro estimado no ano (R$) - Outras]]) >0,SUM(PAPI20_22_23[[#This Row],[Recurso financeiro estimado no ano (R$) - Cobrança Estadual]:[Recurso financeiro estimado no ano (R$) - Outras]]),"") -> 179324.92
A18: SID06023 | J18: Elaborar projetos (básicos e/ou executivos), serviços ou obras para contenção de inundações, alagamentos, inclusive por técnicas de infiltração e armazenamento; e regularizações de descargas e dispositivos de lançamento de drenagem | K18: Contenção de inundações, alagamentos e regularizações de descargas na UGRHI | M18: Município | N18: Município | O18: Município | Q18: 1113141.65 | U18: =IF(SUM(PAPI20_22_23[[#This Row],[Recurso financeiro estimado no ano (R$) - Cobrança Estadual]:[Recurso financeiro estimado no ano (R$) - Outras]]) >0,SUM(PAPI20_22_23[[#This Row],[Recurso financeiro estimado no ano (R$) - Cobrança Estadual]:[Recurso financeiro estimado no ano (R$) - Outras]]),"") -> 1113141.65
U19: =IF(SUM(PAPI20_22_23[[#This Row],[Recurso financeiro estimado no ano (R$) - Cobrança Estadual]:[Recurso financeiro estimado no ano (R$) - Outras]]) >0,SUM(PAPI20_22_23[[#This Row],[Recurso financeiro estimado no ano (R$) - Cobrança Estadual]:[Recurso financeiro estimado no ano (R$) - Outras]]),"") -> 
U20: =IF(SUM(PAPI20_22_23[[#This Row],[Recurso financeiro estimado no ano (R$) - Cobrança Estadual]:[Recurso financeiro estimado no ano (R$) - Outras]]) >0,SUM(PAPI20_22_23[[#This Row],[Recurso financeiro estimado no ano (R$) - Cobrança Estadual]:[Recurso financeiro estimado no ano (R$) - Outras]]),"") -> 
U21: =IF(SUM(PAPI20_22_23[[#This Row],[Recurso financeiro estimado no ano (R$) - Cobrança Estadual]:[Recurso financeiro estimado no ano (R$) - Outras]]) >0,SUM(PAPI20_22_23[[#This Row],[Recurso financeiro estimado no ano (R$) - Cobrança Estadual]:[Recurso financeiro estimado no ano (R$) - Outras]]),"") -> 
U22: =IF(SUM(PAPI20_22_23[[#This Row],[Recurso financeiro estimado no ano (R$) - Cobrança Estadual]:[Recurso financeiro estimado no ano (R$) - Outras]]) >0,SUM(PAPI20_22_23[[#This Row],[Recurso financeiro estimado no ano (R$) - Cobrança Estadual]:[Recurso financeiro estimado no ano (R$) - Outras]]),"") -> 
U23: =IF(SUM(PAPI20_22_23[[#This Row],[Recurso financeiro estimado no ano (R$) - Cobrança Estadual]:[Recurso financeiro estimado no ano (R$) - Outras]]) >0,SUM(PAPI20_22_23[[#This Row],[Recurso financeiro estimado no ano (R$) - Cobrança Estadual]:[Recurso financeiro estimado no ano (R$) - Outras]]),"") -> 
U24: =IF(SUM(PAPI20_22_23[[#This Row],[Recurso financeiro estimado no ano (R$) - Cobrança Estadual]:[Recurso financeiro estimado no ano (R$) - Outras]]) >0,SUM(PAPI20_22_23[[#This Row],[Recurso financeiro estimado no ano (R$) - Cobrança Estadual]:[Recurso financeiro estimado no ano (R$) - Outras]]),"") -> 
U25: =IF(SUM(PAPI20_22_23[[#This Row],[Recurso financeiro estimado no ano (R$) - Cobrança Estadual]:[Recurso financeiro estimado no ano (R$) - Outras]]) >0,SUM(PAPI20_22_23[[#This Row],[Recurso financeiro estimado no ano (R$) - Cobrança Estadual]:[Recurso financeiro estimado no ano (R$) - Outras]]),"") -> 
U26: =IF(SUM(PAPI20_22_23[[#This Row],[Recurso financeiro estimado no ano (R$) - Cobrança Estadual]:[Recurso financeiro estimado no ano (R$) - Outras]]) >0,SUM(PAPI20_22_23[[#This Row],[Recurso financeiro estimado no ano (R$) - Cobrança Estadual]:[Recurso financeiro estimado no ano (R$) - Outras]]),"") -> 
U27: =IF(SUM(PAPI20_22_23[[#This Row],[Recurso financeiro estimado no ano (R$) - Cobrança Estadual]:[Recurso financeiro estimado no ano (R$) - Outras]]) >0,SUM(PAPI20_22_23[[#This Row],[Recurso financeiro estimado no ano (R$) - Cobrança Estadual]:[Recurso financeiro estimado no ano (R$) - Outras]]),"") -> 
U28: =IF(SUM(PAPI20_22_23[[#This Row],[Recurso financeiro estimado no ano (R$) - Cobrança Estadual]:[Recurso financeiro estimado no ano (R$) - Outras]]) >0,SUM(PAPI20_22_23[[#This Row],[Recurso financeiro estimado no ano (R$) - Cobrança Estadual]:[Recurso financeiro estimado no ano (R$) - Outras]]),"") -> 
U29: =IF(SUM(PAPI20_22_23[[#This Row],[Recurso financeiro estimado no ano (R$) - Cobrança Estadual]:[Recurso financeiro estimado no ano (R$) - Outras]]) >0,SUM(PAPI20_22_23[[#This Row],[Recurso financeiro estimado no ano (R$) - Cobrança Estadual]:[Recurso financeiro estimado no ano (R$) - Outras]]),"") -> 
U30: =IF(SUM(PAPI20_22_23[[#This Row],[Recurso financeiro estimado no ano (R$) - Cobrança Estadual]:[Recurso financeiro estimado no ano (R$) - Outras]]) >0,SUM(PAPI20_22_23[[#This Row],[Recurso financeiro estimado no ano (R$) - Cobrança Estadual]:[Recurso financeiro estimado no ano (R$) - Outras]]),"") -> 
U31: =IF(SUM(PAPI20_22_23[[#This Row],[Recurso financeiro estimado no ano (R$) - Cobrança Estadual]:[Recurso financeiro estimado no ano (R$) - Outras]]) >0,SUM(PAPI20_22_23[[#This Row],[Recurso financeiro estimado no ano (R$) - Cobrança Estadual]:[Recurso financeiro estimado no ano (R$) - Outras]]),"") -> 
U32: =IF(SUM(PAPI20_22_23[[#This Row],[Recurso financeiro estimado no ano (R$) - Cobrança Estadual]:[Recurso financeiro estimado no ano (R$) - Outras]]) >0,SUM(PAPI20_22_23[[#This Row],[Recurso financeiro estimado no ano (R$) - Cobrança Estadual]:[Recurso financeiro estimado no ano (R$) - Outras]]),"") -> 
U33: =IF(SUM(PAPI20_22_23[[#This Row],[Recurso financeiro estimado no ano (R$) - Cobrança Estadual]:[Recurso financeiro estimado no ano (R$) - Outras]]) >0,SUM(PAPI20_22_23[[#This Row],[Recurso financeiro estimado no ano (R$) - Cobrança Estadual]:[Recurso financeiro estimado no ano (R$) - Outras]]),"") -> 
U34: =IF(SUM(PAPI20_22_23[[#This Row],[Recurso financeiro estimado no ano (R$) - Cobrança Estadual]:[Recurso financeiro estimado no ano (R$) - Outras]]) >0,SUM(PAPI20_22_23[[#This Row],[Recurso financeiro estimado no ano (R$) - Cobrança Estadual]:[Recurso financeiro estimado no ano (R$) - Outras]]),"") -> 
U35: =IF(SUM(PAPI20_22_23[[#This Row],[Recurso financeiro estimado no ano (R$) - Cobrança Estadual]:[Recurso financeiro estimado no ano (R$) - Outras]]) >0,SUM(PAPI20_22_23[[#This Row],[Recurso financeiro estimado no ano (R$) - Cobrança Estadual]:[Recurso financeiro estimado no ano (R$) - Outras]]),"") -> 
U36: =IF(SUM(PAPI20_22_23[[#This Row],[Recurso financeiro estimado no ano (R$) - Cobrança Estadual]:[Recurso financeiro estimado no ano (R$) - Outras]]) >0,SUM(PAPI20_22_23[[#This Row],[Recurso financeiro estimado no ano (R$) - Cobrança Estadual]:[Recurso financeiro estimado no ano (R$) - Outras]]),"") -> 
U37: =IF(SUM(PAPI20_22_23[[#This Row],[Recurso financeiro estimado no ano (R$) - Cobrança Estadual]:[Recurso financeiro estimado no ano (R$) - Outras]]) >0,SUM(PAPI20_22_23[[#This Row],[Recurso financeiro estimado no ano (R$) - Cobrança Estadual]:[Recurso financeiro estimado no ano (R$) - Outras]]),"") -> 
U38: =IF(SUM(PAPI20_22_23[[#This Row],[Recurso financeiro estimado no ano (R$) - Cobrança Estadual]:[Recurso financeiro estimado no ano (R$) - Outras]]) >0,SUM(PAPI20_22_23[[#This Row],[Recurso financeiro estimado no ano (R$) - Cobrança Estadual]:[Recurso financeiro estimado no ano (R$) - Outras]]),"") -> 
U39: =IF(SUM(PAPI20_22_23[[#This Row],[Recurso financeiro estimado no ano (R$) - Cobrança Estadual]:[Recurso financeiro estimado no ano (R$) - Outras]]) >0,SUM(PAPI20_22_23[[#This Row],[Recurso financeiro estimado no ano (R$) - Cobrança Estadual]:[Recurso financeiro estimado no ano (R$) - Outras]]),"") -> 
U40: =IF(SUM(PAPI20_22_23[[#This Row],[Recurso financeiro estimado no ano (R$) - Cobrança Estadual]:[Recurso financeiro estimado no ano (R$) - Outras]]) >0,SUM(PAPI20_22_23[[#This Row],[Recurso financeiro estimado no ano (R$) - Cobrança Estadual]:[Recurso financeiro estimado no ano (R$) - Outras]]),"") -> 
U41: =IF(SUM(PAPI20_22_23[[#This Row],[Recurso financeiro estimado no ano (R$) - Cobrança Estadual]:[Recurso financeiro estimado no ano (R$) - Outras]]) >0,SUM(PAPI20_22_23[[#This Row],[Recurso financeiro estimado no ano (R$) - Cobrança Estadual]:[Recurso financeiro estimado no ano (R$) - Outras]]),"") -> 
U42: =IF(SUM(PAPI20_22_23[[#This Row],[Recurso financeiro estimado no ano (R$) - Cobrança Estadual]:[Recurso financeiro estimado no ano (R$) - Outras]]) >0,SUM(PAPI20_22_23[[#This Row],[Recurso financeiro estimado no ano (R$) - Cobrança Estadual]:[Recurso financeiro estimado no ano (R$) - Outras]]),"") -> 
U43: =IF(SUM(PAPI20_22_23[[#This Row],[Recurso financeiro estimado no ano (R$) - Cobrança Estadual]:[Recurso financeiro estimado no ano (R$) - Outras]]) >0,SUM(PAPI20_22_23[[#This Row],[Recurso financeiro estimado no ano (R$) - Cobrança Estadual]:[Recurso financeiro estimado no ano (R$) - Outras]]),"") -> 
U44: =IF(SUM(PAPI20_22_23[[#This Row],[Recurso financeiro estimado no ano (R$) - Cobrança Estadual]:[Recurso financeiro estimado no ano (R$) - Outras]]) >0,SUM(PAPI20_22_23[[#This Row],[Recurso financeiro estimado no ano (R$) - Cobrança Estadual]:[Recurso financeiro estimado no ano (R$) - Outras]]),"") -> 
U45: =IF(SUM(PAPI20_22_23[[#This Row],[Recurso financeiro estimado no ano (R$) - Cobrança Estadual]:[Recurso financeiro estimado no ano (R$) - Outras]]) >0,SUM(PAPI20_22_23[[#This Row],[Recurso financeiro estimado no ano (R$) - Cobrança Estadual]:[Recurso financeiro estimado no ano (R$) - Outras]]),"") -> 
U46: =IF(SUM(PAPI20_22_23[[#This Row],[Recurso financeiro estimado no ano (R$) - Cobrança Estadual]:[Recurso financeiro estimado no ano (R$) - Outras]]) >0,SUM(PAPI20_22_23[[#This Row],[Recurso financeiro estimado no ano (R$) - Cobrança Estadual]:[Recurso financeiro estimado no ano (R$) - Outras]]),"") -> 
U47: =IF(SUM(PAPI20_22_23[[#This Row],[Recurso financeiro estimado no ano (R$) - Cobrança Estadual]:[Recurso financeiro estimado no ano (R$) - Outras]]) >0,SUM(PAPI20_22_23[[#This Row],[Recurso financeiro estimado no ano (R$) - Cobrança Estadual]:[Recurso financeiro estimado no ano (R$) - Outras]]),"") -> 
U48: =IF(SUM(PAPI20_22_23[[#This Row],[Recurso financeiro estimado no ano (R$) - Cobrança Estadual]:[Recurso financeiro estimado no ano (R$) - Outras]]) >0,SUM(PAPI20_22_23[[#This Row],[Recurso financeiro estimado no ano (R$) - Cobrança Estadual]:[Recurso financeiro estimado no ano (R$) - Outras]]),"") -> 
U49: =IF(SUM(PAPI20_22_23[[#This Row],[Recurso financeiro estimado no ano (R$) - Cobrança Estadual]:[Recurso financeiro estimado no ano (R$) - Outras]]) >0,SUM(PAPI20_22_23[[#This Row],[Recurso financeiro estimado no ano (R$) - Cobrança Estadual]:[Recurso financeiro estimado no ano (R$) - Outras]]),"") -> 
U50: =IF(SUM(PAPI20_22_23[[#This Row],[Recurso financeiro estimado no ano (R$) - Cobrança Estadual]:[Recurso financeiro estimado no ano (R$) - Outras]]) >0,SUM(PAPI20_22_23[[#This Row],[Recurso financeiro estimado no ano (R$) - Cobrança Estadual]:[Recurso financeiro estimado no ano (R$) - Outras]]),"") -> 

Sheet Identificação das ações 24-27
A1: ID Ação | B1: Descrição da ação | C1: SubPDC | D1: Prioridade do PDC | E1: É (ou será) empreendimento FEHIDRO? | F1: Requer recursos financeiros? | G1: Quantidade de fontes de recursos | H1: Segmento do executor | I1: Área de abrangência | J1: Detalhamento da área de abrangência | K1: Início estimado da ação | L1: Fim estimado | M1: Observações
A2: RB012024 | B2: Revisão/atualização de Plano com pelo menos 15 anos de existência | C2: 1.2 - Planejamento | D2: PDC 1 e 2 | E2: Sim | F2: Sim | G2: 1 | H2: Sociedade Civil | I2: UGRHI | J2: Municípios
A3: RB022024 | B3: Desenvolver projetos executivos de microdrenagem para os municípios da UGRHI 11 | C3: 1.2 - Planejamento | D3: PDC 1 e 2 | E3: Não | F3: Sim | G3: 1 | H3: Município | I3: UGRHI | J3: Municípios
A4: RB032024 | B4: Elaborar ou Revisar os Planos Municipais de Resíduos Sólidos | C4: 1.2 - Planejamento | D4: PDC 1 e 2 | E4: Sim | F4: Sim | G4: 1 | H4: Sociedade Civil | I4: UGRHI | J4: Municípios
A5: RB042024 | B5: Revisao do mapeamento das áreas de risco e do Plano Municipal de Defesa Civil, realizado há mais de 5 anos, com indicaçoes de ações estruturais e não estruturais | C5: 1.2 - Planejamento | D5: PDC 1 e 2 | E5: Sim | F5: Sim | G5: 1 | H5: Sociedade Civil | I5: UGRHI | J5: Municípios
A6: RB052024 | B6: Articular os espaços educativos via site e ações presenciais | C6: 1.2 - Planejamento | D6: PDC 1 e 2 | E6: Não | F6: Não | H6: Estado | I6: UGRHI | J6: Municípios
A7: RB062024 | B7: Manutenção, ampliação de funcionalidades do SIG-RB, com atualização de base de dados e informaçoes (repositório) | C7: 1.2 - Planejamento | D7: PDC 1 e 2 | E7: Sim | F7: Sim | G7: 1 | H7: Sociedade Civil | I7: Outra
A8: RB072024 | B8: Desenvolver base metodológica e elaborar estudos para definição de indicadores de sazonalidade turística. (CBH-BS) | C8: 1.2 - Planejamento | D8: PDC 1 e 2 | E8: Sim | F8: Não | H8: Estado | I8: Região Hidrográfica | J8: Vertente Litorânea
A9: RB082024 | B9: Realizar estudo sobre a atividade de mineração de areia no Vale do Ribeira | C9: 1.2 - Planejamento | D9: PDC 1 e 2 | E9: Não | F9: Sim | G9: 1 | H9: Estado | I9: Sub-bacia | J9: Médio e Baixo Ribeira, Juquiá e Jacupiranga
A10: RB092024 | B10: Elaborar diagnóstico da situação da Pesca profissional e amadora nos rios do Vale, considerando os aspectos positivos e negativos | C10: 1.2 - Planejamento | D10: PDC 1 e 2 | E10: Não | F10: Sim | G10: 1 | H10: Estado | I10: UGRHI
A11: RB102024 | B11: Estudar a criação de um fundo permanente de pagamento por serviços ambientais, com recursos vindos de compensações ambientais, cobrança pelo uso da água, transposição de águas e outras fontes | C11: 1.2 - Planejamento | D11: PDC 1 e 2 | E11: Não | F11: Não | H11: Estado | I11: UGRHI
A12: RB112024 | B12: Realização de estudos tecnicos para caracterização socioambiental da Bacia do Rio Jacupiranga | C12: 1.2 - Planejamento | D12: PDC 1 e 2 | E12: Sim | F12: Sim | G12: 1 | H12: Sociedade Civil | I12: Sub-bacia | J12: Bacia do Rio Jacupiranga
A13: RB122024 | B13: Promover o levantamento e a discussão das normativas relacionadas a viabilização de sistemas alternativos de captação e tratamento de esgoto | C13: 1.2 - Planejamento | D13: PDC 1 e 2 | E13: Sim | F13: Não | H13: Estado | I13: Região Hidrográfica | J13: Vertente Litorânea
A14: RB132024 | B14: Elaboração do Relatório de Situação de 2025 e elaboração/atualização do Plano de Bacia com horizonte de planejamento de 12 anos | C14: 2.1 - Plano | D14: PDC 1 e 2 | E14: Sim | F14: Sim | G14: 1 | H14: Sociedade Civil | I14: UGRHI
A15: RB142024 | B15: Instalação de novos pontos de monitoramento de qualidade das águas superficiais | C15: 2.5 - Redes de monitoramento e SI | D15: PDC 1 e 2 | E15: Não | F15: Não | H15: Estado | I15: UGRHI
A16: RB152024 | B16: Dar continuidade ao Projeto de Fortalecimento, Articulação e Integração dos CBHs da Vertente Litorânea (CBH-LN) | C16: 2.6 - Integração | D16: PDC 1 e 2 | E16: Sim | F16: Não | H16: Estado | I16: Região Hidrográfica | J16: Vertente Litorânea
A17: RB162024 | B17: Contratação e execução de obras de saneamento básico na área rural e urbanizada | C17: 3.1 - Efluentes | D17: Prioritário | E17: Sim | F17: Sim | G17: 1 | H17: Município | I17: UGRHI
A18: RB172024 | B18: Implantar, ampliar ou manter ações de melhoria de gestão de resíduos sólidos, com ênfase na coleta seletiva | C18: 3.3 - Resíduos | D18: Prioritário | E18: Sim | F18: Sim | G18: 1 | H18: Município | I18: UGRHI
A19: RB182024 | B19: Executar obra de Combate a erosão de cursos d'água | C19: 4.1 - Controle erosão | D19: Prioritário | E19: Sim | F19: Sim | G19: 1 | H19: Município | I19: UGRHI
A20: RB192024 | B20: Execução de obra de combate a erosão e/ou desassoreamento de cursos d'água | C20: 4.1 - Controle erosão | D20: Prioritário | E20: Não | F20: Sim | G20: 1 | H20: Município | I20: UGRHI
A21: RB202024 | B21: Implantar 1 projeto de Pagamento por Serviços Ambientais (PSA) | C21: 4.2 - Soluções baseadas Natureza | D21: Prioritário | E21: Sim | F21: Sim | G21: 1 | H21: Município | I21: Município
A22: RB212024 | B22: Fomentar a produção agroecológica e orgânica (02 projetos) | C22: 4.2 - Soluções baseadas Natureza | D22: Prioritário | E22: Não | F22: Sim | G22: 1 | H22: Sociedade Civil | I22: UGRHI
A23: RB222024 | B23: Recuperar as APPs conforme diretrizes dos órgãos competentes | C23: 4.2 - Soluções baseadas Natureza | D23: Prioritário | E23: Sim | F23: Sim | G23: 1 | H23: Sociedade Civil | I23: UGRHI
A24: RB232024 | B24: Execução de serviços e obras para contenção de inundações ou alagamentos | C24: 7.1 - Drenagem | D24: Prioritário | E24: Sim | F24: Sim | G24: 1 | H24: Município | I24: UGRHI
A25: RB242024 | B25: Realizar capacitação sobre objetivos e atribuições do comitê e ferramentas de gestão dos recursos hídricos | C25: 8.1 - Capacitação | D25: Não prioritário | E25: Não | F25: Não | H25: Estado | I25: UGRHI
A26: RB252024 | B26: Realizar capacitação sobre gestão de águas para instituições com representação no CBH-RB, instituições parceiras, organizações da sociedade civil, comunidades rurais e jovens. | C26: 8.1 - Capacitação | D26: Prioritário | E26: Sim | F26: Sim | G26: 1 | H26: Estado | I26: UGRHI
A27: RB262024 | B27: Realizar ações de educação ambiental (sensibilização e mobilização social) nos temas diversos. Via projetos Fehidro | C27: 8.2 - Educação | D27: Não prioritário | E27: Sim | F27: Sim | G27: 1 | H27: Sociedade Civil | I27: UGRHI
A28: RB272024 | B28: Realizar a Semana da água do Vale do Ribeira | C28: 8.2 - Educação | D28: Não prioritário | E28: Sim | F28: Não | H28: Estado | I28: UGRHI
A29: RB282024 | B29: Apoiar realização do Diálogo Interbacias de Educação Ambiental em Recursos Hídricos | C29: 8.2 - Educação | D29: Não prioritário | E29: Sim | F29: Não | H29: Estado | I29: UGRHI
A30: RB292024 | B30: Realizar evento, na forma de seminário, para disseminar planos e programas municipais de educação ambiental | C30: 8.2 - Educação | D30: Não prioritário | E30: Sim | F30: Não | H30: Estado | I30: UGRHI
A31: RB302024 | B31: Reproduzir material de apoio (kit água) para e de apoio a eventos de educação ambiental | C31: 8.2 - Educação | D31: Prioritário | E31: Sim | F31: Sim | G31: 1 | H31: Sociedade Civil | I31: UGRHI
A32: RB312024 | B32: Adequar e equipar 1 centro de Educação Ambiental | C32: 8.2 - Educação | D32: Prioritário | E32: Sim | F32: Sim | G32: 1 | H32: Sociedade Civil | I32: UGRHI
A33: RB322024 | B33: Execução de 2 projetos bienais de elaboração de releases, boletins informativos e operação das ferramentas de comunicação | C33: 8.3 - Comunicação | D33: Prioritário | E33: Sim | F33: Sim | G33: 1 | H33: Sociedade Civil | I33: UGRHI
A34: RB332025 | B34: Realização de manutenção operacional nos postos de monitoramento fluviométrico e pluviométrico existentes e atualização do sistema de informação | C34: 2.5 - Redes de monitoramento e SI | D34: PDC 1 e 2 | E34: Sim | F34: Sim | G34: 1 | H34: Estado | I34: UGRHI
A35: RB342025 | B35: Fomentar a produção agroecológica e orgânica (01 projeto) | C35: 4.2 - Soluções baseadas Natureza | D35: Prioritário | E35: Sim | F35: Sim | G35: 1 | H35: Sociedade Civil | I35: UGRHI
A36: RB352025 | B36: Capacitar os membros do CBH e CTs sobre conceitos, práticas e experiências em PSA | C36: 8.1 - Capacitação | D36: Prioritário | E36: Sim | F36: Sim | G36: 1 | H36: Sociedade Civil | I36: UGRHI
A37: RB362025 | B37: Produzir série didática de vídeos com materiais educativos e informativos sobre educação ambiental e recursos hídricos, com identidade local, para população leiga, em linguagem acessível e lúdica ( 1 temática a cada 2 anos) | C37: 8.2 - Educação | D37: Prioritário | E37: Sim | F37: Sim | G37: 1 | H37: Sociedade Civil | I37: UGRHI
A38: RB372025 | B38: Oficinas de capacitação em recursos hídricos para educadores com sinergia ao currículo paulista | C38: 8.2 - Educação | D38: Prioritário | E38: Sim | F38: Sim | G38: 1 | H38: Sociedade Civil | I38: UGRHI
A39: RB382026 | B39: Instalação de uma sala com equipamentos de informática e multimídia, para o funcionamento da CT-APRM-AJSL | C39: 2.7 - CORHI | D39: PDC 1 e 2 | E39: Não | F39: Sim | G39: 1 | H39: Município | I39: Sub-bacia | J39: Alto Juquiá e São Lourenço
A40: RB392026 | B40: Divulgação na mídia regional e palestras de conscientização/orientação aos produtores rurais sobre o uso adequado de agrotóxicos e o manejo e recolhimento das embalagens de agrotóxico | C40: 8.2 - Educação | D40: Não prioritário | E40: Sim | F40: Sim | G40: 1 | H40: Sociedade Civil | I40: UGRHI
A41: RB402027 | B41: Realizar o diagnóstico da situação atual dos corpos de água da UGRHI 11 | C41: 2.4 - Enquadramento | D41: PDC 1 e 2 | E41: Sim | F41: Sim | G41: 1 | H41: Estado | I41: SUB-BACIA | J41: Rio Jacupiranga

Sheet Acompanhamento das metas 24-27
A1: ID | B1: Descrição da ação | C1: Meta do quadriênio | D1: Meta 2024 | E1: % de execução física da meta (2024) | F1: Meta 2025 | G1: % de execução física da meta (2025) | H1: Meta 2026 | I1: % de execução física da meta (2026) | J1: Meta 2027 | K1: % de execução física da meta (2027) | L1: Observações
A2: =IF(INDEX(IdentAcoes[],,1)=0,"",(INDEX(IdentAcoes[],,1))) -> RB012024 | B2: =IF(INDEX(IdentAcoes[],,4)=0,"",(INDEX(IdentAcoes[],,2))) -> Revisão/atualização de Plano com pelo menos 15 anos de existência | C2: Revisão/atualização de 9 Planos de Macrodrenagem até 2027 | D2: Contratação de 1 projeto abrangendo 2 municípios, no valor máximo de R$ 300.000,00 | F2: Contratação de 1 projeto abrangendo 3 municípios, no valor máximo de R$ 500.000,00 | H2: Contratação de 1 projeto abrangendo 2 municípios, no valor máximo de R$ 400.000,00 | J2: Contratação de 1 projeto abrangendo 2 municípios, no valor máximo de R$ 450.000,00
A3: RB022024 | B3: Desenvolver projetos executivos de microdrenagem para os municípios da UGRHI 11 | C3: Elaborar 8 projetos de microdrenagem até 2027 | D3: Execução de 1 projeto abrangendo 2 municípios, no valor estimado de R$ 300.000,00 | F3: Execução de 1 projeto abrangendo 2 municípios, no valor estimado de R$ 350.000,00 | H3: Execução de 1 projeto abrangendo 2 municípios, no valor estimado de R$ 400.000,00 | J3: Execução de 1 projeto abrangendo 2 municípios, no valor estimado de R$ 450.000,00
A4: RB032024 | B4: Elaborar ou Revisar os Planos Municipais de Resíduos Sólidos | C4: Elaborar e implantar 8 Planos Municipais de Resíduos Sólidos até 2027 | D4: Contratação de 1 projeto abrangendo 2 municípios, no valor máximo de R$ 300.000,00 | F4: Contratação de 1 projeto abrangendo 2 municípios, no valor máximo de R$ 350.000,00 | H4: Contratação de 1 projeto abrangendo 2 municípios, no valor máximo de R$ 400.000,00 | J4: Contratação de 1 projeto abrangendo 2 municípios, no valor máximo de R$ 450.000,00
A5: RB042024 | B5: Revisao do mapeamento das áreas de risco e do Plano Municipal de Defesa Civil, realizado há mais de 5 anos, com indicaçoes de ações estruturais e não estruturais | C5: Revisão/atualização de 12 Planos Municipais de Defesa Civil até 2027 | D5: Contratação de 1 projeto abrangendo 3 municípios, no valor máximo de R$ 350.000,00 | F5: Contratação de 1 projeto abrangendo 3 municípios, no valor máximo de R$ 375.000,00 | H5: Contratação de 1 projeto abrangendo 3 municípios, no valor máximo de R$ 400.000,00 | J5: Contratação de 1 projeto abrangendo 3 municípios, no valor máximo de R$ 450.000,00
A6: RB052024 | B6: Articular os espaços educativos via site e ações presenciais | C6: Atualizar e revisar Plano Diretor de Educação ambiental entre 2026 a 2027 | D6: Não depende de recursos do FEHIDRO | F6: Não depende de recursos do FEHIDRO | H6: Não depende de recursos do FEHIDRO | J6: Não depende de recursos do FEHIDRO
A7: RB062024 | B7: Manutenção, ampliação de funcionalidades do SIG-RB, com atualização de base de dados e informaçoes (repositório) | C7: Manutenção do Sistema de Informações Geográficas com atualização tecnológica do sistema operacional até 2027 | D7: Contratação de 1 projeto no valor máximo de R$ 300.000,00 | F7: Contratação de 1 projeto no valor máximo de R$ 315.000,00 | H7: Contratação de 1 projeto no valor máximo de R$ 330.000,00 | J7: Contratação de 1 projeto no valor máximo de R$ 345.000,00
A8: RB072024 | B8: Desenvolver base metodológica e elaborar estudos para definição de indicadores de sazonalidade turística. (CBH-BS) | C8: Indicadores de sazonalidades nos 3 CBHs definidos e aplicados pelos CBHs da Vertente Litorânea | D8: Não depende de recursos do FEHIDRO | F8: Não depende de recursos do FEHIDRO | H8: Não depende de recursos do FEHIDRO | J8: Não depende de recursos do FEHIDRO
A9: RB082024 | B9: Realizar estudo sobre a atividade de mineração de areia no Vale do Ribeira | C9: Realizar 1 estudo contemplando as áreas críticas na área de abrangência em 2024 | D9: Não depende de recursos do FEHIDRO
A10: RB092024 | B10: Elaborar diagnóstico da situação da Pesca profissional e amadora nos rios do Vale, considerando os aspectos positivos e negativos | C10: Realizar 1 diagnóstico da situação da pesca em 2024 | D10: Não depende de recursos do FEHIDRO
A11: RB102024 | B11: Estudar a criação de um fundo permanente de pagamento por serviços ambientais, com recursos vindos de compensações ambientais, cobrança pelo uso da água, transposição de águas e outras fontes | C11: Realizar 1 estudo para definição de fundo permanente para PSA até 2027 | D11: Não depende de recursos do FEHIDRO | F11: Não depende de recursos do FEHIDRO | H11: Não depende de recursos do FEHIDRO | J11: Não depende de recursos do FEHIDRO
A12: RB112024 | B12: Realização de estudos tecnicos para caracterização socioambiental da Bacia do Rio Jacupiranga | C12: Realização de estudo de 1 sub-bacia até 2027 | D12: Contratação de 1 projeto no valor máximo de R$ 350.000,00
A13: RB122024 | B13: Promover o levantamento e a discussão das normativas relacionadas a viabilização de sistemas alternativos de captação e tratamento de esgoto | C13: Construção de documento base para normatização de sistemas alternativos de captação e tratamento de esgoto até 2027 | D13: Dar início aos entendimentos com os CBHs BS e LN | F13: Manter entendimentos com os CBHs BS e LN | H13: Manter entendimentos com os CBHs BS e LN | J13: Manter entendimentos com os CBHs BS e LN
A14: RB132024 | B14: Elaboração do Relatório de Situação de 2025 e elaboração/atualização do Plano de Bacia com horizonte de planejamento de 12 anos | C14: Contratar em 2024 a elaboração Relatório de Situação de 2025 e elaboração/atualização do Plano de Bacia | D14: Contratação de 1 projeto no valor máximo de R$ 600.000,00
A15: RB142024 | B15: Instalação de novos pontos de monitoramento de qualidade das águas superficiais | C15: Manter, adequar e aumentar a rede de monitoramento qualitativo das águas da UGRHI 11 no período de 2024 a 2027 | D15: Não depende de recursos do FEHIDRO | F15: Não depende de recursos do FEHIDRO | H15: Não depende de recursos do FEHIDRO | J15: Não depende de recursos do FEHIDRO
A16: RB152024 | B16: Dar continuidade ao Projeto de Fortalecimento, Articulação e Integração dos CBHs da Vertente Litorânea (CBH-LN) | C16: Realizar um encontro de avaliação e planejamento dos CBHs da Vertente, entre 2024 a 2027 | D16: Retomar os entendimentos com os CBHs BS e LN | F16: Manter entendimentos com os CBHs BS e LN | H16: Manter entendimentos com os CBHs BS e LN | J16: Manter entendimentos com os CBHs BS e LN
A17: RB162024 | B17: Contratação e execução de obras de saneamento básico na área rural e urbanizada | C17: Implantação de 20 empreendimentos de saneamento na área rural da UGRHI 11 até 2027 | D17: Contratação de no mínimo 5 projetos, no valor máximo de R$ 500.000,00 por projeto | F17: Contratação de no mínimo 5 projetos, no valor máximo de R$ 550.000,00 por projeto | H17: Contratação de no mínimo 5 projetos, no valor máximo de R$ 600.000,00 por projeto | J17: Contratação de no mínimo 5 projetos, no valor máximo de R$ 650.000,00 por projeto
A18: RB172024 | B18: Implantar, ampliar ou manter ações de melhoria de gestão de resíduos sólidos, com ênfase na coleta seletiva | C18: Implantação ou manutenção de 8 empreendimentos de coleta seletiva nos municípios da UGRHI até 2027 | D18: Contratação de de no mínimo 2 projetos, no valor máximo de R$ 300.000,00 por projeto | F18: Contratação de de no mínimo 2 projetos, no valor máximo de R$ 325.000,00 por projeto | H18: Contratação de de no mínimo 2 projetos, no valor máximo de R$ 350.000,00 por projeto | J18: Contratação de de no mínimo 2 projetos, no valor máximo de R$ 375.000,00 por projeto
A19: RB182024 | B19: Executar obra de Combate a erosão de cursos d'água | C19: Realizar 4 Obras e ações de proteção e controle da erosão do solo ou do assoreamento dos corpos d'água até 2027 | D19: Contratação de 1 projeto no valor máximo de R$ 500.000,00 | F19: Contratação de 1 projeto no valor máximo de R$ 550.000,00 | H19: Contratação de 1 projeto no valor máximo de R$ 600.000,00 | J19: Contratação de 1 projeto no valor máximo de R$ 650.000,00
A20: RB192024 | B20: Execução de obra de combate a erosão e/ou desassoreamento de cursos d'água | C20: Realizar 8 Obras de proteção e controle da erosão do solo ou do assoreamento dos corpos d'água até 2027 | D20: Contratação de 2 projetos no valor estimado de R$ 500.000,00 por projeto. Não depende de recursos do FEHIDRO. | F20: Contratação de 2 projetos no valor estimado de R$ 550.000,00 por projeto. Não depende de recursos do FEHIDRO. | H20: Contratação de 2 projetos no valor estimado de R$ 600.000,00 por projeto. Não depende de recursos do FEHIDRO. | J20: Contratação de 2 projetos no valor estimado de R$ 650.000,00 por projeto. Não depende de recursos do FEHIDRO.
A21: RB202024 | B21: Implantar 1 projeto de Pagamento por Serviços Ambientais (PSA) | C21: Implantar pelo menos 1 projeto de Pagamentos por Serviços Ambientais - PSA na UGRHI 11 em 2024 | D21: Contratação de 1 projeto no valor de R$ 360.000,00
A22: RB212024 | B22: Fomentar a produção agroecológica e orgânica (02 projetos) | C22: Elaborar e executar 2 projetos piloto de produção de SAF ou sistema orgânico, com objetivo de formar unidade(s) demonstrativa(s) para fortalecimento e experimentação da técnica na bacia em 2024 e 2026 | D22: Contratação de 1 projeto no valor estimado de R$ 160.000,00. Não depende de recursos do FEHIDRO | H22: Contratação de 1 projeto no valor estimado de R$ 180.000,00. Não depende de recursos do FEHIDRO
A23: RB222024 | B23: Recuperar as APPs conforme diretrizes dos órgãos competentes | C23: Elaborar e executar 1 projeto de recuperação de APPs em 2024 | D23: Contratação de 1 projeto no valor de R$ 300.000,00
A24: RB232024 | B24: Execução de serviços e obras para contenção de inundações ou alagamentos | C24: Executar 12 empreendimentos estruturais visando mitigar os impactos das inundações até 2027 | D24: Contratação de no mínimo 3 projetos no valor máximo de R$ 500.000,00 por projeto | F24: Contratação de no mínimo 3 projetos no valor máximo de R$ 550.000,00 por projeto | H24: Contratação de no mínimo 3 projetos no valor máximo de R$ 600.000,00 por projeto | J24: Contratação de no mínimo 3 projetos no valor máximo de R$ 650.000,00 por projeto
A25: RB242024 | B25: Realizar capacitação sobre objetivos e atribuições do comitê e ferramentas de gestão dos recursos hídricos | C25: Realizar eventos anuais de formação de membros do plenário, de câmaras técnicas e secretarias municipais visando levar o entendimento do funcionamento do colegiado e do papel dos membros e estimular a participação efetiva e a divulgação para as instituições que representam, entre 2024 e 2027 | D25: Não depende de recursos do FEHIDRO | F25: Não depende de recursos do FEHIDRO | H25: Não depende de recursos do FEHIDRO | J25: Não depende de recursos do FEHIDRO
A26: RB252024 | B26: Realizar capacitação sobre gestão de águas para instituições com representação no CBH-RB, instituições parceiras, organizações da sociedade civil, comunidades rurais e jovens. | C26: Realizar eventos bienais de formação para instituições com representação no CBH-RB, instituições parceiras, organizações da sociedade civil, comunidades rurais e jovens em 2024 e 2026 | D26: Contratação de 1 projeto no valor de R$ 160.000,00 | H26: Contratação de 1 projeto no valor de R$ 180.000,00
A27: RB262024 | B27: Realizar ações de educação ambiental (sensibilização e mobilização social) nos temas diversos. Via projetos Fehidro | C27: Realizar 1 projeto por ano em 2024, 2025, 2026 e 2027, contemplando ações de educação ambiental | D27: Contratação de 1 projeto no valor de R$ 160.000,00 | F27: Contratação de 1 projeto no valor de R$ 170.000,00 | H27: Contratação de 1 projeto no valor de R$ 180.000,00 | J27: Contratação de 1 projeto no valor de R$ 190.000,00
A28: RB272024 | B28: Realizar a Semana da água do Vale do Ribeira | C28: Realizar um evento por ano | D28: Não requer recursos de investimento do FEHIDRO | F28: Não requer recursos de investimento do FEHIDRO | H28: Não requer recursos de investimento do FEHIDRO | J28: Não requer recursos de investimento do FEHIDRO
A29: RB282024 | B29: Apoiar realização do Diálogo Interbacias de Educação Ambiental em Recursos Hídricos | C29: Apoiar o Diálogo Interbacias anualmente | D29: Não requer recursos de investimento do FEHIDRO | F29: Não requer recursos de investimento do FEHIDRO | H29: Não requer recursos de investimento do FEHIDRO | J29: Não requer recursos de investimento do FEHIDRO
A30: RB292024 | B30: Realizar evento, na forma de seminário, para disseminar planos e programas municipais de educação ambiental | C30: Realizar 1 evento sobre planos e programas municipais permanentes de educação ambiental a cada início de mandato municipal | D30: Não requer recursos de investimento do FEHIDRO | F30: Não requer recursos de investimento do FEHIDRO | H30: Não requer recursos de investimento do FEHIDRO | J30: Não requer recursos de investimento do FEHIDRO
A31: RB302024 | B31: Reproduzir material de apoio (kit água) para e de apoio a eventos de educação ambiental | C31: Inserção da temática de água e meio ambiente na sociedade, por meio da contratação de 1 projeto em 2024. | D31: Inserção da temática de água e meio ambiente na sociedade, por meio da contratação de 1 projeto em 2024 no valor de R$ 200.000,00. | H31: Contratação de 1 projeto no valor de R$ 220.000,00
A32: RB312024 | B32: Adequar e equipar 1 centro de Educação Ambiental | C32: Incentivar e fomentar a criação de 1 centro de Educação Ambiental em 2024 | D32: Contratação de 1 projeto no valor de R$ 345.000,00
A33: RB322024 | B33: Execução de 2 projetos bienais de elaboração de releases, boletins informativos e operação das ferramentas de comunicação | C33: Ampliar comunicação do CBH internamente e com público em geral (plano de comunicação elaborado) em 2024 e 2026 | D33: Contratação de 1 projeto no valor de R$ 340.000,00 | H33: Contratação de 1 projeto no valor de R$ 400.000,00
A34: RB332025 | B34: Realização de manutenção operacional nos postos de monitoramento fluviométrico e pluviométrico existentes e atualização do sistema de informação | C34: Serviços de operação e manutenção sistemáticos nos postos hidrométricos | F34: Contratação de 1 projeto de manutenção operacional nos postos de monitoramento fluviométrico e pluviométrico existentes e atualização do sistema de informação | H34: Contratação de 1 projeto de manutenção operacional nos postos de monitoramento fluviométrico e pluviométrico existentes e atualização do sistema de informação, no valor máximo de R$ 300.000,00 | J34: Contratação de 1 projeto de manutenção operacional nos postos de monitoramento fluviométrico e pluviométrico existentes e atualização do sistema de informação, no valor máximo de R$ 350.000,00
A35: RB342025 | B35: Fomentar a produção agroecológica e orgânica (01 projeto) | C35: Implantar 1 projeto piloto de produção de SAF ou sistema orgânico, com objetivo de formar unidade(s) demonstrativa(s) para fortalecimento e experimentação da técnica na bacia em 2025 | F35: Contratação de 1 projeto piloto de produção de SAF ou sistema orgânico, no valor de R$ 160.000,00
A36: RB352025 | B36: Capacitar os membros do CBH e CTs sobre conceitos, práticas e experiências em PSA | C36: Realizar capacitação sobre PSA para os membros do CBH e CTs em 2025 | F36: Contratação de 1 projeto psrs realização de capacitação sobre PSA para os membros do CBH e CTs em 2025, no valor de R$ 160.000,00
A37: RB362025 | B37: Produzir série didática de vídeos com materiais educativos e informativos sobre educação ambiental e recursos hídricos, com identidade local, para população leiga, em linguagem acessível e lúdica ( 1 temática a cada 2 anos) | C37: Produzir materiais educativos e informativos sobre 1 temática a cada 2 anos, em 2025 e 2027 | F37: Contratação de 1 projeto de produção de materiais educativos e informativos sobre 1 temática, no valor máximo de R$ 250.000,00 | J37: Contratação de 1 projeto de produção de materiais educativos e informativos sobre 1 temática, no valor máximo de R$ 300.000,00
A38: RB372025 | B38: Oficinas de capacitação em recursos hídricos para educadores com sinergia ao currículo paulista | C38: Realizar 1 projeto em 2025 e 1 projeto em 2026 | F38: Contratação de 1 projeto no valor máximo de R$ 220.000,00 | H38: Contratação de 1 projeto no valor máximo de R$ 220.000,00
A39: RB382026 | B39: Instalação de uma sala com equipamentos de informática e multimídia, para o funcionamento da CT-APRM-AJSL | C39: Consolidar a infrastrutura de apoio para CT-APRM-AJ/SL em 2026 | H39: Contratação de 1 projeto no valor estimado de R$ 350.000,00. Não requer recursos do FEHIDRO.
A40: RB392026 | B40: Divulgação na mídia regional e palestras de conscientização/orientação aos produtores rurais sobre o uso adequado de agrotóxicos e o manejo e recolhimento das embalagens de agrotóxico | C40: Desenvolver 1 projeto de comunicação visando redução e utilização adequada dos agrotóxicos, em 2026 | H40: Contratação de 1 projeto no valor de R$ 160.000,00
A41: RB402027 | B41: Realizar o diagnóstico da situação atual dos corpos de água da UGRHI 11 | C41: Realizar 1 levantamento em 1 sub-bacias da UGRHI 11 em 2027 | J41: Contratação de 1 projeto para realização de levantamento em 1 sub-bacias da UGRHI 11, no valor máximo de R$ 350.000,00

Sheet Acomp. financeiro 24-27
A1: id_ação_Fonte_oculta | B1: ID Ação | C1: Descrição da ação | D1: Fonte | E1: R$ Planejado (2024) | F1: R$ Disponibilizado (2024) | G1: R$ Executado (2024) | H1: R$ Planejado (2025) | I1: R$ Disponibilizado (2025) | J1: R$ Executado (2025) | K1: R$ Planejado (2026) | L1: R$ Disponibilizado (2026) | M1: R$ Executado (2026) | N1: R$ Planejado (2027) | O1: R$ Disponibilizado (2027) | P1: R$ Executado (2027) | Q1: Observações sobre execução financeira da meta
A2: =Financeiro[[#This Row],[ID Ação]]&Financeiro[[#This Row],[Fonte]] -> RB012024FEHIDRO - Cobrança estadual | B2: =IFERROR(INDEX(IdentAcoes[ID Ação],MATCH(0,INDEX(--(COUNTIF(B$1:B1,IdentAcoes[ID Ação])=IdentAcoes[[Quantidade de fontes de recursos ]]),0),0)),"") -> RB012024 | C2: =IFERROR(INDEX(IdentAcoes[Descrição da ação],MATCH(0,INDEX(--(COUNTIF(C$1:C1,IdentAcoes[Descrição da ação])=IdentAcoes[[Quantidade de fontes de recursos ]]),0),0)),"") -> Revisão/atualização de Plano com pelo menos 15 anos de existência | D2: FEHIDRO - Cobrança estadual | E2: 300000 | H2: 500000 | K2: 400000 | N2: 450000
A3: =Financeiro[[#This Row],[ID Ação]]&Financeiro[[#This Row],[Fonte]] -> RB022024Tesouro do Estado | B3: =IFERROR(INDEX(IdentAcoes[ID Ação],MATCH(0,INDEX(--(COUNTIF(B$1:B2,IdentAcoes[ID Ação])=IdentAcoes[[Quantidade de fontes de recursos ]]),0),0)),"") -> RB022024 | C3: =IFERROR(INDEX(IdentAcoes[Descrição da ação],MATCH(0,INDEX(--(COUNTIF(C$1:C2,IdentAcoes[Descrição da ação])=IdentAcoes[[Quantidade de fontes de recursos ]]),0),0)),"") -> Desenvolver projetos executivos de microdrenagem para os municípios da UGRHI 11 | D3: Tesouro do Estado | E3: 300000 | H3: 350000 | K3: 400000 | N3: 450000
A4: =Financeiro[[#This Row],[ID Ação]]&Financeiro[[#This Row],[Fonte]] -> RB032024FEHIDRO - Cobrança estadual | B4: =IFERROR(INDEX(IdentAcoes[ID Ação],MATCH(0,INDEX(--(COUNTIF(B$1:B3,IdentAcoes[ID Ação])=IdentAcoes[[Quantidade de fontes de recursos ]]),0),0)),"") -> RB032024 | C4: =IFERROR(INDEX(IdentAcoes[Descrição da ação],MATCH(0,INDEX(--(COUNTIF(C$1:C3,IdentAcoes[Descrição da ação])=IdentAcoes[[Quantidade de fontes de recursos ]]),0),0)),"") -> Elaborar ou Revisar os Planos Municipais de Resíduos Sólidos | D4: FEHIDRO - Cobrança estadual | E4: 300000 | H4: 350000 | K4: 400000 | N4: 450000
A5: =Financeiro[[#This Row],[ID Ação]]&Financeiro[[#This Row],[Fonte]] -> RB042024FEHIDRO - Cobrança estadual | B5: =IFERROR(INDEX(IdentAcoes[ID Ação],MATCH(0,INDEX(--(COUNTIF(B$1:B4,IdentAcoes[ID Ação])=IdentAcoes[[Quantidade de fontes de recursos ]]),0),0)),"") -> RB042024 | C5: =IFERROR(INDEX(IdentAcoes[Descrição da ação],MATCH(0,INDEX(--(COUNTIF(C$1:C4,IdentAcoes[Descrição da ação])=IdentAcoes[[Quantidade de fontes de recursos ]]),0),0)),"") -> Revisao do mapeamento das áreas de risco e do Plano Municipal de Defesa Civil, realizado há mais de 5 anos, com indicaçoes de ações estruturais e não estruturais | D5: FEHIDRO - Cobrança estadual | E5: 350000 | H5: 375000 | K5: 400000 | N5: 450000
A6: =Financeiro[[#This Row],[ID Ação]]&Financeiro[[#This Row],[Fonte]] -> RB062024FEHIDRO - Cobrança estadual | B6: =IFERROR(INDEX(IdentAcoes[ID Ação],MATCH(0,INDEX(--(COUNTIF(B$1:B5,IdentAcoes[ID Ação])=IdentAcoes[[Quantidade de fontes de recursos ]]),0),0)),"") -> RB062024 | C6: =IFERROR(INDEX(IdentAcoes[Descrição da ação],MATCH(0,INDEX(--(COUNTIF(C$1:C5,IdentAcoes[Descrição da ação])=IdentAcoes[[Quantidade de fontes de recursos ]]),0),0)),"") -> Manutenção, ampliação de funcionalidades do SIG-RB, com atualização de base de dados e informaçoes (repositório) | D6: FEHIDRO - Cobrança estadual | E6: 300000 | H6: 315000 | K6: 330000 | N6: 345000
A7: =Financeiro[[#This Row],[ID Ação]]&Financeiro[[#This Row],[Fonte]] -> RB082024Tesouro do Estado | B7: =IFERROR(INDEX(IdentAcoes[ID Ação],MATCH(0,INDEX(--(COUNTIF(B$1:B6,IdentAcoes[ID Ação])=IdentAcoes[[Quantidade de fontes de recursos ]]),0),0)),"") -> RB082024 | C7: =IFERROR(INDEX(IdentAcoes[Descrição da ação],MATCH(0,INDEX(--(COUNTIF(C$1:C6,IdentAcoes[Descrição da ação])=IdentAcoes[[Quantidade de fontes de recursos ]]),0),0)),"") -> Realizar estudo sobre a atividade de mineração de areia no Vale do Ribeira | D7: Tesouro do Estado | E7: 200000
A8: =Financeiro[[#This Row],[ID Ação]]&Financeiro[[#This Row],[Fonte]] -> RB092024Tesouro do Estado | B8: =IFERROR(INDEX(IdentAcoes[ID Ação],MATCH(0,INDEX(--(COUNTIF(B$1:B7,IdentAcoes[ID Ação])=IdentAcoes[[Quantidade de fontes de recursos ]]),0),0)),"") -> RB092024 | C8: =IFERROR(INDEX(IdentAcoes[Descrição da ação],MATCH(0,INDEX(--(COUNTIF(C$1:C7,IdentAcoes[Descrição da ação])=IdentAcoes[[Quantidade de fontes de recursos ]]),0),0)),"") -> Elaborar diagnóstico da situação da Pesca profissional e amadora nos rios do Vale, considerando os aspectos positivos e negativos | D8: Tesouro do Estado | E8: 200000
A9: =Financeiro[[#This Row],[ID Ação]]&Financeiro[[#This Row],[Fonte]] -> RB112024FEHIDRO - Cobrança estadual | B9: =IFERROR(INDEX(IdentAcoes[ID Ação],MATCH(0,INDEX(--(COUNTIF(B$1:B8,IdentAcoes[ID Ação])=IdentAcoes[[Quantidade de fontes de recursos ]]),0),0)),"") -> RB112024 | C9: =IFERROR(INDEX(IdentAcoes[Descrição da ação],MATCH(0,INDEX(--(COUNTIF(C$1:C8,IdentAcoes[Descrição da ação])=IdentAcoes[[Quantidade de fontes de recursos ]]),0),0)),"") -> Realização de estudos tecnicos para caracterização socioambiental da Bacia do Rio Jacupiranga | D9: FEHIDRO - Cobrança estadual | E9: 350000
A10: =Financeiro[[#This Row],[ID Ação]]&Financeiro[[#This Row],[Fonte]] -> RB132024FEHIDRO - Cobrança estadual | B10: =IFERROR(INDEX(IdentAcoes[ID Ação],MATCH(0,INDEX(--(COUNTIF(B$1:B9,IdentAcoes[ID Ação])=IdentAcoes[[Quantidade de fontes de recursos ]]),0),0)),"") -> RB132024 | C10: =IFERROR(INDEX(IdentAcoes[Descrição da ação],MATCH(0,INDEX(--(COUNTIF(C$1:C9,IdentAcoes[Descrição da ação])=IdentAcoes[[Quantidade de fontes de recursos ]]),0),0)),"") -> Elaboração do Relatório de Situação de 2025 e elaboração/atualização do Plano de Bacia com horizonte de planejamento de 12 anos | D10: FEHIDRO - Cobrança estadual | E10: 600000
A11: =Financeiro[[#This Row],[ID Ação]]&Financeiro[[#This Row],[Fonte]] -> RB162024FEHIDRO - Cobrança estadual | B11: =IFERROR(INDEX(IdentAcoes[ID Ação],MATCH(0,INDEX(--(COUNTIF(B$1:B10,IdentAcoes[ID Ação])=IdentAcoes[[Quantidade de fontes de recursos ]]),0),0)),"") -> RB162024 | C11: =IFERROR(INDEX(IdentAcoes[Descrição da ação],MATCH(0,INDEX(--(COUNTIF(C$1:C10,IdentAcoes[Descrição da ação])=IdentAcoes[[Quantidade de fontes de recursos ]]),0),0)),"") -> Contratação e execução de obras de saneamento básico na área rural e urbanizada | D11: FEHIDRO - Cobrança estadual | E11: 2500000 | H11: 2750000 | K11: 3000000 | N11: 3250000
A12: =Financeiro[[#This Row],[ID Ação]]&Financeiro[[#This Row],[Fonte]] -> RB172024FEHIDRO - Cobrança estadual | B12: =IFERROR(INDEX(IdentAcoes[ID Ação],MATCH(0,INDEX(--(COUNTIF(B$1:B11,IdentAcoes[ID Ação])=IdentAcoes[[Quantidade de fontes de recursos ]]),0),0)),"") -> RB172024 | C12: =IFERROR(INDEX(IdentAcoes[Descrição da ação],MATCH(0,INDEX(--(COUNTIF(C$1:C11,IdentAcoes[Descrição da ação])=IdentAcoes[[Quantidade de fontes de recursos ]]),0),0)),"") -> Implantar, ampliar ou manter ações de melhoria de gestão de resíduos sólidos, com ênfase na coleta seletiva | D12: FEHIDRO - Cobrança estadual | E12: 600000 | H12: 650000 | K12: 700000 | N12: 750000
A13: =Financeiro[[#This Row],[ID Ação]]&Financeiro[[#This Row],[Fonte]] -> RB182024FEHIDRO - Cobrança estadual | B13: =IFERROR(INDEX(IdentAcoes[ID Ação],MATCH(0,INDEX(--(COUNTIF(B$1:B12,IdentAcoes[ID Ação])=IdentAcoes[[Quantidade de fontes de recursos ]]),0),0)),"") -> RB182024 | C13: =IFERROR(INDEX(IdentAcoes[Descrição da ação],MATCH(0,INDEX(--(COUNTIF(C$1:C12,IdentAcoes[Descrição da ação])=IdentAcoes[[Quantidade de fontes de recursos ]]),0),0)),"") -> Executar obra de Combate a erosão de cursos d'água | D13: FEHIDRO - Cobrança estadual | E13: 500000 | H13: 550000 | K13: 600000 | N13: 650000
A14: =Financeiro[[#This Row],[ID Ação]]&Financeiro[[#This Row],[Fonte]] -> RB192024Outras Fontes | B14: =IFERROR(INDEX(IdentAcoes[ID Ação],MATCH(0,INDEX(--(COUNTIF(B$1:B13,IdentAcoes[ID Ação])=IdentAcoes[[Quantidade de fontes de recursos ]]),0),0)),"") -> RB192024 | C14: =IFERROR(INDEX(IdentAcoes[Descrição da ação],MATCH(0,INDEX(--(COUNTIF(C$1:C13,IdentAcoes[Descrição da ação])=IdentAcoes[[Quantidade de fontes de recursos ]]),0),0)),"") -> Execução de obra de combate a erosão e/ou desassoreamento de cursos d'água | D14: Outras Fontes | E14: 1000000 | H14: 1100000 | K14: 1200000 | N14: 1300000
A15: =Financeiro[[#This Row],[ID Ação]]&Financeiro[[#This Row],[Fonte]] -> RB202024FEHIDRO - Cobrança estadual | B15: =IFERROR(INDEX(IdentAcoes[ID Ação],MATCH(0,INDEX(--(COUNTIF(B$1:B14,IdentAcoes[ID Ação])=IdentAcoes[[Quantidade de fontes de recursos ]]),0),0)),"") -> RB202024 | C15: =IFERROR(INDEX(IdentAcoes[Descrição da ação],MATCH(0,INDEX(--(COUNTIF(C$1:C14,IdentAcoes[Descrição da ação])=IdentAcoes[[Quantidade de fontes de recursos ]]),0),0)),"") -> Implantar 1 projeto de Pagamento por Serviços Ambientais (PSA) | D15: FEHIDRO - Cobrança estadual | E15: 360000
A16: =Financeiro[[#This Row],[ID Ação]]&Financeiro[[#This Row],[Fonte]] -> RB212024Tesouro do Estado | B16: =IFERROR(INDEX(IdentAcoes[ID Ação],MATCH(0,INDEX(--(COUNTIF(B$1:B15,IdentAcoes[ID Ação])=IdentAcoes[[Quantidade de fontes de recursos ]]),0),0)),"") -> RB212024 | C16: =IFERROR(INDEX(IdentAcoes[Descrição da ação],MATCH(0,INDEX(--(COUNTIF(C$1:C15,IdentAcoes[Descrição da ação])=IdentAcoes[[Quantidade de fontes de recursos ]]),0),0)),"") -> Fomentar a produção agroecológica e orgânica (02 projetos) | D16: Tesouro do Estado | E16: 160000 | K16: 180000
A17: =Financeiro[[#This Row],[ID Ação]]&Financeiro[[#This Row],[Fonte]] -> RB222024FEHIDRO - Cobrança estadual | B17: =IFERROR(INDEX(IdentAcoes[ID Ação],MATCH(0,INDEX(--(COUNTIF(B$1:B16,IdentAcoes[ID Ação])=IdentAcoes[[Quantidade de fontes de recursos ]]),0),0)),"") -> RB222024 | C17: =IFERROR(INDEX(IdentAcoes[Descrição da ação],MATCH(0,INDEX(--(COUNTIF(C$1:C16,IdentAcoes[Descrição da ação])=IdentAcoes[[Quantidade de fontes de recursos ]]),0),0)),"") -> Recuperar as APPs conforme diretrizes dos órgãos competentes | D17: FEHIDRO - Cobrança estadual | E17: 300000
A18: =Financeiro[[#This Row],[ID Ação]]&Financeiro[[#This Row],[Fonte]] -> RB232024FEHIDRO - Cobrança estadual | B18: =IFERROR(INDEX(IdentAcoes[ID Ação],MATCH(0,INDEX(--(COUNTIF(B$1:B17,IdentAcoes[ID Ação])=IdentAcoes[[Quantidade de fontes de recursos ]]),0),0)),"") -> RB232024 | C18: =IFERROR(INDEX(IdentAcoes[Descrição da ação],MATCH(0,INDEX(--(COUNTIF(C$1:C17,IdentAcoes[Descrição da ação])=IdentAcoes[[Quantidade de fontes de recursos ]]),0),0)),"") -> Execução de serviços e obras para contenção de inundações ou alagamentos | D18: FEHIDRO - Cobrança estadual | E18: 1500000 | H18: 1650000 | K18: 1800000 | N18: 1950000
A19: =Financeiro[[#This Row],[ID Ação]]&Financeiro[[#This Row],[Fonte]] -> RB252024FEHIDRO - Cobrança estadual | B19: =IFERROR(INDEX(IdentAcoes[ID Ação],MATCH(0,INDEX(--(COUNTIF(B$1:B18,IdentAcoes[ID Ação])=IdentAcoes[[Quantidade de fontes de recursos ]]),0),0)),"") -> RB252024 | C19: =IFERROR(INDEX(IdentAcoes[Descrição da ação],MATCH(0,INDEX(--(COUNTIF(C$1:C18,IdentAcoes[Descrição da ação])=IdentAcoes[[Quantidade de fontes de recursos ]]),0),0)),"") -> Realizar capacitação sobre gestão de águas para instituições com representação no CBH-RB, instituições parceiras, organizações da sociedade civil, comunidades rurais e jovens. | D19: FEHIDRO - Cobrança estadual | E19: 160000 | K19: 180000
A20: =Financeiro[[#This Row],[ID Ação]]&Financeiro[[#This Row],[Fonte]] -> RB262024FEHIDRO - CFURH | B20: =IFERROR(INDEX(IdentAcoes[ID Ação],MATCH(0,INDEX(--(COUNTIF(B$1:B19,IdentAcoes[ID Ação])=IdentAcoes[[Quantidade de fontes de recursos ]]),0),0)),"") -> RB262024 | C20: =IFERROR(INDEX(IdentAcoes[Descrição da ação],MATCH(0,INDEX(--(COUNTIF(C$1:C19,IdentAcoes[Descrição da ação])=IdentAcoes[[Quantidade de fontes de recursos ]]),0),0)),"") -> Realizar ações de educação ambiental (sensibilização e mobilização social) nos temas diversos. Via projetos Fehidro | D20: FEHIDRO - CFURH | E20: 160000 | H20: 170000 | K20: 180000 | N20: 190000
A21: =Financeiro[[#This Row],[ID Ação]]&Financeiro[[#This Row],[Fonte]] -> RB302024FEHIDRO - Cobrança estadual | B21: =IFERROR(INDEX(IdentAcoes[ID Ação],MATCH(0,INDEX(--(COUNTIF(B$1:B20,IdentAcoes[ID Ação])=IdentAcoes[[Quantidade de fontes de recursos ]]),0),0)),"") -> RB302024 | C21: =IFERROR(INDEX(IdentAcoes[Descrição da ação],MATCH(0,INDEX(--(COUNTIF(C$1:C20,IdentAcoes[Descrição da ação])=IdentAcoes[[Quantidade de fontes de recursos ]]),0),0)),"") -> Reproduzir material de apoio (kit água) para e de apoio a eventos de educação ambiental | D21: FEHIDRO - Cobrança estadual | E21: 200000 | K21: 220000
A22: =Financeiro[[#This Row],[ID Ação]]&Financeiro[[#This Row],[Fonte]] -> RB312024FEHIDRO - Cobrança estadual | B22: =IFERROR(INDEX(IdentAcoes[ID Ação],MATCH(0,INDEX(--(COUNTIF(B$1:B21,IdentAcoes[ID Ação])=IdentAcoes[[Quantidade de fontes de recursos ]]),0),0)),"") -> RB312024 | C22: =IFERROR(INDEX(IdentAcoes[Descrição da ação],MATCH(0,INDEX(--(COUNTIF(C$1:C21,IdentAcoes[Descrição da ação])=IdentAcoes[[Quantidade de fontes de recursos ]]),0),0)),"") -> Adequar e equipar 1 centro de Educação Ambiental | D22: FEHIDRO - Cobrança estadual | E22: 345000
A23: =Financeiro[[#This Row],[ID Ação]]&Financeiro[[#This Row],[Fonte]] -> RB322024FEHIDRO - Cobrança estadual | B23: =IFERROR(INDEX(IdentAcoes[ID Ação],MATCH(0,INDEX(--(COUNTIF(B$1:B22,IdentAcoes[ID Ação])=IdentAcoes[[Quantidade de fontes de recursos ]]),0),0)),"") -> RB322024 | C23: =IFERROR(INDEX(IdentAcoes[Descrição da ação],MATCH(0,INDEX(--(COUNTIF(C$1:C22,IdentAcoes[Descrição da ação])=IdentAcoes[[Quantidade de fontes de recursos ]]),0),0)),"") -> Execução de 2 projetos bienais de elaboração de releases, boletins informativos e operação das ferramentas de comunicação | D23: FEHIDRO - Cobrança estadual | E23: 340000 | K23: 400000
A24: =Financeiro[[#This Row],[ID Ação]]&Financeiro[[#This Row],[Fonte]] -> RB332025FEHIDRO - Cobrança estadual | B24: =IFERROR(INDEX(IdentAcoes[ID Ação],MATCH(0,INDEX(--(COUNTIF(B$1:B23,IdentAcoes[ID Ação])=IdentAcoes[[Quantidade de fontes de recursos ]]),0),0)),"") -> RB332025 | C24: =IFERROR(INDEX(IdentAcoes[Descrição da ação],MATCH(0,INDEX(--(COUNTIF(C$1:C23,IdentAcoes[Descrição da ação])=IdentAcoes[[Quantidade de fontes de recursos ]]),0),0)),"") -> Realização de manutenção operacional nos postos de monitoramento fluviométrico e pluviométrico existentes e atualização do sistema de informação | D24: FEHIDRO - Cobrança estadual | H24: 250000 | K24: 300000 | N24: 350000
A25: =Financeiro[[#This Row],[ID Ação]]&Financeiro[[#This Row],[Fonte]] -> RB342025FEHIDRO - CFURH | B25: =IFERROR(INDEX(IdentAcoes[ID Ação],MATCH(0,INDEX(--(COUNTIF(B$1:B24,IdentAcoes[ID Ação])=IdentAcoes[[Quantidade de fontes de recursos ]]),0),0)),"") -> RB342025 | C25: =IFERROR(INDEX(IdentAcoes[Descrição da ação],MATCH(0,INDEX(--(COUNTIF(C$1:C24,IdentAcoes[Descrição da ação])=IdentAcoes[[Quantidade de fontes de recursos ]]),0),0)),"") -> Fomentar a produção agroecológica e orgânica (01 projeto) | D25: FEHIDRO - CFURH | H25: 160000
A26: =Financeiro[[#This Row],[ID Ação]]&Financeiro[[#This Row],[Fonte]] -> RB352025FEHIDRO - Cobrança estadual | B26: =IFERROR(INDEX(IdentAcoes[ID Ação],MATCH(0,INDEX(--(COUNTIF(B$1:B25,IdentAcoes[ID Ação])=IdentAcoes[[Quantidade de fontes de recursos ]]),0),0)),"") -> RB352025 | C26: =IFERROR(INDEX(IdentAcoes[Descrição da ação],MATCH(0,INDEX(--(COUNTIF(C$1:C25,IdentAcoes[Descrição da ação])=IdentAcoes[[Quantidade de fontes de recursos ]]),0),0)),"") -> Capacitar os membros do CBH e CTs sobre conceitos, práticas e experiências em PSA | D26: FEHIDRO - Cobrança estadual | H26: 160000
A27: =Financeiro[[#This Row],[ID Ação]]&Financeiro[[#This Row],[Fonte]] -> RB362025FEHIDRO - Cobrança estadual | B27: =IFERROR(INDEX(IdentAcoes[ID Ação],MATCH(0,INDEX(--(COUNTIF(B$1:B26,IdentAcoes[ID Ação])=IdentAcoes[[Quantidade de fontes de recursos ]]),0),0)),"") -> RB362025 | C27: =IFERROR(INDEX(IdentAcoes[Descrição da ação],MATCH(0,INDEX(--(COUNTIF(C$1:C26,IdentAcoes[Descrição da ação])=IdentAcoes[[Quantidade de fontes de recursos ]]),0),0)),"") -> Produzir série didática de vídeos com materiais educativos e informativos sobre educação ambiental e recursos hídricos, com identidade local, para população leiga, em linguagem acessível e lúdica ( 1 temática a cada 2 anos) | D27: FEHIDRO - Cobrança estadual | H27: 250000 | N27: 300000
A28: =Financeiro[[#This Row],[ID Ação]]&Financeiro[[#This Row],[Fonte]] -> RB372025FEHIDRO - Cobrança estadual | B28: =IFERROR(INDEX(IdentAcoes[ID Ação],MATCH(0,INDEX(--(COUNTIF(B$1:B27,IdentAcoes[ID Ação])=IdentAcoes[[Quantidade de fontes de recursos ]]),0),0)),"") -> RB372025 | C28: =IFERROR(INDEX(IdentAcoes[Descrição da ação],MATCH(0,INDEX(--(COUNTIF(C$1:C27,IdentAcoes[Descrição da ação])=IdentAcoes[[Quantidade de fontes de recursos ]]),0),0)),"") -> Oficinas de capacitação em recursos hídricos para educadores com sinergia ao currículo paulista | D28: FEHIDRO - Cobrança estadual | H28: 220000 | K28: 220000
A29: =Financeiro[[#This Row],[ID Ação]]&Financeiro[[#This Row],[Fonte]] -> RB382026Tesouro do Estado | B29: =IFERROR(INDEX(IdentAcoes[ID Ação],MATCH(0,INDEX(--(COUNTIF(B$1:B28,IdentAcoes[ID Ação])=IdentAcoes[[Quantidade de fontes de recursos ]]),0),0)),"") -> RB382026 | C29: =IFERROR(INDEX(IdentAcoes[Descrição da ação],MATCH(0,INDEX(--(COUNTIF(C$1:C28,IdentAcoes[Descrição da ação])=IdentAcoes[[Quantidade de fontes de recursos ]]),0),0)),"") -> Instalação de uma sala com equipamentos de informática e multimídia, para o funcionamento da CT-APRM-AJSL | D29: Tesouro do Estado | K29: 350000
A30: =Financeiro[[#This Row],[ID Ação]]&Financeiro[[#This Row],[Fonte]] -> RB392026FEHIDRO - Cobrança estadual | B30: =IFERROR(INDEX(IdentAcoes[ID Ação],MATCH(0,INDEX(--(COUNTIF(B$1:B29,IdentAcoes[ID Ação])=IdentAcoes[[Quantidade de fontes de recursos ]]),0),0)),"") -> RB392026 | C30: =IFERROR(INDEX(IdentAcoes[Descrição da ação],MATCH(0,INDEX(--(COUNTIF(C$1:C29,IdentAcoes[Descrição da ação])=IdentAcoes[[Quantidade de fontes de recursos ]]),0),0)),"") -> Divulgação na mídia regional e palestras de conscientização/orientação aos produtores rurais sobre o uso adequado de agrotóxicos e o manejo e recolhimento das embalagens de agrotóxico | D30: FEHIDRO - Cobrança estadual | K30: 160000
A31: =Financeiro[[#This Row],[ID Ação]]&Financeiro[[#This Row],[Fonte]] -> RB402027FEHIDRO - Cobrança estadual | B31: =IFERROR(INDEX(IdentAcoes[ID Ação],MATCH(0,INDEX(--(COUNTIF(B$1:B30,IdentAcoes[ID Ação])=IdentAcoes[[Quantidade de fontes de recursos ]]),0),0)),"") -> RB402027 | C31: =IFERROR(INDEX(IdentAcoes[Descrição da ação],MATCH(0,INDEX(--(COUNTIF(C$1:C30,IdentAcoes[Descrição da ação])=IdentAcoes[[Quantidade de fontes de recursos ]]),0),0)),"") -> Realizar o diagnóstico da situação atual dos corpos de água da UGRHI 11 | D31: FEHIDRO - Cobrança estadual | N31: 350000
A32: =Financeiro[[#This Row],[ID Ação]]&Financeiro[[#This Row],[Fonte]] ->  | B32: =IFERROR(INDEX(IdentAcoes[ID Ação],MATCH(0,INDEX(--(COUNTIF(B$1:B31,IdentAcoes[ID Ação])=IdentAcoes[[Quantidade de fontes de recursos ]]),0),0)),"") ->  | C32: =IFERROR(INDEX(IdentAcoes[Descrição da ação],MATCH(0,INDEX(--(COUNTIF(C$1:C31,IdentAcoes[Descrição da ação])=IdentAcoes[[Quantidade de fontes de recursos ]]),0),0)),"") -> 
A33: =Financeiro[[#This Row],[ID Ação]]&Financeiro[[#This Row],[Fonte]] ->  | B33: =IFERROR(INDEX(IdentAcoes[ID Ação],MATCH(0,INDEX(--(COUNTIF(B$1:B32,IdentAcoes[ID Ação])=IdentAcoes[[Quantidade de fontes de recursos ]]),0),0)),"") ->  | C33: =IFERROR(INDEX(IdentAcoes[Descrição da ação],MATCH(0,INDEX(--(COUNTIF(C$1:C32,IdentAcoes[Descrição da ação])=IdentAcoes[[Quantidade de fontes de recursos ]]),0),0)),"") -> 
A34: =Financeiro[[#This Row],[ID Ação]]&Financeiro[[#This Row],[Fonte]] ->  | B34: =IFERROR(INDEX(IdentAcoes[ID Ação],MATCH(0,INDEX(--(COUNTIF(B$1:B33,IdentAcoes[ID Ação])=IdentAcoes[[Quantidade de fontes de recursos ]]),0),0)),"") ->  | C34: =IFERROR(INDEX(IdentAcoes[Descrição da ação],MATCH(0,INDEX(--(COUNTIF(C$1:C33,IdentAcoes[Descrição da ação])=IdentAcoes[[Quantidade de fontes de recursos ]]),0),0)),"") -> 
A35: =Financeiro[[#This Row],[ID Ação]]&Financeiro[[#This Row],[Fonte]] ->  | B35: =IFERROR(INDEX(IdentAcoes[ID Ação],MATCH(0,INDEX(--(COUNTIF(B$1:B34,IdentAcoes[ID Ação])=IdentAcoes[[Quantidade de fontes de recursos ]]),0),0)),"") ->  | C35: =IFERROR(INDEX(IdentAcoes[Descrição da ação],MATCH(0,INDEX(--(COUNTIF(C$1:C34,IdentAcoes[Descrição da ação])=IdentAcoes[[Quantidade de fontes de recursos ]]),0),0)),"") -> 
A36: =Financeiro[[#This Row],[ID Ação]]&Financeiro[[#This Row],[Fonte]] ->  | B36: =IFERROR(INDEX(IdentAcoes[ID Ação],MATCH(0,INDEX(--(COUNTIF(B$1:B35,IdentAcoes[ID Ação])=IdentAcoes[[Quantidade de fontes de recursos ]]),0),0)),"") ->  | C36: =IFERROR(INDEX(IdentAcoes[Descrição da ação],MATCH(0,INDEX(--(COUNTIF(C$1:C35,IdentAcoes[Descrição da ação])=IdentAcoes[[Quantidade de fontes de recursos ]]),0),0)),"") -> 
A37: =Financeiro[[#This Row],[ID Ação]]&Financeiro[[#This Row],[Fonte]] ->  | B37: =IFERROR(INDEX(IdentAcoes[ID Ação],MATCH(0,INDEX(--(COUNTIF(B$1:B36,IdentAcoes[ID Ação])=IdentAcoes[[Quantidade de fontes de recursos ]]),0),0)),"") ->  | C37: =IFERROR(INDEX(IdentAcoes[Descrição da ação],MATCH(0,INDEX(--(COUNTIF(C$1:C36,IdentAcoes[Descrição da ação])=IdentAcoes[[Quantidade de fontes de recursos ]]),0),0)),"") -> 
A38: =Financeiro[[#This Row],[ID Ação]]&Financeiro[[#This Row],[Fonte]] ->  | B38: =IFERROR(INDEX(IdentAcoes[ID Ação],MATCH(0,INDEX(--(COUNTIF(B$1:B37,IdentAcoes[ID Ação])=IdentAcoes[[Quantidade de fontes de recursos ]]),0),0)),"") ->  | C38: =IFERROR(INDEX(IdentAcoes[Descrição da ação],MATCH(0,INDEX(--(COUNTIF(C$1:C37,IdentAcoes[Descrição da ação])=IdentAcoes[[Quantidade de fontes de recursos ]]),0),0)),"") -> 
A39: =Financeiro[[#This Row],[ID Ação]]&Financeiro[[#This Row],[Fonte]] ->  | B39: =IFERROR(INDEX(IdentAcoes[ID Ação],MATCH(0,INDEX(--(COUNTIF(B$1:B38,IdentAcoes[ID Ação])=IdentAcoes[[Quantidade de fontes de recursos ]]),0),0)),"") ->  | C39: =IFERROR(INDEX(IdentAcoes[Descrição da ação],MATCH(0,INDEX(--(COUNTIF(C$1:C38,IdentAcoes[Descrição da ação])=IdentAcoes[[Quantidade de fontes de recursos ]]),0),0)),"") -> 
A40: =Financeiro[[#This Row],[ID Ação]]&Financeiro[[#This Row],[Fonte]] ->  | B40: =IFERROR(INDEX(IdentAcoes[ID Ação],MATCH(0,INDEX(--(COUNTIF(B$1:B39,IdentAcoes[ID Ação])=IdentAcoes[[Quantidade de fontes de recursos ]]),0),0)),"") ->  | C40: =IFERROR(INDEX(IdentAcoes[Descrição da ação],MATCH(0,INDEX(--(COUNTIF(C$1:C39,IdentAcoes[Descrição da ação])=IdentAcoes[[Quantidade de fontes de recursos ]]),0),0)),"") -> 
A41: =Financeiro[[#This Row],[ID Ação]]&Financeiro[[#This Row],[Fonte]] ->  | B41: =IFERROR(INDEX(IdentAcoes[ID Ação],MATCH(0,INDEX(--(COUNTIF(B$1:B40,IdentAcoes[ID Ação])=IdentAcoes[[Quantidade de fontes de recursos ]]),0),0)),"") ->  | C41: =IFERROR(INDEX(IdentAcoes[Descrição da ação],MATCH(0,INDEX(--(COUNTIF(C$1:C40,IdentAcoes[Descrição da ação])=IdentAcoes[[Quantidade de fontes de recursos ]]),0),0)),"") -> 
A42: =Financeiro[[#This Row],[ID Ação]]&Financeiro[[#This Row],[Fonte]] ->  | B42: =IFERROR(INDEX(IdentAcoes[ID Ação],MATCH(0,INDEX(--(COUNTIF(B$1:B41,IdentAcoes[ID Ação])=IdentAcoes[[Quantidade de fontes de recursos ]]),0),0)),"") ->  | C42: =IFERROR(INDEX(IdentAcoes[Descrição da ação],MATCH(0,INDEX(--(COUNTIF(C$1:C41,IdentAcoes[Descrição da ação])=IdentAcoes[[Quantidade de fontes de recursos ]]),0),0)),"") -> 
A43: =Financeiro[[#This Row],[ID Ação]]&Financeiro[[#This Row],[Fonte]] ->  | B43: =IFERROR(INDEX(IdentAcoes[ID Ação],MATCH(0,INDEX(--(COUNTIF(B$1:B42,IdentAcoes[ID Ação])=IdentAcoes[[Quantidade de fontes de recursos ]]),0),0)),"") ->  | C43: =IFERROR(INDEX(IdentAcoes[Descrição da ação],MATCH(0,INDEX(--(COUNTIF(C$1:C42,IdentAcoes[Descrição da ação])=IdentAcoes[[Quantidade de fontes de recursos ]]),0),0)),"") -> 
A44: =Financeiro[[#This Row],[ID Ação]]&Financeiro[[#This Row],[Fonte]] ->  | B44: =IFERROR(INDEX(IdentAcoes[ID Ação],MATCH(0,INDEX(--(COUNTIF(B$1:B43,IdentAcoes[ID Ação])=IdentAcoes[[Quantidade de fontes de recursos ]]),0),0)),"") ->  | C44: =IFERROR(INDEX(IdentAcoes[Descrição da ação],MATCH(0,INDEX(--(COUNTIF(C$1:C43,IdentAcoes[Descrição da ação])=IdentAcoes[[Quantidade de fontes de recursos ]]),0),0)),"") -> 
A45: =Financeiro[[#This Row],[ID Ação]]&Financeiro[[#This Row],[Fonte]] ->  | B45: =IFERROR(INDEX(IdentAcoes[ID Ação],MATCH(0,INDEX(--(COUNTIF(B$1:B44,IdentAcoes[ID Ação])=IdentAcoes[[Quantidade de fontes de recursos ]]),0),0)),"") ->  | C45: =IFERROR(INDEX(IdentAcoes[Descrição da ação],MATCH(0,INDEX(--(COUNTIF(C$1:C44,IdentAcoes[Descrição da ação])=IdentAcoes[[Quantidade de fontes de recursos ]]),0),0)),"") -> 
A46: =Financeiro[[#This Row],[ID Ação]]&Financeiro[[#This Row],[Fonte]] ->  | B46: =IFERROR(INDEX(IdentAcoes[ID Ação],MATCH(0,INDEX(--(COUNTIF(B$1:B45,IdentAcoes[ID Ação])=IdentAcoes[[Quantidade de fontes de recursos ]]),0),0)),"") ->  | C46: =IFERROR(INDEX(IdentAcoes[Descrição da ação],MATCH(0,INDEX(--(COUNTIF(C$1:C45,IdentAcoes[Descrição da ação])=IdentAcoes[[Quantidade de fontes de recursos ]]),0),0)),"") -> 
A47: =Financeiro[[#This Row],[ID Ação]]&Financeiro[[#This Row],[Fonte]] ->  | B47: =IFERROR(INDEX(IdentAcoes[ID Ação],MATCH(0,INDEX(--(COUNTIF(B$1:B46,IdentAcoes[ID Ação])=IdentAcoes[[Quantidade de fontes de recursos ]]),0),0)),"") ->  | C47: =IFERROR(INDEX(IdentAcoes[Descrição da ação],MATCH(0,INDEX(--(COUNTIF(C$1:C46,IdentAcoes[Descrição da ação])=IdentAcoes[[Quantidade de fontes de recursos ]]),0),0)),"") -> 
A48: =Financeiro[[#This Row],[ID Ação]]&Financeiro[[#This Row],[Fonte]] ->  | B48: =IFERROR(INDEX(IdentAcoes[ID Ação],MATCH(0,INDEX(--(COUNTIF(B$1:B47,IdentAcoes[ID Ação])=IdentAcoes[[Quantidade de fontes de recursos ]]),0),0)),"") ->  | C48: =IFERROR(INDEX(IdentAcoes[Descrição da ação],MATCH(0,INDEX(--(COUNTIF(C$1:C47,IdentAcoes[Descrição da ação])=IdentAcoes[[Quantidade de fontes de recursos ]]),0),0)),"") -> 
A49: =Financeiro[[#This Row],[ID Ação]]&Financeiro[[#This Row],[Fonte]] ->  | B49: =IFERROR(INDEX(IdentAcoes[ID Ação],MATCH(0,INDEX(--(COUNTIF(B$1:B48,IdentAcoes[ID Ação])=IdentAcoes[[Quantidade de fontes de recursos ]]),0),0)),"") ->  | C49: =IFERROR(INDEX(IdentAcoes[Descrição da ação],MATCH(0,INDEX(--(COUNTIF(C$1:C48,IdentAcoes[Descrição da ação])=IdentAcoes[[Quantidade de fontes de recursos ]]),0),0)),"") -> 
A50: =Financeiro[[#This Row],[ID Ação]]&Financeiro[[#This Row],[Fonte]] ->  | B50: =IFERROR(INDEX(IdentAcoes[ID Ação],MATCH(0,INDEX(--(COUNTIF(B$1:B49,IdentAcoes[ID Ação])=IdentAcoes[[Quantidade de fontes de recursos ]]),0),0)),"") ->  | C50: =IFERROR(INDEX(IdentAcoes[Descrição da ação],MATCH(0,INDEX(--(COUNTIF(C$1:C49,IdentAcoes[Descrição da ação])=IdentAcoes[[Quantidade de fontes de recursos ]]),0),0)),"") -> 

Sheet PAPI 2024-2027
F1: R$ Planejado
A2: id_ação_Fonte_oculta | B2: ID Ação | C2: Descrição da ação | D2: Meta | E2: Fonte | F2: 2024 | G2: 2025 | H2: 2026 | I2: 2027 | J2: Total | K2: SubPDC | L2: Prioridade do PDC | M2: Segmento do executor | N2: Área de abrangência | O2: Nome da área de abrangência
A3: =IF(INDEX(Financeiro[],,1)=0,"",(INDEX(Financeiro[],,1))) -> RB012024FEHIDRO - Cobrança estadual | B3: =IF(INDEX(Financeiro[],,2)=0,"",(INDEX(Financeiro[],,2))) -> RB012024 | C3: =INDEX(Financeiro[Descrição da ação],MATCH(B3,Financeiro[ID Ação], 0)) -> Revisão/atualização de Plano com pelo menos 15 anos de existência | D3: =IF(INDEX('Acompanhamento das metas 24-27'!$C$2:$C$50,MATCH(B3,'Acompanhamento das metas 24-27'!$A$2:$A$50,0))<>0,INDEX('Acompanhamento das metas 24-27'!$C$2:$C$50,MATCH(B3,'Acompanhamento das metas 24-27'!$A$2:$A$50,0)),"") -> Revisão/atualização de 9 Planos de Macrodrenagem até 2027 | E3: =IF(VLOOKUP(A3,Financeiro[[id_ação_Fonte_oculta]:[R$ Executado (2027)]],4,FALSE)=0,"",VLOOKUP(A3,Financeiro[[id_ação_Fonte_oculta]:[R$ Executado (2027)]],4,FALSE)) -> FEHIDRO - Cobrança estadual | F3: =IF(VLOOKUP(A3,Financeiro[[id_ação_Fonte_oculta]:[R$ Executado (2027)]],4,FALSE)=0,"",VLOOKUP(A3,Financeiro[[id_ação_Fonte_oculta]:[R$ Executado (2027)]],5,FALSE)) -> 300000 | G3: =IF(VLOOKUP(A3,Financeiro[[id_ação_Fonte_oculta]:[R$ Executado (2027)]],4,FALSE)=0,"",VLOOKUP(A3,Financeiro[[id_ação_Fonte_oculta]:[R$ Executado (2027)]],8,FALSE)) -> 500000 | H3: =IF(VLOOKUP(A3,Financeiro[[id_ação_Fonte_oculta]:[R$ Executado (2027)]],4,FALSE)=0,"",VLOOKUP(A3,Financeiro[[id_ação_Fonte_oculta]:[R$ Executado (2027)]],11,FALSE)) -> 400000 | I3: =IF(VLOOKUP(A3,Financeiro[[id_ação_Fonte_oculta]:[R$ Executado (2027)]],4,FALSE)=0,"",VLOOKUP(A3,Financeiro[[id_ação_Fonte_oculta]:[R$ Executado (2027)]],14,FALSE)) -> 450000 | J3: =SUM(F3:I3) -> 1650000 | K3: =IFERROR(INDEX(IdentAcoes[SubPDC],MATCH(B3,IdentAcoes[ID Ação],0)),"") -> 1.2 - Planejamento | L3: =IFERROR(INDEX(IdentAcoes[Prioridade do PDC],MATCH($B3,IdentAcoes[ID Ação],0)),"") -> PDC 1 e 2 | M3: =IFERROR(INDEX(IdentAcoes[Segmento do executor],MATCH($B3,IdentAcoes[ID Ação],0)),"") -> Sociedade Civil | N3: =IFERROR(INDEX(IdentAcoes[Área de abrangência],MATCH($B3,IdentAcoes[ID Ação],0)),"") -> UGRHI | O3: =IFERROR(INDEX(IdentAcoes[Detalhamento da área de abrangência],MATCH($B3,IdentAcoes[ID Ação],0)),"") -> Municípios
A4: RB022024Tesouro do Estado | B4: RB022024 | C4: =INDEX(Financeiro[Descrição da ação],MATCH(B4,Financeiro[ID Ação], 0)) -> Desenvolver projetos executivos de microdrenagem para os municípios da UGRHI 11 | D4: =IF(INDEX('Acompanhamento das metas 24-27'!$C$2:$C$50,MATCH(B4,'Acompanhamento das metas 24-27'!$A$2:$A$50,0))<>0,INDEX('Acompanhamento das metas 24-27'!$C$2:$C$50,MATCH(B4,'Acompanhamento das metas 24-27'!$A$2:$A$50,0)),"") -> Elaborar 8 projetos de microdrenagem até 2027 | E4: =IF(VLOOKUP(A4,Financeiro[[id_ação_Fonte_oculta]:[R$ Executado (2027)]],4,FALSE)=0,"",VLOOKUP(A4,Financeiro[[id_ação_Fonte_oculta]:[R$ Executado (2027)]],4,FALSE)) -> Tesouro do Estado | F4: =IF(VLOOKUP(A4,Financeiro[[id_ação_Fonte_oculta]:[R$ Executado (2027)]],4,FALSE)=0,"",VLOOKUP(A4,Financeiro[[id_ação_Fonte_oculta]:[R$ Executado (2027)]],5,FALSE)) -> 300000 | G4: =IF(VLOOKUP(A4,Financeiro[[id_ação_Fonte_oculta]:[R$ Executado (2027)]],4,FALSE)=0,"",VLOOKUP(A4,Financeiro[[id_ação_Fonte_oculta]:[R$ Executado (2027)]],8,FALSE)) -> 350000 | H4: =IF(VLOOKUP(A4,Financeiro[[id_ação_Fonte_oculta]:[R$ Executado (2027)]],4,FALSE)=0,"",VLOOKUP(A4,Financeiro[[id_ação_Fonte_oculta]:[R$ Executado (2027)]],11,FALSE)) -> 400000 | I4: =IF(VLOOKUP(A4,Financeiro[[id_ação_Fonte_oculta]:[R$ Executado (2027)]],4,FALSE)=0,"",VLOOKUP(A4,Financeiro[[id_ação_Fonte_oculta]:[R$ Executado (2027)]],14,FALSE)) -> 450000 | J4: =SUM(F4:I4) -> 1500000 | K4: =IFERROR(INDEX(IdentAcoes[SubPDC],MATCH(B4,IdentAcoes[ID Ação],0)),"") -> 1.2 - Planejamento | L4: =IFERROR(INDEX(IdentAcoes[Prioridade do PDC],MATCH(B4,IdentAcoes[ID Ação],0)),"") -> PDC 1 e 2 | M4: =IFERROR(INDEX(IdentAcoes[Segmento do executor],MATCH($B4,IdentAcoes[ID Ação],0)),"") -> Município | N4: =IFERROR(INDEX(IdentAcoes[Área de abrangência],MATCH($B4,IdentAcoes[ID Ação],0)),"") -> UGRHI | O4: =IFERROR(INDEX(IdentAcoes[Detalhamento da área de abrangência],MATCH($B4,IdentAcoes[ID Ação],0)),"") -> Municípios
A5: RB032024FEHIDRO - Cobrança estadual | B5: RB032024 | C5: =INDEX(Financeiro[Descrição da ação],MATCH(B5,Financeiro[ID Ação], 0)) -> Elaborar ou Revisar os Planos Municipais de Resíduos Sólidos | D5: =IF(INDEX('Acompanhamento das metas 24-27'!$C$2:$C$50,MATCH(B5,'Acompanhamento das metas 24-27'!$A$2:$A$50,0))<>0,INDEX('Acompanhamento das metas 24-27'!$C$2:$C$50,MATCH(B5,'Acompanhamento das metas 24-27'!$A$2:$A$50,0)),"") -> Elaborar e implantar 8 Planos Municipais de Resíduos Sólidos até 2027 | E5: =IF(VLOOKUP(A5,Financeiro[[id_ação_Fonte_oculta]:[R$ Executado (2027)]],4,FALSE)=0,"",VLOOKUP(A5,Financeiro[[id_ação_Fonte_oculta]:[R$ Executado (2027)]],4,FALSE)) -> FEHIDRO - Cobrança estadual | F5: =IF(VLOOKUP(A5,Financeiro[[id_ação_Fonte_oculta]:[R$ Executado (2027)]],4,FALSE)=0,"",VLOOKUP(A5,Financeiro[[id_ação_Fonte_oculta]:[R$ Executado (2027)]],5,FALSE)) -> 300000 | G5: =IF(VLOOKUP(A5,Financeiro[[id_ação_Fonte_oculta]:[R$ Executado (2027)]],4,FALSE)=0,"",VLOOKUP(A5,Financeiro[[id_ação_Fonte_oculta]:[R$ Executado (2027)]],8,FALSE)) -> 350000 | H5: =IF(VLOOKUP(A5,Financeiro[[id_ação_Fonte_oculta]:[R$ Executado (2027)]],4,FALSE)=0,"",VLOOKUP(A5,Financeiro[[id_ação_Fonte_oculta]:[R$ Executado (2027)]],11,FALSE)) -> 400000 | I5: =IF(VLOOKUP(A5,Financeiro[[id_ação_Fonte_oculta]:[R$ Executado (2027)]],4,FALSE)=0,"",VLOOKUP(A5,Financeiro[[id_ação_Fonte_oculta]:[R$ Executado (2027)]],14,FALSE)) -> 450000 | J5: 1500000 | K5: =IFERROR(INDEX(IdentAcoes[SubPDC],MATCH(B5,IdentAcoes[ID Ação],0)),"") -> 1.2 - Planejamento | L5: =IFERROR(INDEX(IdentAcoes[Prioridade do PDC],MATCH(B5,IdentAcoes[ID Ação],0)),"") -> PDC 1 e 2 | M5: =IFERROR(INDEX(IdentAcoes[Segmento do executor],MATCH($B5,IdentAcoes[ID Ação],0)),"") -> Sociedade Civil | N5: =IFERROR(INDEX(IdentAcoes[Área de abrangência],MATCH($B5,IdentAcoes[ID Ação],0)),"") -> UGRHI | O5: =IFERROR(INDEX(IdentAcoes[Detalhamento da área de abrangência],MATCH($B5,IdentAcoes[ID Ação],0)),"") -> Municípios
A6: RB042024FEHIDRO - Cobrança estadual | B6: RB042024 | C6: =INDEX(Financeiro[Descrição da ação],MATCH(B6,Financeiro[ID Ação], 0)) -> Revisao do mapeamento das áreas de risco e do Plano Municipal de Defesa Civil, realizado há mais de 5 anos, com indicaçoes de ações estruturais e não estruturais | D6: =IF(INDEX('Acompanhamento das metas 24-27'!$C$2:$C$50,MATCH(B6,'Acompanhamento das metas 24-27'!$A$2:$A$50,0))<>0,INDEX('Acompanhamento das metas 24-27'!$C$2:$C$50,MATCH(B6,'Acompanhamento das metas 24-27'!$A$2:$A$50,0)),"") -> Revisão/atualização de 12 Planos Municipais de Defesa Civil até 2027 | E6: =IF(VLOOKUP(A6,Financeiro[[id_ação_Fonte_oculta]:[R$ Executado (2027)]],4,FALSE)=0,"",VLOOKUP(A6,Financeiro[[id_ação_Fonte_oculta]:[R$ Executado (2027)]],4,FALSE)) -> FEHIDRO - Cobrança estadual | F6: =IF(VLOOKUP(A6,Financeiro[[id_ação_Fonte_oculta]:[R$ Executado (2027)]],4,FALSE)=0,"",VLOOKUP(A6,Financeiro[[id_ação_Fonte_oculta]:[R$ Executado (2027)]],5,FALSE)) -> 350000 | G6: =IF(VLOOKUP(A6,Financeiro[[id_ação_Fonte_oculta]:[R$ Executado (2027)]],4,FALSE)=0,"",VLOOKUP(A6,Financeiro[[id_ação_Fonte_oculta]:[R$ Executado (2027)]],8,FALSE)) -> 375000 | H6: =IF(VLOOKUP(A6,Financeiro[[id_ação_Fonte_oculta]:[R$ Executado (2027)]],4,FALSE)=0,"",VLOOKUP(A6,Financeiro[[id_ação_Fonte_oculta]:[R$ Executado (2027)]],11,FALSE)) -> 400000 | I6: =IF(VLOOKUP(A6,Financeiro[[id_ação_Fonte_oculta]:[R$ Executado (2027)]],4,FALSE)=0,"",VLOOKUP(A6,Financeiro[[id_ação_Fonte_oculta]:[R$ Executado (2027)]],14,FALSE)) -> 450000 | J6: 1575000 | K6: =IFERROR(INDEX(IdentAcoes[SubPDC],MATCH(B6,IdentAcoes[ID Ação],0)),"") -> 1.2 - Planejamento | L6: =IFERROR(INDEX(IdentAcoes[Prioridade do PDC],MATCH(B6,IdentAcoes[ID Ação],0)),"") -> PDC 1 e 2 | M6: =IFERROR(INDEX(IdentAcoes[Segmento do executor],MATCH($B6,IdentAcoes[ID Ação],0)),"") -> Sociedade Civil | N6: =IFERROR(INDEX(IdentAcoes[Área de abrangência],MATCH($B6,IdentAcoes[ID Ação],0)),"") -> UGRHI | O6: =IFERROR(INDEX(IdentAcoes[Detalhamento da área de abrangência],MATCH($B6,IdentAcoes[ID Ação],0)),"") -> Municípios
A7: RB062024FEHIDRO - Cobrança estadual | B7: RB062024 | C7: =INDEX(Financeiro[Descrição da ação],MATCH(B7,Financeiro[ID Ação], 0)) -> Manutenção, ampliação de funcionalidades do SIG-RB, com atualização de base de dados e informaçoes (repositório) | D7: =IF(INDEX('Acompanhamento das metas 24-27'!$C$2:$C$50,MATCH(B7,'Acompanhamento das metas 24-27'!$A$2:$A$50,0))<>0,INDEX('Acompanhamento das metas 24-27'!$C$2:$C$50,MATCH(B7,'Acompanhamento das metas 24-27'!$A$2:$A$50,0)),"") -> Manutenção do Sistema de Informações Geográficas com atualização tecnológica do sistema operacional até 2027 | E7: =IF(VLOOKUP(A7,Financeiro[[id_ação_Fonte_oculta]:[R$ Executado (2027)]],4,FALSE)=0,"",VLOOKUP(A7,Financeiro[[id_ação_Fonte_oculta]:[R$ Executado (2027)]],4,FALSE)) -> FEHIDRO - Cobrança estadual | F7: =IF(VLOOKUP(A7,Financeiro[[id_ação_Fonte_oculta]:[R$ Executado (2027)]],4,FALSE)=0,"",VLOOKUP(A7,Financeiro[[id_ação_Fonte_oculta]:[R$ Executado (2027)]],5,FALSE)) -> 300000 | G7: =IF(VLOOKUP(A7,Financeiro[[id_ação_Fonte_oculta]:[R$ Executado (2027)]],4,FALSE)=0,"",VLOOKUP(A7,Financeiro[[id_ação_Fonte_oculta]:[R$ Executado (2027)]],8,FALSE)) -> 315000 | H7: =IF(VLOOKUP(A7,Financeiro[[id_ação_Fonte_oculta]:[R$ Executado (2027)]],4,FALSE)=0,"",VLOOKUP(A7,Financeiro[[id_ação_Fonte_oculta]:[R$ Executado (2027)]],11,FALSE)) -> 330000 | I7: =IF(VLOOKUP(A7,Financeiro[[id_ação_Fonte_oculta]:[R$ Executado (2027)]],4,FALSE)=0,"",VLOOKUP(A7,Financeiro[[id_ação_Fonte_oculta]:[R$ Executado (2027)]],14,FALSE)) -> 345000 | J7: 1290000 | K7: =IFERROR(INDEX(IdentAcoes[SubPDC],MATCH(B7,IdentAcoes[ID Ação],0)),"") -> 1.2 - Planejamento | L7: =IFERROR(INDEX(IdentAcoes[Prioridade do PDC],MATCH(B7,IdentAcoes[ID Ação],0)),"") -> PDC 1 e 2 | M7: =IFERROR(INDEX(IdentAcoes[Segmento do executor],MATCH($B7,IdentAcoes[ID Ação],0)),"") -> Sociedade Civil | N7: =IFERROR(INDEX(IdentAcoes[Área de abrangência],MATCH($B7,IdentAcoes[ID Ação],0)),"") -> Outra | O7: =IFERROR(INDEX(IdentAcoes[Detalhamento da área de abrangência],MATCH($B7,IdentAcoes[ID Ação],0)),"") -> 0
A8: RB082024Tesouro do Estado | B8: RB082024 | C8: =INDEX(Financeiro[Descrição da ação],MATCH(B8,Financeiro[ID Ação], 0)) -> Realizar estudo sobre a atividade de mineração de areia no Vale do Ribeira | D8: =IF(INDEX('Acompanhamento das metas 24-27'!$C$2:$C$50,MATCH(B8,'Acompanhamento das metas 24-27'!$A$2:$A$50,0))<>0,INDEX('Acompanhamento das metas 24-27'!$C$2:$C$50,MATCH(B8,'Acompanhamento das metas 24-27'!$A$2:$A$50,0)),"") -> Realizar 1 estudo contemplando as áreas críticas na área de abrangência em 2024 | E8: =IF(VLOOKUP(A8,Financeiro[[id_ação_Fonte_oculta]:[R$ Executado (2027)]],4,FALSE)=0,"",VLOOKUP(A8,Financeiro[[id_ação_Fonte_oculta]:[R$ Executado (2027)]],4,FALSE)) -> Tesouro do Estado | F8: =IF(VLOOKUP(A8,Financeiro[[id_ação_Fonte_oculta]:[R$ Executado (2027)]],4,FALSE)=0,"",VLOOKUP(A8,Financeiro[[id_ação_Fonte_oculta]:[R$ Executado (2027)]],5,FALSE)) -> 200000 | G8: =IF(VLOOKUP(A8,Financeiro[[id_ação_Fonte_oculta]:[R$ Executado (2027)]],4,FALSE)=0,"",VLOOKUP(A8,Financeiro[[id_ação_Fonte_oculta]:[R$ Executado (2027)]],8,FALSE)) -> 0 | H8: =IF(VLOOKUP(A8,Financeiro[[id_ação_Fonte_oculta]:[R$ Executado (2027)]],4,FALSE)=0,"",VLOOKUP(A8,Financeiro[[id_ação_Fonte_oculta]:[R$ Executado (2027)]],11,FALSE)) -> 0 | I8: =IF(VLOOKUP(A8,Financeiro[[id_ação_Fonte_oculta]:[R$ Executado (2027)]],4,FALSE)=0,"",VLOOKUP(A8,Financeiro[[id_ação_Fonte_oculta]:[R$ Executado (2027)]],14,FALSE)) -> 0 | J8: 200000 | K8: =IFERROR(INDEX(IdentAcoes[SubPDC],MATCH(B8,IdentAcoes[ID Ação],0)),"") -> 1.2 - Planejamento | L8: =IFERROR(INDEX(IdentAcoes[Prioridade do PDC],MATCH(B8,IdentAcoes[ID Ação],0)),"") -> PDC 1 e 2 | M8: =IFERROR(INDEX(IdentAcoes[Segmento do executor],MATCH($B8,IdentAcoes[ID Ação],0)),"") -> Estado | N8: =IFERROR(INDEX(IdentAcoes[Área de abrangência],MATCH($B8,IdentAcoes[ID Ação],0)),"") -> Sub-bacia | O8: =IFERROR(INDEX(IdentAcoes[Detalhamento da área de abrangência],MATCH($B8,IdentAcoes[ID Ação],0)),"") -> Médio e Baixo Ribeira, Juquiá e Jacupiranga
A9: RB092024Tesouro do Estado | B9: RB092024 | C9: =INDEX(Financeiro[Descrição da ação],MATCH(B9,Financeiro[ID Ação], 0)) -> Elaborar diagnóstico da situação da Pesca profissional e amadora nos rios do Vale, considerando os aspectos positivos e negativos | D9: =IF(INDEX('Acompanhamento das metas 24-27'!$C$2:$C$50,MATCH(B9,'Acompanhamento das metas 24-27'!$A$2:$A$50,0))<>0,INDEX('Acompanhamento das metas 24-27'!$C$2:$C$50,MATCH(B9,'Acompanhamento das metas 24-27'!$A$2:$A$50,0)),"") -> Realizar 1 diagnóstico da situação da pesca em 2024 | E9: =IF(VLOOKUP(A9,Financeiro[[id_ação_Fonte_oculta]:[R$ Executado (2027)]],4,FALSE)=0,"",VLOOKUP(A9,Financeiro[[id_ação_Fonte_oculta]:[R$ Executado (2027)]],4,FALSE)) -> Tesouro do Estado | F9: =IF(VLOOKUP(A9,Financeiro[[id_ação_Fonte_oculta]:[R$ Executado (2027)]],4,FALSE)=0,"",VLOOKUP(A9,Financeiro[[id_ação_Fonte_oculta]:[R$ Executado (2027)]],5,FALSE)) -> 200000 | G9: =IF(VLOOKUP(A9,Financeiro[[id_ação_Fonte_oculta]:[R$ Executado (2027)]],4,FALSE)=0,"",VLOOKUP(A9,Financeiro[[id_ação_Fonte_oculta]:[R$ Executado (2027)]],8,FALSE)) -> 0 | H9: =IF(VLOOKUP(A9,Financeiro[[id_ação_Fonte_oculta]:[R$ Executado (2027)]],4,FALSE)=0,"",VLOOKUP(A9,Financeiro[[id_ação_Fonte_oculta]:[R$ Executado (2027)]],11,FALSE)) -> 0 | I9: =IF(VLOOKUP(A9,Financeiro[[id_ação_Fonte_oculta]:[R$ Executado (2027)]],4,FALSE)=0,"",VLOOKUP(A9,Financeiro[[id_ação_Fonte_oculta]:[R$ Executado (2027)]],14,FALSE)) -> 0 | J9: 200000 | K9: =IFERROR(INDEX(IdentAcoes[SubPDC],MATCH(B9,IdentAcoes[ID Ação],0)),"") -> 1.2 - Planejamento | L9: =IFERROR(INDEX(IdentAcoes[Prioridade do PDC],MATCH(B9,IdentAcoes[ID Ação],0)),"") -> PDC 1 e 2 | M9: =IFERROR(INDEX(IdentAcoes[Segmento do executor],MATCH($B9,IdentAcoes[ID Ação],0)),"") -> Estado | N9: =IFERROR(INDEX(IdentAcoes[Área de abrangência],MATCH($B9,IdentAcoes[ID Ação],0)),"") -> UGRHI | O9: =IFERROR(INDEX(IdentAcoes[Detalhamento da área de abrangência],MATCH($B9,IdentAcoes[ID Ação],0)),"") -> 0
A10: RB112024FEHIDRO - Cobrança estadual | B10: RB112024 | C10: =INDEX(Financeiro[Descrição da ação],MATCH(B10,Financeiro[ID Ação], 0)) -> Realização de estudos tecnicos para caracterização socioambiental da Bacia do Rio Jacupiranga | E10: =IF(VLOOKUP(A10,Financeiro[[id_ação_Fonte_oculta]:[R$ Executado (2027)]],4,FALSE)=0,"",VLOOKUP(A10,Financeiro[[id_ação_Fonte_oculta]:[R$ Executado (2027)]],4,FALSE)) -> FEHIDRO - Cobrança estadual | F10: =IF(VLOOKUP(A10,Financeiro[[id_ação_Fonte_oculta]:[R$ Executado (2027)]],4,FALSE)=0,"",VLOOKUP(A10,Financeiro[[id_ação_Fonte_oculta]:[R$ Executado (2027)]],5,FALSE)) -> 350000 | G10: =IF(VLOOKUP(A10,Financeiro[[id_ação_Fonte_oculta]:[R$ Executado (2027)]],4,FALSE)=0,"",VLOOKUP(A10,Financeiro[[id_ação_Fonte_oculta]:[R$ Executado (2027)]],8,FALSE)) -> 0 | H10: =IF(VLOOKUP(A10,Financeiro[[id_ação_Fonte_oculta]:[R$ Executado (2027)]],4,FALSE)=0,"",VLOOKUP(A10,Financeiro[[id_ação_Fonte_oculta]:[R$ Executado (2027)]],11,FALSE)) -> 0 | I10: =IF(VLOOKUP(A10,Financeiro[[id_ação_Fonte_oculta]:[R$ Executado (2027)]],4,FALSE)=0,"",VLOOKUP(A10,Financeiro[[id_ação_Fonte_oculta]:[R$ Executado (2027)]],14,FALSE)) -> 0 | J10: 350000 | K10: =IFERROR(INDEX(IdentAcoes[SubPDC],MATCH(B10,IdentAcoes[ID Ação],0)),"") -> 1.2 - Planejamento | L10: =IFERROR(INDEX(IdentAcoes[Prioridade do PDC],MATCH(B10,IdentAcoes[ID Ação],0)),"") -> PDC 1 e 2 | M10: =IFERROR(INDEX(IdentAcoes[Segmento do executor],MATCH($B10,IdentAcoes[ID Ação],0)),"") -> Sociedade Civil | N10: =IFERROR(INDEX(IdentAcoes[Área de abrangência],MATCH($B10,IdentAcoes[ID Ação],0)),"") -> Sub-bacia | O10: =IFERROR(INDEX(IdentAcoes[Detalhamento da área de abrangência],MATCH($B10,IdentAcoes[ID Ação],0)),"") -> Bacia do Rio Jacupiranga
A11: RB132024FEHIDRO - Cobrança estadual | B11: RB132024 | C11: =INDEX(Financeiro[Descrição da ação],MATCH(B11,Financeiro[ID Ação], 0)) -> Elaboração do Relatório de Situação de 2025 e elaboração/atualização do Plano de Bacia com horizonte de planejamento de 12 anos | D11: =IF(INDEX('Acompanhamento das metas 24-27'!$C$2:$C$50,MATCH(B11,'Acompanhamento das metas 24-27'!$A$2:$A$50,0))<>0,INDEX('Acompanhamento das metas 24-27'!$C$2:$C$50,MATCH(B11,'Acompanhamento das metas 24-27'!$A$2:$A$50,0)),"") -> Contratar em 2024 a elaboração Relatório de Situação de 2025 e elaboração/atualização do Plano de Bacia | E11: =IF(VLOOKUP(A11,Financeiro[[id_ação_Fonte_oculta]:[R$ Executado (2027)]],4,FALSE)=0,"",VLOOKUP(A11,Financeiro[[id_ação_Fonte_oculta]:[R$ Executado (2027)]],4,FALSE)) -> FEHIDRO - Cobrança estadual | F11: =IF(VLOOKUP(A11,Financeiro[[id_ação_Fonte_oculta]:[R$ Executado (2027)]],4,FALSE)=0,"",VLOOKUP(A11,Financeiro[[id_ação_Fonte_oculta]:[R$ Executado (2027)]],5,FALSE)) -> 600000 | G11: =IF(VLOOKUP(A11,Financeiro[[id_ação_Fonte_oculta]:[R$ Executado (2027)]],4,FALSE)=0,"",VLOOKUP(A11,Financeiro[[id_ação_Fonte_oculta]:[R$ Executado (2027)]],8,FALSE)) -> 0 | H11: =IF(VLOOKUP(A11,Financeiro[[id_ação_Fonte_oculta]:[R$ Executado (2027)]],4,FALSE)=0,"",VLOOKUP(A11,Financeiro[[id_ação_Fonte_oculta]:[R$ Executado (2027)]],11,FALSE)) -> 0 | I11: =IF(VLOOKUP(A11,Financeiro[[id_ação_Fonte_oculta]:[R$ Executado (2027)]],4,FALSE)=0,"",VLOOKUP(A11,Financeiro[[id_ação_Fonte_oculta]:[R$ Executado (2027)]],14,FALSE)) -> 0 | J11: 600000 | K11: =IFERROR(INDEX(IdentAcoes[SubPDC],MATCH(B11,IdentAcoes[ID Ação],0)),"") -> 2.1 - Plano | L11: =IFERROR(INDEX(IdentAcoes[Prioridade do PDC],MATCH(B11,IdentAcoes[ID Ação],0)),"") -> PDC 1 e 2 | M11: =IFERROR(INDEX(IdentAcoes[Segmento do executor],MATCH($B11,IdentAcoes[ID Ação],0)),"") -> Sociedade Civil | N11: =IFERROR(INDEX(IdentAcoes[Área de abrangência],MATCH($B11,IdentAcoes[ID Ação],0)),"") -> UGRHI | O11: =IFERROR(INDEX(IdentAcoes[Detalhamento da área de abrangência],MATCH($B11,IdentAcoes[ID Ação],0)),"") -> 0
A12: RB162024FEHIDRO - Cobrança estadual | B12: RB162024 | C12: =INDEX(Financeiro[Descrição da ação],MATCH(B12,Financeiro[ID Ação], 0)) -> Contratação e execução de obras de saneamento básico na área rural e urbanizada | D12: =IF(INDEX('Acompanhamento das metas 24-27'!$C$2:$C$50,MATCH(B12,'Acompanhamento das metas 24-27'!$A$2:$A$50,0))<>0,INDEX('Acompanhamento das metas 24-27'!$C$2:$C$50,MATCH(B12,'Acompanhamento das metas 24-27'!$A$2:$A$50,0)),"") -> Implantação de 20 empreendimentos de saneamento na área rural da UGRHI 11 até 2027 | E12: =IF(VLOOKUP(A12,Financeiro[[id_ação_Fonte_oculta]:[R$ Executado (2027)]],4,FALSE)=0,"",VLOOKUP(A12,Financeiro[[id_ação_Fonte_oculta]:[R$ Executado (2027)]],4,FALSE)) -> FEHIDRO - Cobrança estadual | F12: =IF(VLOOKUP(A12,Financeiro[[id_ação_Fonte_oculta]:[R$ Executado (2027)]],4,FALSE)=0,"",VLOOKUP(A12,Financeiro[[id_ação_Fonte_oculta]:[R$ Executado (2027)]],5,FALSE)) -> 2500000 | G12: =IF(VLOOKUP(A12,Financeiro[[id_ação_Fonte_oculta]:[R$ Executado (2027)]],4,FALSE)=0,"",VLOOKUP(A12,Financeiro[[id_ação_Fonte_oculta]:[R$ Executado (2027)]],8,FALSE)) -> 2750000 | H12: =IF(VLOOKUP(A12,Financeiro[[id_ação_Fonte_oculta]:[R$ Executado (2027)]],4,FALSE)=0,"",VLOOKUP(A12,Financeiro[[id_ação_Fonte_oculta]:[R$ Executado (2027)]],11,FALSE)) -> 3000000 | I12: =IF(VLOOKUP(A12,Financeiro[[id_ação_Fonte_oculta]:[R$ Executado (2027)]],4,FALSE)=0,"",VLOOKUP(A12,Financeiro[[id_ação_Fonte_oculta]:[R$ Executado (2027)]],14,FALSE)) -> 3250000 | J12: 11500000 | K12: =IFERROR(INDEX(IdentAcoes[SubPDC],MATCH(B12,IdentAcoes[ID Ação],0)),"") -> 3.1 - Efluentes | L12: =IFERROR(INDEX(IdentAcoes[Prioridade do PDC],MATCH(B12,IdentAcoes[ID Ação],0)),"") -> Prioritário | M12: =IFERROR(INDEX(IdentAcoes[Segmento do executor],MATCH($B12,IdentAcoes[ID Ação],0)),"") -> Município | N12: =IFERROR(INDEX(IdentAcoes[Área de abrangência],MATCH($B12,IdentAcoes[ID Ação],0)),"") -> UGRHI | O12: =IFERROR(INDEX(IdentAcoes[Detalhamento da área de abrangência],MATCH($B12,IdentAcoes[ID Ação],0)),"") -> 0
A13: RB172024FEHIDRO - Cobrança estadual | B13: RB172024 | C13: =INDEX(Financeiro[Descrição da ação],MATCH(B13,Financeiro[ID Ação], 0)) -> Implantar, ampliar ou manter ações de melhoria de gestão de resíduos sólidos, com ênfase na coleta seletiva | D13: =IF(INDEX('Acompanhamento das metas 24-27'!$C$2:$C$50,MATCH(B13,'Acompanhamento das metas 24-27'!$A$2:$A$50,0))<>0,INDEX('Acompanhamento das metas 24-27'!$C$2:$C$50,MATCH(B13,'Acompanhamento das metas 24-27'!$A$2:$A$50,0)),"") -> Implantação ou manutenção de 8 empreendimentos de coleta seletiva nos municípios da UGRHI até 2027 | E13: =IF(VLOOKUP(A13,Financeiro[[id_ação_Fonte_oculta]:[R$ Executado (2027)]],4,FALSE)=0,"",VLOOKUP(A13,Financeiro[[id_ação_Fonte_oculta]:[R$ Executado (2027)]],4,FALSE)) -> FEHIDRO - Cobrança estadual | F13: =IF(VLOOKUP(A13,Financeiro[[id_ação_Fonte_oculta]:[R$ Executado (2027)]],4,FALSE)=0,"",VLOOKUP(A13,Financeiro[[id_ação_Fonte_oculta]:[R$ Executado (2027)]],5,FALSE)) -> 600000 | G13: =IF(VLOOKUP(A13,Financeiro[[id_ação_Fonte_oculta]:[R$ Executado (2027)]],4,FALSE)=0,"",VLOOKUP(A13,Financeiro[[id_ação_Fonte_oculta]:[R$ Executado (2027)]],8,FALSE)) -> 650000 | H13: =IF(VLOOKUP(A13,Financeiro[[id_ação_Fonte_oculta]:[R$ Executado (2027)]],4,FALSE)=0,"",VLOOKUP(A13,Financeiro[[id_ação_Fonte_oculta]:[R$ Executado (2027)]],11,FALSE)) -> 700000 | I13: =IF(VLOOKUP(A13,Financeiro[[id_ação_Fonte_oculta]:[R$ Executado (2027)]],4,FALSE)=0,"",VLOOKUP(A13,Financeiro[[id_ação_Fonte_oculta]:[R$ Executado (2027)]],14,FALSE)) -> 750000 | J13: 2700000 | K13: =IFERROR(INDEX(IdentAcoes[SubPDC],MATCH(B13,IdentAcoes[ID Ação],0)),"") -> 3.3 - Resíduos | L13: =IFERROR(INDEX(IdentAcoes[Prioridade do PDC],MATCH(B13,IdentAcoes[ID Ação],0)),"") -> Prioritário | M13: =IFERROR(INDEX(IdentAcoes[Segmento do executor],MATCH($B13,IdentAcoes[ID Ação],0)),"") -> Município | N13: =IFERROR(INDEX(IdentAcoes[Área de abrangência],MATCH($B13,IdentAcoes[ID Ação],0)),"") -> UGRHI | O13: =IFERROR(INDEX(IdentAcoes[Detalhamento da área de abrangência],MATCH($B13,IdentAcoes[ID Ação],0)),"") -> 0
A14: RB182024FEHIDRO - Cobrança estadual | B14: RB182024 | C14: =INDEX(Financeiro[Descrição da ação],MATCH(B14,Financeiro[ID Ação], 0)) -> Executar obra de Combate a erosão de cursos d'água | D14: =IF(INDEX('Acompanhamento das metas 24-27'!$C$2:$C$50,MATCH(B14,'Acompanhamento das metas 24-27'!$A$2:$A$50,0))<>0,INDEX('Acompanhamento das metas 24-27'!$C$2:$C$50,MATCH(B14,'Acompanhamento das metas 24-27'!$A$2:$A$50,0)),"") -> Realizar 4 Obras e ações de proteção e controle da erosão do solo ou do assoreamento dos corpos d'água até 2027 | E14: =IF(VLOOKUP(A14,Financeiro[[id_ação_Fonte_oculta]:[R$ Executado (2027)]],4,FALSE)=0,"",VLOOKUP(A14,Financeiro[[id_ação_Fonte_oculta]:[R$ Executado (2027)]],4,FALSE)) -> FEHIDRO - Cobrança estadual | F14: =IF(VLOOKUP(A14,Financeiro[[id_ação_Fonte_oculta]:[R$ Executado (2027)]],4,FALSE)=0,"",VLOOKUP(A14,Financeiro[[id_ação_Fonte_oculta]:[R$ Executado (2027)]],5,FALSE)) -> 500000 | G14: =IF(VLOOKUP(A14,Financeiro[[id_ação_Fonte_oculta]:[R$ Executado (2027)]],4,FALSE)=0,"",VLOOKUP(A14,Financeiro[[id_ação_Fonte_oculta]:[R$ Executado (2027)]],8,FALSE)) -> 550000 | H14: =IF(VLOOKUP(A14,Financeiro[[id_ação_Fonte_oculta]:[R$ Executado (2027)]],4,FALSE)=0,"",VLOOKUP(A14,Financeiro[[id_ação_Fonte_oculta]:[R$ Executado (2027)]],11,FALSE)) -> 600000 | I14: =IF(VLOOKUP(A14,Financeiro[[id_ação_Fonte_oculta]:[R$ Executado (2027)]],4,FALSE)=0,"",VLOOKUP(A14,Financeiro[[id_ação_Fonte_oculta]:[R$ Executado (2027)]],14,FALSE)) -> 650000 | J14: 2300000 | K14: =IFERROR(INDEX(IdentAcoes[SubPDC],MATCH(B14,IdentAcoes[ID Ação],0)),"") -> 4.1 - Controle erosão | L14: =IFERROR(INDEX(IdentAcoes[Prioridade do PDC],MATCH(B14,IdentAcoes[ID Ação],0)),"") -> Prioritário | M14: =IFERROR(INDEX(IdentAcoes[Segmento do executor],MATCH($B14,IdentAcoes[ID Ação],0)),"") -> Município | N14: =IFERROR(INDEX(IdentAcoes[Área de abrangência],MATCH($B14,IdentAcoes[ID Ação],0)),"") -> UGRHI | O14: =IFERROR(INDEX(IdentAcoes[Detalhamento da área de abrangência],MATCH($B14,IdentAcoes[ID Ação],0)),"") -> 0
A15: RB192024Outras Fontes | B15: RB192024 | C15: =INDEX(Financeiro[Descrição da ação],MATCH(B15,Financeiro[ID Ação], 0)) -> Execução de obra de combate a erosão e/ou desassoreamento de cursos d'água | D15: =IF(INDEX('Acompanhamento das metas 24-27'!$C$2:$C$50,MATCH(B15,'Acompanhamento das metas 24-27'!$A$2:$A$50,0))<>0,INDEX('Acompanhamento das metas 24-27'!$C$2:$C$50,MATCH(B15,'Acompanhamento das metas 24-27'!$A$2:$A$50,0)),"") -> Realizar 8 Obras de proteção e controle da erosão do solo ou do assoreamento dos corpos d'água até 2027 | E15: =IF(VLOOKUP(A15,Financeiro[[id_ação_Fonte_oculta]:[R$ Executado (2027)]],4,FALSE)=0,"",VLOOKUP(A15,Financeiro[[id_ação_Fonte_oculta]:[R$ Executado (2027)]],4,FALSE)) -> Outras Fontes | F15: =IF(VLOOKUP(A15,Financeiro[[id_ação_Fonte_oculta]:[R$ Executado (2027)]],4,FALSE)=0,"",VLOOKUP(A15,Financeiro[[id_ação_Fonte_oculta]:[R$ Executado (2027)]],5,FALSE)) -> 1000000 | G15: =IF(VLOOKUP(A15,Financeiro[[id_ação_Fonte_oculta]:[R$ Executado (2027)]],4,FALSE)=0,"",VLOOKUP(A15,Financeiro[[id_ação_Fonte_oculta]:[R$ Executado (2027)]],8,FALSE)) -> 1100000 | H15: =IF(VLOOKUP(A15,Financeiro[[id_ação_Fonte_oculta]:[R$ Executado (2027)]],4,FALSE)=0,"",VLOOKUP(A15,Financeiro[[id_ação_Fonte_oculta]:[R$ Executado (2027)]],11,FALSE)) -> 1200000 | I15: =IF(VLOOKUP(A15,Financeiro[[id_ação_Fonte_oculta]:[R$ Executado (2027)]],4,FALSE)=0,"",VLOOKUP(A15,Financeiro[[id_ação_Fonte_oculta]:[R$ Executado (2027)]],14,FALSE)) -> 1300000 | J15: 4600000 | K15: =IFERROR(INDEX(IdentAcoes[SubPDC],MATCH(B15,IdentAcoes[ID Ação],0)),"") -> 4.1 - Controle erosão | L15: =IFERROR(INDEX(IdentAcoes[Prioridade do PDC],MATCH(B15,IdentAcoes[ID Ação],0)),"") -> Prioritário | M15: =IFERROR(INDEX(IdentAcoes[Segmento do executor],MATCH($B15,IdentAcoes[ID Ação],0)),"") -> Município | N15: =IFERROR(INDEX(IdentAcoes[Área de abrangência],MATCH($B15,IdentAcoes[ID Ação],0)),"") -> UGRHI | O15: =IFERROR(INDEX(IdentAcoes[Detalhamento da área de abrangência],MATCH($B15,IdentAcoes[ID Ação],0)),"") -> 0
A16: RB202024FEHIDRO - Cobrança estadual | B16: RB202024 | C16: =INDEX(Financeiro[Descrição da ação],MATCH(B16,Financeiro[ID Ação], 0)) -> Implantar 1 projeto de Pagamento por Serviços Ambientais (PSA) | D16: =IF(INDEX('Acompanhamento das metas 24-27'!$C$2:$C$50,MATCH(B16,'Acompanhamento das metas 24-27'!$A$2:$A$50,0))<>0,INDEX('Acompanhamento das metas 24-27'!$C$2:$C$50,MATCH(B16,'Acompanhamento das metas 24-27'!$A$2:$A$50,0)),"") -> Implantar pelo menos 1 projeto de Pagamentos por Serviços Ambientais - PSA na UGRHI 11 em 2024 | E16: =IF(VLOOKUP(A16,Financeiro[[id_ação_Fonte_oculta]:[R$ Executado (2027)]],4,FALSE)=0,"",VLOOKUP(A16,Financeiro[[id_ação_Fonte_oculta]:[R$ Executado (2027)]],4,FALSE)) -> FEHIDRO - Cobrança estadual | F16: =IF(VLOOKUP(A16,Financeiro[[id_ação_Fonte_oculta]:[R$ Executado (2027)]],4,FALSE)=0,"",VLOOKUP(A16,Financeiro[[id_ação_Fonte_oculta]:[R$ Executado (2027)]],5,FALSE)) -> 360000 | G16: =IF(VLOOKUP(A16,Financeiro[[id_ação_Fonte_oculta]:[R$ Executado (2027)]],4,FALSE)=0,"",VLOOKUP(A16,Financeiro[[id_ação_Fonte_oculta]:[R$ Executado (2027)]],8,FALSE)) -> 0 | H16: =IF(VLOOKUP(A16,Financeiro[[id_ação_Fonte_oculta]:[R$ Executado (2027)]],4,FALSE)=0,"",VLOOKUP(A16,Financeiro[[id_ação_Fonte_oculta]:[R$ Executado (2027)]],11,FALSE)) -> 0 | I16: =IF(VLOOKUP(A16,Financeiro[[id_ação_Fonte_oculta]:[R$ Executado (2027)]],4,FALSE)=0,"",VLOOKUP(A16,Financeiro[[id_ação_Fonte_oculta]:[R$ Executado (2027)]],14,FALSE)) -> 0 | J16: 360000 | K16: =IFERROR(INDEX(IdentAcoes[SubPDC],MATCH(B16,IdentAcoes[ID Ação],0)),"") -> 4.2 - Soluções baseadas Natureza | L16: =IFERROR(INDEX(IdentAcoes[Prioridade do PDC],MATCH(B16,IdentAcoes[ID Ação],0)),"") -> Prioritário | M16: =IFERROR(INDEX(IdentAcoes[Segmento do executor],MATCH($B16,IdentAcoes[ID Ação],0)),"") -> Município | N16: =IFERROR(INDEX(IdentAcoes[Área de abrangência],MATCH($B16,IdentAcoes[ID Ação],0)),"") -> Município | O16: =IFERROR(INDEX(IdentAcoes[Detalhamento da área de abrangência],MATCH($B16,IdentAcoes[ID Ação],0)),"") -> 0
A17: RB212024Tesouro do Estado | B17: RB212024 | C17: =INDEX(Financeiro[Descrição da ação],MATCH(B17,Financeiro[ID Ação], 0)) -> Fomentar a produção agroecológica e orgânica (02 projetos) | D17: =IF(INDEX('Acompanhamento das metas 24-27'!$C$2:$C$50,MATCH(B17,'Acompanhamento das metas 24-27'!$A$2:$A$50,0))<>0,INDEX('Acompanhamento das metas 24-27'!$C$2:$C$50,MATCH(B17,'Acompanhamento das metas 24-27'!$A$2:$A$50,0)),"") -> Elaborar e executar 2 projetos piloto de produção de SAF ou sistema orgânico, com objetivo de formar unidade(s) demonstrativa(s) para fortalecimento e experimentação da técnica na bacia em 2024 e 2026 | E17: =IF(VLOOKUP(A17,Financeiro[[id_ação_Fonte_oculta]:[R$ Executado (2027)]],4,FALSE)=0,"",VLOOKUP(A17,Financeiro[[id_ação_Fonte_oculta]:[R$ Executado (2027)]],4,FALSE)) -> Tesouro do Estado | F17: =IF(VLOOKUP(A17,Financeiro[[id_ação_Fonte_oculta]:[R$ Executado (2027)]],4,FALSE)=0,"",VLOOKUP(A17,Financeiro[[id_ação_Fonte_oculta]:[R$ Executado (2027)]],5,FALSE)) -> 160000 | G17: =IF(VLOOKUP(A17,Financeiro[[id_ação_Fonte_oculta]:[R$ Executado (2027)]],4,FALSE)=0,"",VLOOKUP(A17,Financeiro[[id_ação_Fonte_oculta]:[R$ Executado (2027)]],8,FALSE)) -> 0 | H17: =IF(VLOOKUP(A17,Financeiro[[id_ação_Fonte_oculta]:[R$ Executado (2027)]],4,FALSE)=0,"",VLOOKUP(A17,Financeiro[[id_ação_Fonte_oculta]:[R$ Executado (2027)]],11,FALSE)) -> 180000 | I17: =IF(VLOOKUP(A17,Financeiro[[id_ação_Fonte_oculta]:[R$ Executado (2027)]],4,FALSE)=0,"",VLOOKUP(A17,Financeiro[[id_ação_Fonte_oculta]:[R$ Executado (2027)]],14,FALSE)) -> 0 | J17: 340000 | K17: =IFERROR(INDEX(IdentAcoes[SubPDC],MATCH(B17,IdentAcoes[ID Ação],0)),"") -> 4.2 - Soluções baseadas Natureza | L17: =IFERROR(INDEX(IdentAcoes[Prioridade do PDC],MATCH(B17,IdentAcoes[ID Ação],0)),"") -> Prioritário | M17: =IFERROR(INDEX(IdentAcoes[Segmento do executor],MATCH($B17,IdentAcoes[ID Ação],0)),"") -> Sociedade Civil | N17: =IFERROR(INDEX(IdentAcoes[Área de abrangência],MATCH($B17,IdentAcoes[ID Ação],0)),"") -> UGRHI | O17: =IFERROR(INDEX(IdentAcoes[Detalhamento da área de abrangência],MATCH($B17,IdentAcoes[ID Ação],0)),"") -> 0
A18: RB222024FEHIDRO - Cobrança estadual | B18: RB222024 | C18: =INDEX(Financeiro[Descrição da ação],MATCH(B18,Financeiro[ID Ação], 0)) -> Recuperar as APPs conforme diretrizes dos órgãos competentes | D18: =IF(INDEX('Acompanhamento das metas 24-27'!$C$2:$C$50,MATCH(B18,'Acompanhamento das metas 24-27'!$A$2:$A$50,0))<>0,INDEX('Acompanhamento das metas 24-27'!$C$2:$C$50,MATCH(B18,'Acompanhamento das metas 24-27'!$A$2:$A$50,0)),"") -> Elaborar e executar 1 projeto de recuperação de APPs em 2024 | E18: =IF(VLOOKUP(A18,Financeiro[[id_ação_Fonte_oculta]:[R$ Executado (2027)]],4,FALSE)=0,"",VLOOKUP(A18,Financeiro[[id_ação_Fonte_oculta]:[R$ Executado (2027)]],4,FALSE)) -> FEHIDRO - Cobrança estadual | F18: =IF(VLOOKUP(A18,Financeiro[[id_ação_Fonte_oculta]:[R$ Executado (2027)]],4,FALSE)=0,"",VLOOKUP(A18,Financeiro[[id_ação_Fonte_oculta]:[R$ Executado (2027)]],5,FALSE)) -> 300000 | G18: =IF(VLOOKUP(A18,Financeiro[[id_ação_Fonte_oculta]:[R$ Executado (2027)]],4,FALSE)=0,"",VLOOKUP(A18,Financeiro[[id_ação_Fonte_oculta]:[R$ Executado (2027)]],8,FALSE)) -> 0 | H18: =IF(VLOOKUP(A18,Financeiro[[id_ação_Fonte_oculta]:[R$ Executado (2027)]],4,FALSE)=0,"",VLOOKUP(A18,Financeiro[[id_ação_Fonte_oculta]:[R$ Executado (2027)]],11,FALSE)) -> 0 | I18: =IF(VLOOKUP(A18,Financeiro[[id_ação_Fonte_oculta]:[R$ Executado (2027)]],4,FALSE)=0,"",VLOOKUP(A18,Financeiro[[id_ação_Fonte_oculta]:[R$ Executado (2027)]],14,FALSE)) -> 0 | J18: 300000 | K18: =IFERROR(INDEX(IdentAcoes[SubPDC],MATCH(B18,IdentAcoes[ID Ação],0)),"") -> 4.2 - Soluções baseadas Natureza | L18: =IFERROR(INDEX(IdentAcoes[Prioridade do PDC],MATCH(B18,IdentAcoes[ID Ação],0)),"") -> Prioritário | M18: =IFERROR(INDEX(IdentAcoes[Segmento do executor],MATCH($B18,IdentAcoes[ID Ação],0)),"") -> Sociedade Civil | N18: =IFERROR(INDEX(IdentAcoes[Área de abrangência],MATCH($B18,IdentAcoes[ID Ação],0)),"") -> UGRHI | O18: =IFERROR(INDEX(IdentAcoes[Detalhamento da área de abrangência],MATCH($B18,IdentAcoes[ID Ação],0)),"") -> 0
A19: RB232024FEHIDRO - Cobrança estadual | B19: RB232024 | C19: =INDEX(Financeiro[Descrição da ação],MATCH(B19,Financeiro[ID Ação], 0)) -> Execução de serviços e obras para contenção de inundações ou alagamentos | D19: =IF(INDEX('Acompanhamento das metas 24-27'!$C$2:$C$50,MATCH(B19,'Acompanhamento das metas 24-27'!$A$2:$A$50,0))<>0,INDEX('Acompanhamento das metas 24-27'!$C$2:$C$50,MATCH(B19,'Acompanhamento das metas 24-27'!$A$2:$A$50,0)),"") -> Executar 12 empreendimentos estruturais visando mitigar os impactos das inundações até 2027 | E19: =IF(VLOOKUP(A19,Financeiro[[id_ação_Fonte_oculta]:[R$ Executado (2027)]],4,FALSE)=0,"",VLOOKUP(A19,Financeiro[[id_ação_Fonte_oculta]:[R$ Executado (2027)]],4,FALSE)) -> FEHIDRO - Cobrança estadual | F19: =IF(VLOOKUP(A19,Financeiro[[id_ação_Fonte_oculta]:[R$ Executado (2027)]],4,FALSE)=0,"",VLOOKUP(A19,Financeiro[[id_ação_Fonte_oculta]:[R$ Executado (2027)]],5,FALSE)) -> 1500000 | G19: =IF(VLOOKUP(A19,Financeiro[[id_ação_Fonte_oculta]:[R$ Executado (2027)]],4,FALSE)=0,"",VLOOKUP(A19,Financeiro[[id_ação_Fonte_oculta]:[R$ Executado (2027)]],8,FALSE)) -> 1650000 | H19: =IF(VLOOKUP(A19,Financeiro[[id_ação_Fonte_oculta]:[R$ Executado (2027)]],4,FALSE)=0,"",VLOOKUP(A19,Financeiro[[id_ação_Fonte_oculta]:[R$ Executado (2027)]],11,FALSE)) -> 1800000 | I19: =IF(VLOOKUP(A19,Financeiro[[id_ação_Fonte_oculta]:[R$ Executado (2027)]],4,FALSE)=0,"",VLOOKUP(A19,Financeiro[[id_ação_Fonte_oculta]:[R$ Executado (2027)]],14,FALSE)) -> 1950000 | J19: 6900000 | K19: =IFERROR(INDEX(IdentAcoes[SubPDC],MATCH(B19,IdentAcoes[ID Ação],0)),"") -> 7.1 - Drenagem | L19: =IFERROR(INDEX(IdentAcoes[Prioridade do PDC],MATCH(B19,IdentAcoes[ID Ação],0)),"") -> Prioritário | M19: =IFERROR(INDEX(IdentAcoes[Segmento do executor],MATCH($B19,IdentAcoes[ID Ação],0)),"") -> Município | N19: =IFERROR(INDEX(IdentAcoes[Área de abrangência],MATCH($B19,IdentAcoes[ID Ação],0)),"") -> UGRHI | O19: =IFERROR(INDEX(IdentAcoes[Detalhamento da área de abrangência],MATCH($B19,IdentAcoes[ID Ação],0)),"") -> 0
A20: RB252024FEHIDRO - Cobrança estadual | B20: RB252024 | C20: =INDEX(Financeiro[Descrição da ação],MATCH(B20,Financeiro[ID Ação], 0)) -> Realizar capacitação sobre gestão de águas para instituições com representação no CBH-RB, instituições parceiras, organizações da sociedade civil, comunidades rurais e jovens. | D20: =IF(INDEX('Acompanhamento das metas 24-27'!$C$2:$C$50,MATCH(B20,'Acompanhamento das metas 24-27'!$A$2:$A$50,0))<>0,INDEX('Acompanhamento das metas 24-27'!$C$2:$C$50,MATCH(B20,'Acompanhamento das metas 24-27'!$A$2:$A$50,0)),"") -> Realizar eventos bienais de formação para instituições com representação no CBH-RB, instituições parceiras, organizações da sociedade civil, comunidades rurais e jovens em 2024 e 2026 | E20: =IF(VLOOKUP(A20,Financeiro[[id_ação_Fonte_oculta]:[R$ Executado (2027)]],4,FALSE)=0,"",VLOOKUP(A20,Financeiro[[id_ação_Fonte_oculta]:[R$ Executado (2027)]],4,FALSE)) -> FEHIDRO - Cobrança estadual | F20: =IF(VLOOKUP(A20,Financeiro[[id_ação_Fonte_oculta]:[R$ Executado (2027)]],4,FALSE)=0,"",VLOOKUP(A20,Financeiro[[id_ação_Fonte_oculta]:[R$ Executado (2027)]],5,FALSE)) -> 160000 | G20: =IF(VLOOKUP(A20,Financeiro[[id_ação_Fonte_oculta]:[R$ Executado (2027)]],4,FALSE)=0,"",VLOOKUP(A20,Financeiro[[id_ação_Fonte_oculta]:[R$ Executado (2027)]],8,FALSE)) -> 0 | H20: =IF(VLOOKUP(A20,Financeiro[[id_ação_Fonte_oculta]:[R$ Executado (2027)]],4,FALSE)=0,"",VLOOKUP(A20,Financeiro[[id_ação_Fonte_oculta]:[R$ Executado (2027)]],11,FALSE)) -> 180000 | I20: =IF(VLOOKUP(A20,Financeiro[[id_ação_Fonte_oculta]:[R$ Executado (2027)]],4,FALSE)=0,"",VLOOKUP(A20,Financeiro[[id_ação_Fonte_oculta]:[R$ Executado (2027)]],14,FALSE)) -> 0 | J20: 340000 | K20: =IFERROR(INDEX(IdentAcoes[SubPDC],MATCH(B20,IdentAcoes[ID Ação],0)),"") -> 8.1 - Capacitação | L20: =IFERROR(INDEX(IdentAcoes[Prioridade do PDC],MATCH(B20,IdentAcoes[ID Ação],0)),"") -> Prioritário | M20: =IFERROR(INDEX(IdentAcoes[Segmento do executor],MATCH($B20,IdentAcoes[ID Ação],0)),"") -> Estado | N20: =IFERROR(INDEX(IdentAcoes[Área de abrangência],MATCH($B20,IdentAcoes[ID Ação],0)),"") -> UGRHI | O20: =IFERROR(INDEX(IdentAcoes[Detalhamento da área de abrangência],MATCH($B20,IdentAcoes[ID Ação],0)),"") -> 0
A21: RB262024FEHIDRO - CFURH | B21: RB262024 | C21: =INDEX(Financeiro[Descrição da ação],MATCH(B21,Financeiro[ID Ação], 0)) -> Realizar ações de educação ambiental (sensibilização e mobilização social) nos temas diversos. Via projetos Fehidro | D21: =IF(INDEX('Acompanhamento das metas 24-27'!$C$2:$C$50,MATCH(B21,'Acompanhamento das metas 24-27'!$A$2:$A$50,0))<>0,INDEX('Acompanhamento das metas 24-27'!$C$2:$C$50,MATCH(B21,'Acompanhamento das metas 24-27'!$A$2:$A$50,0)),"") -> Realizar 1 projeto por ano em 2024, 2025, 2026 e 2027, contemplando ações de educação ambiental | E21: =IF(VLOOKUP(A21,Financeiro[[id_ação_Fonte_oculta]:[R$ Executado (2027)]],4,FALSE)=0,"",VLOOKUP(A21,Financeiro[[id_ação_Fonte_oculta]:[R$ Executado (2027)]],4,FALSE)) -> FEHIDRO - CFURH | F21: =IF(VLOOKUP(A21,Financeiro[[id_ação_Fonte_oculta]:[R$ Executado (2027)]],4,FALSE)=0,"",VLOOKUP(A21,Financeiro[[id_ação_Fonte_oculta]:[R$ Executado (2027)]],5,FALSE)) -> 160000 | G21: =IF(VLOOKUP(A21,Financeiro[[id_ação_Fonte_oculta]:[R$ Executado (2027)]],4,FALSE)=0,"",VLOOKUP(A21,Financeiro[[id_ação_Fonte_oculta]:[R$ Executado (2027)]],8,FALSE)) -> 170000 | H21: =IF(VLOOKUP(A21,Financeiro[[id_ação_Fonte_oculta]:[R$ Executado (2027)]],4,FALSE)=0,"",VLOOKUP(A21,Financeiro[[id_ação_Fonte_oculta]:[R$ Executado (2027)]],11,FALSE)) -> 180000 | I21: =IF(VLOOKUP(A21,Financeiro[[id_ação_Fonte_oculta]:[R$ Executado (2027)]],4,FALSE)=0,"",VLOOKUP(A21,Financeiro[[id_ação_Fonte_oculta]:[R$ Executado (2027)]],14,FALSE)) -> 190000 | J21: 700000 | K21: =IFERROR(INDEX(IdentAcoes[SubPDC],MATCH(B21,IdentAcoes[ID Ação],0)),"") -> 8.2 - Educação | L21: =IFERROR(INDEX(IdentAcoes[Prioridade do PDC],MATCH(B21,IdentAcoes[ID Ação],0)),"") -> Não prioritário | M21: =IFERROR(INDEX(IdentAcoes[Segmento do executor],MATCH($B21,IdentAcoes[ID Ação],0)),"") -> Sociedade Civil | N21: =IFERROR(INDEX(IdentAcoes[Área de abrangência],MATCH($B21,IdentAcoes[ID Ação],0)),"") -> UGRHI | O21: =IFERROR(INDEX(IdentAcoes[Detalhamento da área de abrangência],MATCH($B21,IdentAcoes[ID Ação],0)),"") -> 0
A22: RB302024FEHIDRO - Cobrança estadual | B22: RB302024 | C22: =INDEX(Financeiro[Descrição da ação],MATCH(B22,Financeiro[ID Ação], 0)) -> Reproduzir material de apoio (kit água) para e de apoio a eventos de educação ambiental | D22: =IF(INDEX('Acompanhamento das metas 24-27'!$C$2:$C$50,MATCH(B22,'Acompanhamento das metas 24-27'!$A$2:$A$50,0))<>0,INDEX('Acompanhamento das metas 24-27'!$C$2:$C$50,MATCH(B22,'Acompanhamento das metas 24-27'!$A$2:$A$50,0)),"") -> Inserção da temática de água e meio ambiente na sociedade, por meio da contratação de 1 projeto em 2024. | E22: =IF(VLOOKUP(A22,Financeiro[[id_ação_Fonte_oculta]:[R$ Executado (2027)]],4,FALSE)=0,"",VLOOKUP(A22,Financeiro[[id_ação_Fonte_oculta]:[R$ Executado (2027)]],4,FALSE)) -> FEHIDRO - Cobrança estadual | F22: =IF(VLOOKUP(A22,Financeiro[[id_ação_Fonte_oculta]:[R$ Executado (2027)]],4,FALSE)=0,"",VLOOKUP(A22,Financeiro[[id_ação_Fonte_oculta]:[R$ Executado (2027)]],5,FALSE)) -> 200000 | G22: =IF(VLOOKUP(A22,Financeiro[[id_ação_Fonte_oculta]:[R$ Executado (2027)]],4,FALSE)=0,"",VLOOKUP(A22,Financeiro[[id_ação_Fonte_oculta]:[R$ Executado (2027)]],8,FALSE)) -> 0 | H22: =IF(VLOOKUP(A22,Financeiro[[id_ação_Fonte_oculta]:[R$ Executado (2027)]],4,FALSE)=0,"",VLOOKUP(A22,Financeiro[[id_ação_Fonte_oculta]:[R$ Executado (2027)]],11,FALSE)) -> 220000 | I22: =IF(VLOOKUP(A22,Financeiro[[id_ação_Fonte_oculta]:[R$ Executado (2027)]],4,FALSE)=0,"",VLOOKUP(A22,Financeiro[[id_ação_Fonte_oculta]:[R$ Executado (2027)]],14,FALSE)) -> 0 | J22: 420000 | K22: =IFERROR(INDEX(IdentAcoes[SubPDC],MATCH(B22,IdentAcoes[ID Ação],0)),"") -> 8.2 - Educação | L22: =IFERROR(INDEX(IdentAcoes[Prioridade do PDC],MATCH(B22,IdentAcoes[ID Ação],0)),"") -> Prioritário | M22: =IFERROR(INDEX(IdentAcoes[Segmento do executor],MATCH($B22,IdentAcoes[ID Ação],0)),"") -> Sociedade Civil | N22: =IFERROR(INDEX(IdentAcoes[Área de abrangência],MATCH($B22,IdentAcoes[ID Ação],0)),"") -> UGRHI | O22: =IFERROR(INDEX(IdentAcoes[Detalhamento da área de abrangência],MATCH($B22,IdentAcoes[ID Ação],0)),"") -> 0
A23: RB312024FEHIDRO - Cobrança estadual | B23: RB312024 | C23: =INDEX(Financeiro[Descrição da ação],MATCH(B23,Financeiro[ID Ação], 0)) -> Adequar e equipar 1 centro de Educação Ambiental | D23: =IF(INDEX('Acompanhamento das metas 24-27'!$C$2:$C$50,MATCH(B23,'Acompanhamento das metas 24-27'!$A$2:$A$50,0))<>0,INDEX('Acompanhamento das metas 24-27'!$C$2:$C$50,MATCH(B23,'Acompanhamento das metas 24-27'!$A$2:$A$50,0)),"") -> Incentivar e fomentar a criação de 1 centro de Educação Ambiental em 2024 | E23: =IF(VLOOKUP(A23,Financeiro[[id_ação_Fonte_oculta]:[R$ Executado (2027)]],4,FALSE)=0,"",VLOOKUP(A23,Financeiro[[id_ação_Fonte_oculta]:[R$ Executado (2027)]],4,FALSE)) -> FEHIDRO - Cobrança estadual | F23: =IF(VLOOKUP(A23,Financeiro[[id_ação_Fonte_oculta]:[R$ Executado (2027)]],4,FALSE)=0,"",VLOOKUP(A23,Financeiro[[id_ação_Fonte_oculta]:[R$ Executado (2027)]],5,FALSE)) -> 345000 | G23: =IF(VLOOKUP(A23,Financeiro[[id_ação_Fonte_oculta]:[R$ Executado (2027)]],4,FALSE)=0,"",VLOOKUP(A23,Financeiro[[id_ação_Fonte_oculta]:[R$ Executado (2027)]],8,FALSE)) -> 0 | H23: =IF(VLOOKUP(A23,Financeiro[[id_ação_Fonte_oculta]:[R$ Executado (2027)]],4,FALSE)=0,"",VLOOKUP(A23,Financeiro[[id_ação_Fonte_oculta]:[R$ Executado (2027)]],11,FALSE)) -> 0 | I23: =IF(VLOOKUP(A23,Financeiro[[id_ação_Fonte_oculta]:[R$ Executado (2027)]],4,FALSE)=0,"",VLOOKUP(A23,Financeiro[[id_ação_Fonte_oculta]:[R$ Executado (2027)]],14,FALSE)) -> 0 | J23: 345000 | K23: =IFERROR(INDEX(IdentAcoes[SubPDC],MATCH(B23,IdentAcoes[ID Ação],0)),"") -> 8.2 - Educação | L23: =IFERROR(INDEX(IdentAcoes[Prioridade do PDC],MATCH(B23,IdentAcoes[ID Ação],0)),"") -> Prioritário | M23: =IFERROR(INDEX(IdentAcoes[Segmento do executor],MATCH($B23,IdentAcoes[ID Ação],0)),"") -> Sociedade Civil | N23: =IFERROR(INDEX(IdentAcoes[Área de abrangência],MATCH($B23,IdentAcoes[ID Ação],0)),"") -> UGRHI | O23: =IFERROR(INDEX(IdentAcoes[Detalhamento da área de abrangência],MATCH($B23,IdentAcoes[ID Ação],0)),"") -> 0
A24: RB322024FEHIDRO - Cobrança estadual | B24: RB322024 | C24: =INDEX(Financeiro[Descrição da ação],MATCH(B24,Financeiro[ID Ação], 0)) -> Execução de 2 projetos bienais de elaboração de releases, boletins informativos e operação das ferramentas de comunicação | D24: =IF(INDEX('Acompanhamento das metas 24-27'!$C$2:$C$50,MATCH(B24,'Acompanhamento das metas 24-27'!$A$2:$A$50,0))<>0,INDEX('Acompanhamento das metas 24-27'!$C$2:$C$50,MATCH(B24,'Acompanhamento das metas 24-27'!$A$2:$A$50,0)),"") -> Ampliar comunicação do CBH internamente e com público em geral (plano de comunicação elaborado) em 2024 e 2026 | E24: =IF(VLOOKUP(A24,Financeiro[[id_ação_Fonte_oculta]:[R$ Executado (2027)]],4,FALSE)=0,"",VLOOKUP(A24,Financeiro[[id_ação_Fonte_oculta]:[R$ Executado (2027)]],4,FALSE)) -> FEHIDRO - Cobrança estadual | F24: =IF(VLOOKUP(A24,Financeiro[[id_ação_Fonte_oculta]:[R$ Executado (2027)]],4,FALSE)=0,"",VLOOKUP(A24,Financeiro[[id_ação_Fonte_oculta]:[R$ Executado (2027)]],5,FALSE)) -> 340000 | G24: =IF(VLOOKUP(A24,Financeiro[[id_ação_Fonte_oculta]:[R$ Executado (2027)]],4,FALSE)=0,"",VLOOKUP(A24,Financeiro[[id_ação_Fonte_oculta]:[R$ Executado (2027)]],8,FALSE)) -> 0 | H24: =IF(VLOOKUP(A24,Financeiro[[id_ação_Fonte_oculta]:[R$ Executado (2027)]],4,FALSE)=0,"",VLOOKUP(A24,Financeiro[[id_ação_Fonte_oculta]:[R$ Executado (2027)]],11,FALSE)) -> 400000 | I24: =IF(VLOOKUP(A24,Financeiro[[id_ação_Fonte_oculta]:[R$ Executado (2027)]],4,FALSE)=0,"",VLOOKUP(A24,Financeiro[[id_ação_Fonte_oculta]:[R$ Executado (2027)]],14,FALSE)) -> 0 | J24: 740000 | K24: =IFERROR(INDEX(IdentAcoes[SubPDC],MATCH(B24,IdentAcoes[ID Ação],0)),"") -> 8.3 - Comunicação | L24: =IFERROR(INDEX(IdentAcoes[Prioridade do PDC],MATCH(B24,IdentAcoes[ID Ação],0)),"") -> Prioritário | M24: =IFERROR(INDEX(IdentAcoes[Segmento do executor],MATCH($B24,IdentAcoes[ID Ação],0)),"") -> Sociedade Civil | N24: =IFERROR(INDEX(IdentAcoes[Área de abrangência],MATCH($B24,IdentAcoes[ID Ação],0)),"") -> UGRHI | O24: =IFERROR(INDEX(IdentAcoes[Detalhamento da área de abrangência],MATCH($B24,IdentAcoes[ID Ação],0)),"") -> 0
A25: RB332025FEHIDRO - Cobrança estadual | B25: RB332025 | C25: =INDEX(Financeiro[Descrição da ação],MATCH(B25,Financeiro[ID Ação], 0)) -> Realização de manutenção operacional nos postos de monitoramento fluviométrico e pluviométrico existentes e atualização do sistema de informação | D25: =IF(INDEX('Acompanhamento das metas 24-27'!$C$2:$C$50,MATCH(B25,'Acompanhamento das metas 24-27'!$A$2:$A$50,0))<>0,INDEX('Acompanhamento das metas 24-27'!$C$2:$C$50,MATCH(B25,'Acompanhamento das metas 24-27'!$A$2:$A$50,0)),"") -> Serviços de operação e manutenção sistemáticos nos postos hidrométricos | E25: =IF(VLOOKUP(A25,Financeiro[[id_ação_Fonte_oculta]:[R$ Executado (2027)]],4,FALSE)=0,"",VLOOKUP(A25,Financeiro[[id_ação_Fonte_oculta]:[R$ Executado (2027)]],4,FALSE)) -> FEHIDRO - Cobrança estadual | F25: =IF(VLOOKUP(A25,Financeiro[[id_ação_Fonte_oculta]:[R$ Executado (2027)]],4,FALSE)=0,"",VLOOKUP(A25,Financeiro[[id_ação_Fonte_oculta]:[R$ Executado (2027)]],5,FALSE)) -> 0 | G25: =IF(VLOOKUP(A25,Financeiro[[id_ação_Fonte_oculta]:[R$ Executado (2027)]],4,FALSE)=0,"",VLOOKUP(A25,Financeiro[[id_ação_Fonte_oculta]:[R$ Executado (2027)]],8,FALSE)) -> 250000 | H25: =IF(VLOOKUP(A25,Financeiro[[id_ação_Fonte_oculta]:[R$ Executado (2027)]],4,FALSE)=0,"",VLOOKUP(A25,Financeiro[[id_ação_Fonte_oculta]:[R$ Executado (2027)]],11,FALSE)) -> 300000 | I25: =IF(VLOOKUP(A25,Financeiro[[id_ação_Fonte_oculta]:[R$ Executado (2027)]],4,FALSE)=0,"",VLOOKUP(A25,Financeiro[[id_ação_Fonte_oculta]:[R$ Executado (2027)]],14,FALSE)) -> 350000 | J25: 900000 | K25: =IFERROR(INDEX(IdentAcoes[SubPDC],MATCH(B25,IdentAcoes[ID Ação],0)),"") -> 2.5 - Redes de monitoramento e SI | L25: =IFERROR(INDEX(IdentAcoes[Prioridade do PDC],MATCH(B25,IdentAcoes[ID Ação],0)),"") -> PDC 1 e 2 | M25: =IFERROR(INDEX(IdentAcoes[Segmento do executor],MATCH($B25,IdentAcoes[ID Ação],0)),"") -> Estado | N25: =IFERROR(INDEX(IdentAcoes[Área de abrangência],MATCH($B25,IdentAcoes[ID Ação],0)),"") -> UGRHI | O25: =IFERROR(INDEX(IdentAcoes[Detalhamento da área de abrangência],MATCH($B25,IdentAcoes[ID Ação],0)),"") -> 0
A26: RB342025FEHIDRO - CFURH | B26: RB342025 | C26: =INDEX(Financeiro[Descrição da ação],MATCH(B26,Financeiro[ID Ação], 0)) -> Fomentar a produção agroecológica e orgânica (01 projeto) | D26: =IF(INDEX('Acompanhamento das metas 24-27'!$C$2:$C$50,MATCH(B26,'Acompanhamento das metas 24-27'!$A$2:$A$50,0))<>0,INDEX('Acompanhamento das metas 24-27'!$C$2:$C$50,MATCH(B26,'Acompanhamento das metas 24-27'!$A$2:$A$50,0)),"") -> Implantar 1 projeto piloto de produção de SAF ou sistema orgânico, com objetivo de formar unidade(s) demonstrativa(s) para fortalecimento e experimentação da técnica na bacia em 2025 | E26: =IF(VLOOKUP(A26,Financeiro[[id_ação_Fonte_oculta]:[R$ Executado (2027)]],4,FALSE)=0,"",VLOOKUP(A26,Financeiro[[id_ação_Fonte_oculta]:[R$ Executado (2027)]],4,FALSE)) -> FEHIDRO - CFURH | F26: =IF(VLOOKUP(A26,Financeiro[[id_ação_Fonte_oculta]:[R$ Executado (2027)]],4,FALSE)=0,"",VLOOKUP(A26,Financeiro[[id_ação_Fonte_oculta]:[R$ Executado (2027)]],5,FALSE)) -> 0 | G26: =IF(VLOOKUP(A26,Financeiro[[id_ação_Fonte_oculta]:[R$ Executado (2027)]],4,FALSE)=0,"",VLOOKUP(A26,Financeiro[[id_ação_Fonte_oculta]:[R$ Executado (2027)]],8,FALSE)) -> 160000 | H26: =IF(VLOOKUP(A26,Financeiro[[id_ação_Fonte_oculta]:[R$ Executado (2027)]],4,FALSE)=0,"",VLOOKUP(A26,Financeiro[[id_ação_Fonte_oculta]:[R$ Executado (2027)]],11,FALSE)) -> 0 | I26: =IF(VLOOKUP(A26,Financeiro[[id_ação_Fonte_oculta]:[R$ Executado (2027)]],4,FALSE)=0,"",VLOOKUP(A26,Financeiro[[id_ação_Fonte_oculta]:[R$ Executado (2027)]],14,FALSE)) -> 0 | J26: 160000 | K26: =IFERROR(INDEX(IdentAcoes[SubPDC],MATCH(B26,IdentAcoes[ID Ação],0)),"") -> 4.2 - Soluções baseadas Natureza | L26: =IFERROR(INDEX(IdentAcoes[Prioridade do PDC],MATCH(B26,IdentAcoes[ID Ação],0)),"") -> Prioritário | M26: =IFERROR(INDEX(IdentAcoes[Segmento do executor],MATCH($B26,IdentAcoes[ID Ação],0)),"") -> Sociedade Civil | N26: =IFERROR(INDEX(IdentAcoes[Área de abrangência],MATCH($B26,IdentAcoes[ID Ação],0)),"") -> UGRHI | O26: =IFERROR(INDEX(IdentAcoes[Detalhamento da área de abrangência],MATCH($B26,IdentAcoes[ID Ação],0)),"") -> 0
A27: RB352025FEHIDRO - Cobrança estadual | B27: RB352025 | C27: =INDEX(Financeiro[Descrição da ação],MATCH(B27,Financeiro[ID Ação], 0)) -> Capacitar os membros do CBH e CTs sobre conceitos, práticas e experiências em PSA | D27: =IF(INDEX('Acompanhamento das metas 24-27'!$C$2:$C$50,MATCH(B27,'Acompanhamento das metas 24-27'!$A$2:$A$50,0))<>0,INDEX('Acompanhamento das metas 24-27'!$C$2:$C$50,MATCH(B27,'Acompanhamento das metas 24-27'!$A$2:$A$50,0)),"") -> Realizar capacitação sobre PSA para os membros do CBH e CTs em 2025 | E27: =IF(VLOOKUP(A27,Financeiro[[id_ação_Fonte_oculta]:[R$ Executado (2027)]],4,FALSE)=0,"",VLOOKUP(A27,Financeiro[[id_ação_Fonte_oculta]:[R$ Executado (2027)]],4,FALSE)) -> FEHIDRO - Cobrança estadual | F27: =IF(VLOOKUP(A27,Financeiro[[id_ação_Fonte_oculta]:[R$ Executado (2027)]],4,FALSE)=0,"",VLOOKUP(A27,Financeiro[[id_ação_Fonte_oculta]:[R$ Executado (2027)]],5,FALSE)) -> 0 | G27: =IF(VLOOKUP(A27,Financeiro[[id_ação_Fonte_oculta]:[R$ Executado (2027)]],4,FALSE)=0,"",VLOOKUP(A27,Financeiro[[id_ação_Fonte_oculta]:[R$ Executado (2027)]],8,FALSE)) -> 160000 | H27: =IF(VLOOKUP(A27,Financeiro[[id_ação_Fonte_oculta]:[R$ Executado (2027)]],4,FALSE)=0,"",VLOOKUP(A27,Financeiro[[id_ação_Fonte_oculta]:[R$ Executado (2027)]],11,FALSE)) -> 0 | I27: =IF(VLOOKUP(A27,Financeiro[[id_ação_Fonte_oculta]:[R$ Executado (2027)]],4,FALSE)=0,"",VLOOKUP(A27,Financeiro[[id_ação_Fonte_oculta]:[R$ Executado (2027)]],14,FALSE)) -> 0 | J27: 160000 | K27: =IFERROR(INDEX(IdentAcoes[SubPDC],MATCH(B27,IdentAcoes[ID Ação],0)),"") -> 8.1 - Capacitação | L27: =IFERROR(INDEX(IdentAcoes[Prioridade do PDC],MATCH(B27,IdentAcoes[ID Ação],0)),"") -> Prioritário | M27: =IFERROR(INDEX(IdentAcoes[Segmento do executor],MATCH($B27,IdentAcoes[ID Ação],0)),"") -> Sociedade Civil | N27: =IFERROR(INDEX(IdentAcoes[Área de abrangência],MATCH($B27,IdentAcoes[ID Ação],0)),"") -> UGRHI | O27: =IFERROR(INDEX(IdentAcoes[Detalhamento da área de abrangência],MATCH($B27,IdentAcoes[ID Ação],0)),"") -> 0
A28: RB362025FEHIDRO - Cobrança estadual | B28: RB362025 | C28: =INDEX(Financeiro[Descrição da ação],MATCH(B28,Financeiro[ID Ação], 0)) -> Produzir série didática de vídeos com materiais educativos e informativos sobre educação ambiental e recursos hídricos, com identidade local, para população leiga, em linguagem acessível e lúdica ( 1 temática a cada 2 anos) | D28: =IF(INDEX('Acompanhamento das metas 24-27'!$C$2:$C$50,MATCH(B28,'Acompanhamento das metas 24-27'!$A$2:$A$50,0))<>0,INDEX('Acompanhamento das metas 24-27'!$C$2:$C$50,MATCH(B28,'Acompanhamento das metas 24-27'!$A$2:$A$50,0)),"") -> Produzir materiais educativos e informativos sobre 1 temática a cada 2 anos, em 2025 e 2027 | E28: =IF(VLOOKUP(A28,Financeiro[[id_ação_Fonte_oculta]:[R$ Executado (2027)]],4,FALSE)=0,"",VLOOKUP(A28,Financeiro[[id_ação_Fonte_oculta]:[R$ Executado (2027)]],4,FALSE)) -> FEHIDRO - Cobrança estadual | F28: =IF(VLOOKUP(A28,Financeiro[[id_ação_Fonte_oculta]:[R$ Executado (2027)]],4,FALSE)=0,"",VLOOKUP(A28,Financeiro[[id_ação_Fonte_oculta]:[R$ Executado (2027)]],5,FALSE)) -> 0 | G28: =IF(VLOOKUP(A28,Financeiro[[id_ação_Fonte_oculta]:[R$ Executado (2027)]],4,FALSE)=0,"",VLOOKUP(A28,Financeiro[[id_ação_Fonte_oculta]:[R$ Executado (2027)]],8,FALSE)) -> 250000 | H28: =IF(VLOOKUP(A28,Financeiro[[id_ação_Fonte_oculta]:[R$ Executado (2027)]],4,FALSE)=0,"",VLOOKUP(A28,Financeiro[[id_ação_Fonte_oculta]:[R$ Executado (2027)]],11,FALSE)) -> 0 | I28: =IF(VLOOKUP(A28,Financeiro[[id_ação_Fonte_oculta]:[R$ Executado (2027)]],4,FALSE)=0,"",VLOOKUP(A28,Financeiro[[id_ação_Fonte_oculta]:[R$ Executado (2027)]],14,FALSE)) -> 300000 | J28: 550000 | K28: =IFERROR(INDEX(IdentAcoes[SubPDC],MATCH(B28,IdentAcoes[ID Ação],0)),"") -> 8.2 - Educação | L28: =IFERROR(INDEX(IdentAcoes[Prioridade do PDC],MATCH(B28,IdentAcoes[ID Ação],0)),"") -> Prioritário | M28: =IFERROR(INDEX(IdentAcoes[Segmento do executor],MATCH($B28,IdentAcoes[ID Ação],0)),"") -> Sociedade Civil | N28: =IFERROR(INDEX(IdentAcoes[Área de abrangência],MATCH($B28,IdentAcoes[ID Ação],0)),"") -> UGRHI | O28: =IFERROR(INDEX(IdentAcoes[Detalhamento da área de abrangência],MATCH($B28,IdentAcoes[ID Ação],0)),"") -> 0
A29: RB372025FEHIDRO - Cobrança estadual | B29: RB372025 | C29: =INDEX(Financeiro[Descrição da ação],MATCH(B29,Financeiro[ID Ação], 0)) -> Oficinas de capacitação em recursos hídricos para educadores com sinergia ao currículo paulista | D29: =IF(INDEX('Acompanhamento das metas 24-27'!$C$2:$C$50,MATCH(B29,'Acompanhamento das metas 24-27'!$A$2:$A$50,0))<>0,INDEX('Acompanhamento das metas 24-27'!$C$2:$C$50,MATCH(B29,'Acompanhamento das metas 24-27'!$A$2:$A$50,0)),"") -> Realizar 1 projeto em 2025 e 1 projeto em 2026 | E29: =IF(VLOOKUP(A29,Financeiro[[id_ação_Fonte_oculta]:[R$ Executado (2027)]],4,FALSE)=0,"",VLOOKUP(A29,Financeiro[[id_ação_Fonte_oculta]:[R$ Executado (2027)]],4,FALSE)) -> FEHIDRO - Cobrança estadual | F29: =IF(VLOOKUP(A29,Financeiro[[id_ação_Fonte_oculta]:[R$ Executado (2027)]],4,FALSE)=0,"",VLOOKUP(A29,Financeiro[[id_ação_Fonte_oculta]:[R$ Executado (2027)]],5,FALSE)) -> 0 | G29: =IF(VLOOKUP(A29,Financeiro[[id_ação_Fonte_oculta]:[R$ Executado (2027)]],4,FALSE)=0,"",VLOOKUP(A29,Financeiro[[id_ação_Fonte_oculta]:[R$ Executado (2027)]],8,FALSE)) -> 220000 | H29: =IF(VLOOKUP(A29,Financeiro[[id_ação_Fonte_oculta]:[R$ Executado (2027)]],4,FALSE)=0,"",VLOOKUP(A29,Financeiro[[id_ação_Fonte_oculta]:[R$ Executado (2027)]],11,FALSE)) -> 220000 | I29: =IF(VLOOKUP(A29,Financeiro[[id_ação_Fonte_oculta]:[R$ Executado (2027)]],4,FALSE)=0,"",VLOOKUP(A29,Financeiro[[id_ação_Fonte_oculta]:[R$ Executado (2027)]],14,FALSE)) -> 0 | J29: 440000 | K29: =IFERROR(INDEX(IdentAcoes[SubPDC],MATCH(B29,IdentAcoes[ID Ação],0)),"") -> 8.2 - Educação | L29: =IFERROR(INDEX(IdentAcoes[Prioridade do PDC],MATCH(B29,IdentAcoes[ID Ação],0)),"") -> Prioritário | M29: =IFERROR(INDEX(IdentAcoes[Segmento do executor],MATCH($B29,IdentAcoes[ID Ação],0)),"") -> Sociedade Civil | N29: =IFERROR(INDEX(IdentAcoes[Área de abrangência],MATCH($B29,IdentAcoes[ID Ação],0)),"") -> UGRHI | O29: =IFERROR(INDEX(IdentAcoes[Detalhamento da área de abrangência],MATCH($B29,IdentAcoes[ID Ação],0)),"") -> 0
A30: RB382026Tesouro do Estado | B30: RB382026 | C30: =INDEX(Financeiro[Descrição da ação],MATCH(B30,Financeiro[ID Ação], 0)) -> Instalação de uma sala com equipamentos de informática e multimídia, para o funcionamento da CT-APRM-AJSL | D30: =IF(INDEX('Acompanhamento das metas 24-27'!$C$2:$C$50,MATCH(B30,'Acompanhamento das metas 24-27'!$A$2:$A$50,0))<>0,INDEX('Acompanhamento das metas 24-27'!$C$2:$C$50,MATCH(B30,'Acompanhamento das metas 24-27'!$A$2:$A$50,0)),"") -> Consolidar a infrastrutura de apoio para CT-APRM-AJ/SL em 2026 | E30: =IF(VLOOKUP(A30,Financeiro[[id_ação_Fonte_oculta]:[R$ Executado (2027)]],4,FALSE)=0,"",VLOOKUP(A30,Financeiro[[id_ação_Fonte_oculta]:[R$ Executado (2027)]],4,FALSE)) -> Tesouro do Estado | F30: =IF(VLOOKUP(A30,Financeiro[[id_ação_Fonte_oculta]:[R$ Executado (2027)]],4,FALSE)=0,"",VLOOKUP(A30,Financeiro[[id_ação_Fonte_oculta]:[R$ Executado (2027)]],5,FALSE)) -> 0 | G30: =IF(VLOOKUP(A30,Financeiro[[id_ação_Fonte_oculta]:[R$ Executado (2027)]],4,FALSE)=0,"",VLOOKUP(A30,Financeiro[[id_ação_Fonte_oculta]:[R$ Executado (2027)]],8,FALSE)) -> 0 | H30: =IF(VLOOKUP(A30,Financeiro[[id_ação_Fonte_oculta]:[R$ Executado (2027)]],4,FALSE)=0,"",VLOOKUP(A30,Financeiro[[id_ação_Fonte_oculta]:[R$ Executado (2027)]],11,FALSE)) -> 350000 | I30: =IF(VLOOKUP(A30,Financeiro[[id_ação_Fonte_oculta]:[R$ Executado (2027)]],4,FALSE)=0,"",VLOOKUP(A30,Financeiro[[id_ação_Fonte_oculta]:[R$ Executado (2027)]],14,FALSE)) -> 0 | J30: 350000 | K30: =IFERROR(INDEX(IdentAcoes[SubPDC],MATCH(B30,IdentAcoes[ID Ação],0)),"") -> 2.7 - CORHI | L30: =IFERROR(INDEX(IdentAcoes[Prioridade do PDC],MATCH(B30,IdentAcoes[ID Ação],0)),"") -> PDC 1 e 2 | M30: =IFERROR(INDEX(IdentAcoes[Segmento do executor],MATCH($B30,IdentAcoes[ID Ação],0)),"") -> Município | N30: =IFERROR(INDEX(IdentAcoes[Área de abrangência],MATCH($B30,IdentAcoes[ID Ação],0)),"") -> Sub-bacia | O30: =IFERROR(INDEX(IdentAcoes[Detalhamento da área de abrangência],MATCH($B30,IdentAcoes[ID Ação],0)),"") -> Alto Juquiá e São Lourenço
A31: RB392026FEHIDRO - Cobrança estadual | B31: RB392026 | C31: =INDEX(Financeiro[Descrição da ação],MATCH(B31,Financeiro[ID Ação], 0)) -> Divulgação na mídia regional e palestras de conscientização/orientação aos produtores rurais sobre o uso adequado de agrotóxicos e o manejo e recolhimento das embalagens de agrotóxico | D31: =IF(INDEX('Acompanhamento das metas 24-27'!$C$2:$C$50,MATCH(B31,'Acompanhamento das metas 24-27'!$A$2:$A$50,0))<>0,INDEX('Acompanhamento das metas 24-27'!$C$2:$C$50,MATCH(B31,'Acompanhamento das metas 24-27'!$A$2:$A$50,0)),"") -> Desenvolver 1 projeto de comunicação visando redução e utilização adequada dos agrotóxicos, em 2026 | E31: =IF(VLOOKUP(A31,Financeiro[[id_ação_Fonte_oculta]:[R$ Executado (2027)]],4,FALSE)=0,"",VLOOKUP(A31,Financeiro[[id_ação_Fonte_oculta]:[R$ Executado (2027)]],4,FALSE)) -> FEHIDRO - Cobrança estadual | F31: =IF(VLOOKUP(A31,Financeiro[[id_ação_Fonte_oculta]:[R$ Executado (2027)]],4,FALSE)=0,"",VLOOKUP(A31,Financeiro[[id_ação_Fonte_oculta]:[R$ Executado (2027)]],5,FALSE)) -> 0 | G31: =IF(VLOOKUP(A31,Financeiro[[id_ação_Fonte_oculta]:[R$ Executado (2027)]],4,FALSE)=0,"",VLOOKUP(A31,Financeiro[[id_ação_Fonte_oculta]:[R$ Executado (2027)]],8,FALSE)) -> 0 | H31: =IF(VLOOKUP(A31,Financeiro[[id_ação_Fonte_oculta]:[R$ Executado (2027)]],4,FALSE)=0,"",VLOOKUP(A31,Financeiro[[id_ação_Fonte_oculta]:[R$ Executado (2027)]],11,FALSE)) -> 160000 | I31: =IF(VLOOKUP(A31,Financeiro[[id_ação_Fonte_oculta]:[R$ Executado (2027)]],4,FALSE)=0,"",VLOOKUP(A31,Financeiro[[id_ação_Fonte_oculta]:[R$ Executado (2027)]],14,FALSE)) -> 0 | J31: 160000 | K31: =IFERROR(INDEX(IdentAcoes[SubPDC],MATCH(B31,IdentAcoes[ID Ação],0)),"") -> 8.2 - Educação | L31: =IFERROR(INDEX(IdentAcoes[Prioridade do PDC],MATCH(B31,IdentAcoes[ID Ação],0)),"") -> Não prioritário | M31: =IFERROR(INDEX(IdentAcoes[Segmento do executor],MATCH($B31,IdentAcoes[ID Ação],0)),"") -> Sociedade Civil | N31: =IFERROR(INDEX(IdentAcoes[Área de abrangência],MATCH($B31,IdentAcoes[ID Ação],0)),"") -> UGRHI | O31: =IFERROR(INDEX(IdentAcoes[Detalhamento da área de abrangência],MATCH($B31,IdentAcoes[ID Ação],0)),"") -> 0
A32: RB402027FEHIDRO - Cobrança estadual | B32: RB402027 | C32: =INDEX(Financeiro[Descrição da ação],MATCH(B32,Financeiro[ID Ação], 0)) -> Realizar o diagnóstico da situação atual dos corpos de água da UGRHI 11 | D32: =IF(INDEX('Acompanhamento das metas 24-27'!$C$2:$C$50,MATCH(B32,'Acompanhamento das metas 24-27'!$A$2:$A$50,0))<>0,INDEX('Acompanhamento das metas 24-27'!$C$2:$C$50,MATCH(B32,'Acompanhamento das metas 24-27'!$A$2:$A$50,0)),"") -> Realizar 1 levantamento em 1 sub-bacias da UGRHI 11 em 2027 | E32: =IF(VLOOKUP(A32,Financeiro[[id_ação_Fonte_oculta]:[R$ Executado (2027)]],4,FALSE)=0,"",VLOOKUP(A32,Financeiro[[id_ação_Fonte_oculta]:[R$ Executado (2027)]],4,FALSE)) -> FEHIDRO - Cobrança estadual | F32: =IF(VLOOKUP(A32,Financeiro[[id_ação_Fonte_oculta]:[R$ Executado (2027)]],4,FALSE)=0,"",VLOOKUP(A32,Financeiro[[id_ação_Fonte_oculta]:[R$ Executado (2027)]],5,FALSE)) -> 0 | G32: =IF(VLOOKUP(A32,Financeiro[[id_ação_Fonte_oculta]:[R$ Executado (2027)]],4,FALSE)=0,"",VLOOKUP(A32,Financeiro[[id_ação_Fonte_oculta]:[R$ Executado (2027)]],8,FALSE)) -> 0 | H32: =IF(VLOOKUP(A32,Financeiro[[id_ação_Fonte_oculta]:[R$ Executado (2027)]],4,FALSE)=0,"",VLOOKUP(A32,Financeiro[[id_ação_Fonte_oculta]:[R$ Executado (2027)]],11,FALSE)) -> 0 | I32: =IF(VLOOKUP(A32,Financeiro[[id_ação_Fonte_oculta]:[R$ Executado (2027)]],4,FALSE)=0,"",VLOOKUP(A32,Financeiro[[id_ação_Fonte_oculta]:[R$ Executado (2027)]],14,FALSE)) -> 350000 | J32: 350000 | K32: =IFERROR(INDEX(IdentAcoes[SubPDC],MATCH(B32,IdentAcoes[ID Ação],0)),"") -> 2.4 - Enquadramento | L32: =IFERROR(INDEX(IdentAcoes[Prioridade do PDC],MATCH(B32,IdentAcoes[ID Ação],0)),"") -> PDC 1 e 2 | M32: =IFERROR(INDEX(IdentAcoes[Segmento do executor],MATCH($B32,IdentAcoes[ID Ação],0)),"") -> Estado | N32: =IFERROR(INDEX(IdentAcoes[Área de abrangência],MATCH($B32,IdentAcoes[ID Ação],0)),"") -> SUB-BACIA | O32: =IFERROR(INDEX(IdentAcoes[Detalhamento da área de abrangência],MATCH($B32,IdentAcoes[ID Ação],0)),"") -> Rio Jacupiranga
C33: =INDEX(Financeiro[Descrição da ação],MATCH(B33,Financeiro[ID Ação], 0)) ->  | D33: =IF(INDEX('Acompanhamento das metas 24-27'!$C$2:$C$50,MATCH(B33,'Acompanhamento das metas 24-27'!$A$2:$A$50,0))<>0,INDEX('Acompanhamento das metas 24-27'!$C$2:$C$50,MATCH(B33,'Acompanhamento das metas 24-27'!$A$2:$A$50,0)),"") ->  | E33: =IF(VLOOKUP(A33,Financeiro[[id_ação_Fonte_oculta]:[R$ Executado (2027)]],4,FALSE)=0,"",VLOOKUP(A33,Financeiro[[id_ação_Fonte_oculta]:[R$ Executado (2027)]],4,FALSE)) ->  | F33: =IF(VLOOKUP(A33,Financeiro[[id_ação_Fonte_oculta]:[R$ Executado (2027)]],4,FALSE)=0,"",VLOOKUP(A33,Financeiro[[id_ação_Fonte_oculta]:[R$ Executado (2027)]],5,FALSE)) ->  | G33: =IF(VLOOKUP(A33,Financeiro[[id_ação_Fonte_oculta]:[R$ Executado (2027)]],4,FALSE)=0,"",VLOOKUP(A33,Financeiro[[id_ação_Fonte_oculta]:[R$ Executado (2027)]],8,FALSE)) ->  | H33: =IF(VLOOKUP(A33,Financeiro[[id_ação_Fonte_oculta]:[R$ Executado (2027)]],4,FALSE)=0,"",VLOOKUP(A33,Financeiro[[id_ação_Fonte_oculta]:[R$ Executado (2027)]],11,FALSE)) ->  | I33: =IF(VLOOKUP(A33,Financeiro[[id_ação_Fonte_oculta]:[R$ Executado (2027)]],4,FALSE)=0,"",VLOOKUP(A33,Financeiro[[id_ação_Fonte_oculta]:[R$ Executado (2027)]],14,FALSE)) ->  | J33: 0 | K33: =IFERROR(INDEX(IdentAcoes[SubPDC],MATCH(B33,IdentAcoes[ID Ação],0)),"") ->  | L33: =IFERROR(INDEX(IdentAcoes[Prioridade do PDC],MATCH(B33,IdentAcoes[ID Ação],0)),"") ->  | M33: =IFERROR(INDEX(IdentAcoes[Segmento do executor],MATCH($B33,IdentAcoes[ID Ação],0)),"") ->  | N33: =IFERROR(INDEX(IdentAcoes[Área de abrangência],MATCH($B33,IdentAcoes[ID Ação],0)),"") ->  | O33: =IFERROR(INDEX(IdentAcoes[Detalhamento da área de abrangência],MATCH($B33,IdentAcoes[ID Ação],0)),"") -> 
C34: =INDEX(Financeiro[Descrição da ação],MATCH(B34,Financeiro[ID Ação], 0)) ->  | D34: =IF(INDEX('Acompanhamento das metas 24-27'!$C$2:$C$50,MATCH(B34,'Acompanhamento das metas 24-27'!$A$2:$A$50,0))<>0,INDEX('Acompanhamento das metas 24-27'!$C$2:$C$50,MATCH(B34,'Acompanhamento das metas 24-27'!$A$2:$A$50,0)),"") ->  | E34: =IF(VLOOKUP(A34,Financeiro[[id_ação_Fonte_oculta]:[R$ Executado (2027)]],4,FALSE)=0,"",VLOOKUP(A34,Financeiro[[id_ação_Fonte_oculta]:[R$ Executado (2027)]],4,FALSE)) ->  | K34: =IFERROR(INDEX(IdentAcoes[SubPDC],MATCH(B34,IdentAcoes[ID Ação],0)),"") ->  | L34: =IFERROR(INDEX(IdentAcoes[Prioridade do PDC],MATCH(B34,IdentAcoes[ID Ação],0)),"") ->  | M34: =IFERROR(INDEX(IdentAcoes[Segmento do executor],MATCH($B34,IdentAcoes[ID Ação],0)),"") ->  | N34: =IFERROR(INDEX(IdentAcoes[Área de abrangência],MATCH($B34,IdentAcoes[ID Ação],0)),"") ->  | O34: =IFERROR(INDEX(IdentAcoes[Detalhamento da área de abrangência],MATCH($B34,IdentAcoes[ID Ação],0)),"") -> 
C35: =INDEX(Financeiro[Descrição da ação],MATCH(B35,Financeiro[ID Ação], 0)) ->  | D35: =IF(INDEX('Acompanhamento das metas 24-27'!$C$2:$C$50,MATCH(B35,'Acompanhamento das metas 24-27'!$A$2:$A$50,0))<>0,INDEX('Acompanhamento das metas 24-27'!$C$2:$C$50,MATCH(B35,'Acompanhamento das metas 24-27'!$A$2:$A$50,0)),"") ->  | E35: =IF(VLOOKUP(A35,Financeiro[[id_ação_Fonte_oculta]:[R$ Executado (2027)]],4,FALSE)=0,"",VLOOKUP(A35,Financeiro[[id_ação_Fonte_oculta]:[R$ Executado (2027)]],4,FALSE)) ->  | F35: =IF(VLOOKUP(A35,Financeiro[[id_ação_Fonte_oculta]:[R$ Executado (2027)]],4,FALSE)=0,"",VLOOKUP(A35,Financeiro[[id_ação_Fonte_oculta]:[R$ Executado (2027)]],5,FALSE)) ->  | G35: =IF(VLOOKUP(A35,Financeiro[[id_ação_Fonte_oculta]:[R$ Executado (2027)]],4,FALSE)=0,"",VLOOKUP(A35,Financeiro[[id_ação_Fonte_oculta]:[R$ Executado (2027)]],8,FALSE)) ->  | H35: =IF(VLOOKUP(A35,Financeiro[[id_ação_Fonte_oculta]:[R$ Executado (2027)]],4,FALSE)=0,"",VLOOKUP(A35,Financeiro[[id_ação_Fonte_oculta]:[R$ Executado (2027)]],11,FALSE)) ->  | I35: =IF(VLOOKUP(A35,Financeiro[[id_ação_Fonte_oculta]:[R$ Executado (2027)]],4,FALSE)=0,"",VLOOKUP(A35,Financeiro[[id_ação_Fonte_oculta]:[R$ Executado (2027)]],14,FALSE)) ->  | J35: 0 | K35: =IFERROR(INDEX(IdentAcoes[SubPDC],MATCH(B35,IdentAcoes[ID Ação],0)),"") ->  | L35: =IFERROR(INDEX(IdentAcoes[Prioridade do PDC],MATCH(B35,IdentAcoes[ID Ação],0)),"") ->  | M35: =IFERROR(INDEX(IdentAcoes[Segmento do executor],MATCH($B35,IdentAcoes[ID Ação],0)),"") ->  | N35: =IFERROR(INDEX(IdentAcoes[Área de abrangência],MATCH($B35,IdentAcoes[ID Ação],0)),"") ->  | O35: =IFERROR(INDEX(IdentAcoes[Detalhamento da área de abrangência],MATCH($B35,IdentAcoes[ID Ação],0)),"") -> 
C36: =INDEX(Financeiro[Descrição da ação],MATCH(B36,Financeiro[ID Ação], 0)) ->  | D36: =IF(INDEX('Acompanhamento das metas 24-27'!$C$2:$C$50,MATCH(B36,'Acompanhamento das metas 24-27'!$A$2:$A$50,0))<>0,INDEX('Acompanhamento das metas 24-27'!$C$2:$C$50,MATCH(B36,'Acompanhamento das metas 24-27'!$A$2:$A$50,0)),"") ->  | E36: =IF(VLOOKUP(A36,Financeiro[[id_ação_Fonte_oculta]:[R$ Executado (2027)]],4,FALSE)=0,"",VLOOKUP(A36,Financeiro[[id_ação_Fonte_oculta]:[R$ Executado (2027)]],4,FALSE)) ->  | F36: =IF(VLOOKUP(A36,Financeiro[[id_ação_Fonte_oculta]:[R$ Executado (2027)]],4,FALSE)=0,"",VLOOKUP(A36,Financeiro[[id_ação_Fonte_oculta]:[R$ Executado (2027)]],5,FALSE)) ->  | G36: =IF(VLOOKUP(A36,Financeiro[[id_ação_Fonte_oculta]:[R$ Executado (2027)]],4,FALSE)=0,"",VLOOKUP(A36,Financeiro[[id_ação_Fonte_oculta]:[R$ Executado (2027)]],8,FALSE)) ->  | H36: =IF(VLOOKUP(A36,Financeiro[[id_ação_Fonte_oculta]:[R$ Executado (2027)]],4,FALSE)=0,"",VLOOKUP(A36,Financeiro[[id_ação_Fonte_oculta]:[R$ Executado (2027)]],11,FALSE)) ->  | I36: =IF(VLOOKUP(A36,Financeiro[[id_ação_Fonte_oculta]:[R$ Executado (2027)]],4,FALSE)=0,"",VLOOKUP(A36,Financeiro[[id_ação_Fonte_oculta]:[R$ Executado (2027)]],14,FALSE)) ->  | J36: 0 | K36: =IFERROR(INDEX(IdentAcoes[SubPDC],MATCH(B36,IdentAcoes[ID Ação],0)),"") ->  | L36: =IFERROR(INDEX(IdentAcoes[Prioridade do PDC],MATCH(B36,IdentAcoes[ID Ação],0)),"") ->  | M36: =IFERROR(INDEX(IdentAcoes[Segmento do executor],MATCH($B36,IdentAcoes[ID Ação],0)),"") ->  | N36: =IFERROR(INDEX(IdentAcoes[Área de abrangência],MATCH($B36,IdentAcoes[ID Ação],0)),"") ->  | O36: =IFERROR(INDEX(IdentAcoes[Detalhamento da área de abrangência],MATCH($B36,IdentAcoes[ID Ação],0)),"") -> 
C37: =INDEX(Financeiro[Descrição da ação],MATCH(B37,Financeiro[ID Ação], 0)) ->  | D37: =IF(INDEX('Acompanhamento das metas 24-27'!$C$2:$C$50,MATCH(B37,'Acompanhamento das metas 24-27'!$A$2:$A$50,0))<>0,INDEX('Acompanhamento das metas 24-27'!$C$2:$C$50,MATCH(B37,'Acompanhamento das metas 24-27'!$A$2:$A$50,0)),"") ->  | E37: =IF(VLOOKUP(A37,Financeiro[[id_ação_Fonte_oculta]:[R$ Executado (2027)]],4,FALSE)=0,"",VLOOKUP(A37,Financeiro[[id_ação_Fonte_oculta]:[R$ Executado (2027)]],4,FALSE)) ->  | F37: =IF(VLOOKUP(A37,Financeiro[[id_ação_Fonte_oculta]:[R$ Executado (2027)]],4,FALSE)=0,"",VLOOKUP(A37,Financeiro[[id_ação_Fonte_oculta]:[R$ Executado (2027)]],5,FALSE)) ->  | G37: =IF(VLOOKUP(A37,Financeiro[[id_ação_Fonte_oculta]:[R$ Executado (2027)]],4,FALSE)=0,"",VLOOKUP(A37,Financeiro[[id_ação_Fonte_oculta]:[R$ Executado (2027)]],8,FALSE)) ->  | H37: =IF(VLOOKUP(A37,Financeiro[[id_ação_Fonte_oculta]:[R$ Executado (2027)]],4,FALSE)=0,"",VLOOKUP(A37,Financeiro[[id_ação_Fonte_oculta]:[R$ Executado (2027)]],11,FALSE)) ->  | I37: =IF(VLOOKUP(A37,Financeiro[[id_ação_Fonte_oculta]:[R$ Executado (2027)]],4,FALSE)=0,"",VLOOKUP(A37,Financeiro[[id_ação_Fonte_oculta]:[R$ Executado (2027)]],14,FALSE)) ->  | J37: 0 | K37: =IFERROR(INDEX(IdentAcoes[SubPDC],MATCH(B37,IdentAcoes[ID Ação],0)),"") ->  | L37: =IFERROR(INDEX(IdentAcoes[Prioridade do PDC],MATCH(B37,IdentAcoes[ID Ação],0)),"") ->  | M37: =IFERROR(INDEX(IdentAcoes[Segmento do executor],MATCH($B37,IdentAcoes[ID Ação],0)),"") ->  | N37: =IFERROR(INDEX(IdentAcoes[Área de abrangência],MATCH($B37,IdentAcoes[ID Ação],0)),"") ->  | O37: =IFERROR(INDEX(IdentAcoes[Detalhamento da área de abrangência],MATCH($B37,IdentAcoes[ID Ação],0)),"") -> 
C38: =INDEX(Financeiro[Descrição da ação],MATCH(B38,Financeiro[ID Ação], 0)) ->  | D38: =IF(INDEX('Acompanhamento das metas 24-27'!$C$2:$C$50,MATCH(B38,'Acompanhamento das metas 24-27'!$A$2:$A$50,0))<>0,INDEX('Acompanhamento das metas 24-27'!$C$2:$C$50,MATCH(B38,'Acompanhamento das metas 24-27'!$A$2:$A$50,0)),"") ->  | E38: =IF(VLOOKUP(A38,Financeiro[[id_ação_Fonte_oculta]:[R$ Executado (2027)]],4,FALSE)=0,"",VLOOKUP(A38,Financeiro[[id_ação_Fonte_oculta]:[R$ Executado (2027)]],4,FALSE)) ->  | F38: =IF(VLOOKUP(A38,Financeiro[[id_ação_Fonte_oculta]:[R$ Executado (2027)]],4,FALSE)=0,"",VLOOKUP(A38,Financeiro[[id_ação_Fonte_oculta]:[R$ Executado (2027)]],5,FALSE)) ->  | G38: =IF(VLOOKUP(A38,Financeiro[[id_ação_Fonte_oculta]:[R$ Executado (2027)]],4,FALSE)=0,"",VLOOKUP(A38,Financeiro[[id_ação_Fonte_oculta]:[R$ Executado (2027)]],8,FALSE)) ->  | H38: =IF(VLOOKUP(A38,Financeiro[[id_ação_Fonte_oculta]:[R$ Executado (2027)]],4,FALSE)=0,"",VLOOKUP(A38,Financeiro[[id_ação_Fonte_oculta]:[R$ Executado (2027)]],11,FALSE)) ->  | I38: =IF(VLOOKUP(A38,Financeiro[[id_ação_Fonte_oculta]:[R$ Executado (2027)]],4,FALSE)=0,"",VLOOKUP(A38,Financeiro[[id_ação_Fonte_oculta]:[R$ Executado (2027)]],14,FALSE)) ->  | J38: 0 | K38: =IFERROR(INDEX(IdentAcoes[SubPDC],MATCH(B38,IdentAcoes[ID Ação],0)),"") ->  | L38: =IFERROR(INDEX(IdentAcoes[Prioridade do PDC],MATCH(B38,IdentAcoes[ID Ação],0)),"") ->  | M38: =IFERROR(INDEX(IdentAcoes[Segmento do executor],MATCH($B38,IdentAcoes[ID Ação],0)),"") ->  | N38: =IFERROR(INDEX(IdentAcoes[Área de abrangência],MATCH($B38,IdentAcoes[ID Ação],0)),"") ->  | O38: =IFERROR(INDEX(IdentAcoes[Detalhamento da área de abrangência],MATCH($B38,IdentAcoes[ID Ação],0)),"") -> 
C39: =INDEX(Financeiro[Descrição da ação],MATCH(B39,Financeiro[ID Ação], 0)) ->  | D39: =IF(INDEX('Acompanhamento das metas 24-27'!$C$2:$C$50,MATCH(B39,'Acompanhamento das metas 24-27'!$A$2:$A$50,0))<>0,INDEX('Acompanhamento das metas 24-27'!$C$2:$C$50,MATCH(B39,'Acompanhamento das metas 24-27'!$A$2:$A$50,0)),"") ->  | E39: =IF(VLOOKUP(A39,Financeiro[[id_ação_Fonte_oculta]:[R$ Executado (2027)]],4,FALSE)=0,"",VLOOKUP(A39,Financeiro[[id_ação_Fonte_oculta]:[R$ Executado (2027)]],4,FALSE)) ->  | F39: =IF(VLOOKUP(A39,Financeiro[[id_ação_Fonte_oculta]:[R$ Executado (2027)]],4,FALSE)=0,"",VLOOKUP(A39,Financeiro[[id_ação_Fonte_oculta]:[R$ Executado (2027)]],5,FALSE)) ->  | G39: =IF(VLOOKUP(A39,Financeiro[[id_ação_Fonte_oculta]:[R$ Executado (2027)]],4,FALSE)=0,"",VLOOKUP(A39,Financeiro[[id_ação_Fonte_oculta]:[R$ Executado (2027)]],8,FALSE)) ->  | H39: =IF(VLOOKUP(A39,Financeiro[[id_ação_Fonte_oculta]:[R$ Executado (2027)]],4,FALSE)=0,"",VLOOKUP(A39,Financeiro[[id_ação_Fonte_oculta]:[R$ Executado (2027)]],11,FALSE)) ->  | I39: =IF(VLOOKUP(A39,Financeiro[[id_ação_Fonte_oculta]:[R$ Executado (2027)]],4,FALSE)=0,"",VLOOKUP(A39,Financeiro[[id_ação_Fonte_oculta]:[R$ Executado (2027)]],14,FALSE)) ->  | J39: 0 | K39: =IFERROR(INDEX(IdentAcoes[SubPDC],MATCH(B39,IdentAcoes[ID Ação],0)),"") ->  | L39: =IFERROR(INDEX(IdentAcoes[Prioridade do PDC],MATCH(B39,IdentAcoes[ID Ação],0)),"") ->  | M39: =IFERROR(INDEX(IdentAcoes[Segmento do executor],MATCH($B39,IdentAcoes[ID Ação],0)),"") ->  | N39: =IFERROR(INDEX(IdentAcoes[Área de abrangência],MATCH($B39,IdentAcoes[ID Ação],0)),"") ->  | O39: =IFERROR(INDEX(IdentAcoes[Detalhamento da área de abrangência],MATCH($B39,IdentAcoes[ID Ação],0)),"") -> 
C40: =INDEX(Financeiro[Descrição da ação],MATCH(B40,Financeiro[ID Ação], 0)) ->  | D40: =IF(INDEX('Acompanhamento das metas 24-27'!$C$2:$C$50,MATCH(B40,'Acompanhamento das metas 24-27'!$A$2:$A$50,0))<>0,INDEX('Acompanhamento das metas 24-27'!$C$2:$C$50,MATCH(B40,'Acompanhamento das metas 24-27'!$A$2:$A$50,0)),"") ->  | E40: =IF(VLOOKUP(A40,Financeiro[[id_ação_Fonte_oculta]:[R$ Executado (2027)]],4,FALSE)=0,"",VLOOKUP(A40,Financeiro[[id_ação_Fonte_oculta]:[R$ Executado (2027)]],4,FALSE)) ->  | F40: =IF(VLOOKUP(A40,Financeiro[[id_ação_Fonte_oculta]:[R$ Executado (2027)]],4,FALSE)=0,"",VLOOKUP(A40,Financeiro[[id_ação_Fonte_oculta]:[R$ Executado (2027)]],5,FALSE)) ->  | G40: =IF(VLOOKUP(A40,Financeiro[[id_ação_Fonte_oculta]:[R$ Executado (2027)]],4,FALSE)=0,"",VLOOKUP(A40,Financeiro[[id_ação_Fonte_oculta]:[R$ Executado (2027)]],8,FALSE)) ->  | H40: =IF(VLOOKUP(A40,Financeiro[[id_ação_Fonte_oculta]:[R$ Executado (2027)]],4,FALSE)=0,"",VLOOKUP(A40,Financeiro[[id_ação_Fonte_oculta]:[R$ Executado (2027)]],11,FALSE)) ->  | I40: =IF(VLOOKUP(A40,Financeiro[[id_ação_Fonte_oculta]:[R$ Executado (2027)]],4,FALSE)=0,"",VLOOKUP(A40,Financeiro[[id_ação_Fonte_oculta]:[R$ Executado (2027)]],14,FALSE)) ->  | J40: 0 | K40: =IFERROR(INDEX(IdentAcoes[SubPDC],MATCH(B40,IdentAcoes[ID Ação],0)),"") ->  | L40: =IFERROR(INDEX(IdentAcoes[Prioridade do PDC],MATCH(B40,IdentAcoes[ID Ação],0)),"") ->  | M40: =IFERROR(INDEX(IdentAcoes[Segmento do executor],MATCH($B40,IdentAcoes[ID Ação],0)),"") ->  | N40: =IFERROR(INDEX(IdentAcoes[Área de abrangência],MATCH($B40,IdentAcoes[ID Ação],0)),"") ->  | O40: =IFERROR(INDEX(IdentAcoes[Detalhamento da área de abrangência],MATCH($B40,IdentAcoes[ID Ação],0)),"") -> 
C41: =INDEX(Financeiro[Descrição da ação],MATCH(B41,Financeiro[ID Ação], 0)) ->  | D41: =IF(INDEX('Acompanhamento das metas 24-27'!$C$2:$C$50,MATCH(B41,'Acompanhamento das metas 24-27'!$A$2:$A$50,0))<>0,INDEX('Acompanhamento das metas 24-27'!$C$2:$C$50,MATCH(B41,'Acompanhamento das metas 24-27'!$A$2:$A$50,0)),"") ->  | E41: =IF(VLOOKUP(A41,Financeiro[[id_ação_Fonte_oculta]:[R$ Executado (2027)]],4,FALSE)=0,"",VLOOKUP(A41,Financeiro[[id_ação_Fonte_oculta]:[R$ Executado (2027)]],4,FALSE)) ->  | F41: =IF(VLOOKUP(A41,Financeiro[[id_ação_Fonte_oculta]:[R$ Executado (2027)]],4,FALSE)=0,"",VLOOKUP(A41,Financeiro[[id_ação_Fonte_oculta]:[R$ Executado (2027)]],5,FALSE)) ->  | G41: =IF(VLOOKUP(A41,Financeiro[[id_ação_Fonte_oculta]:[R$ Executado (2027)]],4,FALSE)=0,"",VLOOKUP(A41,Financeiro[[id_ação_Fonte_oculta]:[R$ Executado (2027)]],8,FALSE)) ->  | H41: =IF(VLOOKUP(A41,Financeiro[[id_ação_Fonte_oculta]:[R$ Executado (2027)]],4,FALSE)=0,"",VLOOKUP(A41,Financeiro[[id_ação_Fonte_oculta]:[R$ Executado (2027)]],11,FALSE)) ->  | I41: =IF(VLOOKUP(A41,Financeiro[[id_ação_Fonte_oculta]:[R$ Executado (2027)]],4,FALSE)=0,"",VLOOKUP(A41,Financeiro[[id_ação_Fonte_oculta]:[R$ Executado (2027)]],14,FALSE)) ->  | J41: 0 | K41: =IFERROR(INDEX(IdentAcoes[SubPDC],MATCH(B41,IdentAcoes[ID Ação],0)),"") ->  | L41: =IFERROR(INDEX(IdentAcoes[Prioridade do PDC],MATCH(B41,IdentAcoes[ID Ação],0)),"") ->  | M41: =IFERROR(INDEX(IdentAcoes[Segmento do executor],MATCH($B41,IdentAcoes[ID Ação],0)),"") ->  | N41: =IFERROR(INDEX(IdentAcoes[Área de abrangência],MATCH($B41,IdentAcoes[ID Ação],0)),"") ->  | O41: =IFERROR(INDEX(IdentAcoes[Detalhamento da área de abrangência],MATCH($B41,IdentAcoes[ID Ação],0)),"") -> 
C42: =INDEX(Financeiro[Descrição da ação],MATCH(B42,Financeiro[ID Ação], 0)) ->  | D42: =IF(INDEX('Acompanhamento das metas 24-27'!$C$2:$C$50,MATCH(B42,'Acompanhamento das metas 24-27'!$A$2:$A$50,0))<>0,INDEX('Acompanhamento das metas 24-27'!$C$2:$C$50,MATCH(B42,'Acompanhamento das metas 24-27'!$A$2:$A$50,0)),"") ->  | E42: =IF(VLOOKUP(A42,Financeiro[[id_ação_Fonte_oculta]:[R$ Executado (2027)]],4,FALSE)=0,"",VLOOKUP(A42,Financeiro[[id_ação_Fonte_oculta]:[R$ Executado (2027)]],4,FALSE)) ->  | F42: =IF(VLOOKUP(A42,Financeiro[[id_ação_Fonte_oculta]:[R$ Executado (2027)]],4,FALSE)=0,"",VLOOKUP(A42,Financeiro[[id_ação_Fonte_oculta]:[R$ Executado (2027)]],5,FALSE)) ->  | G42: =IF(VLOOKUP(A42,Financeiro[[id_ação_Fonte_oculta]:[R$ Executado (2027)]],4,FALSE)=0,"",VLOOKUP(A42,Financeiro[[id_ação_Fonte_oculta]:[R$ Executado (2027)]],8,FALSE)) ->  | H42: =IF(VLOOKUP(A42,Financeiro[[id_ação_Fonte_oculta]:[R$ Executado (2027)]],4,FALSE)=0,"",VLOOKUP(A42,Financeiro[[id_ação_Fonte_oculta]:[R$ Executado (2027)]],11,FALSE)) ->  | I42: =IF(VLOOKUP(A42,Financeiro[[id_ação_Fonte_oculta]:[R$ Executado (2027)]],4,FALSE)=0,"",VLOOKUP(A42,Financeiro[[id_ação_Fonte_oculta]:[R$ Executado (2027)]],14,FALSE)) ->  | J42: 0 | K42: =IFERROR(INDEX(IdentAcoes[SubPDC],MATCH(B42,IdentAcoes[ID Ação],0)),"") ->  | L42: =IFERROR(INDEX(IdentAcoes[Prioridade do PDC],MATCH(B42,IdentAcoes[ID Ação],0)),"") ->  | M42: =IFERROR(INDEX(IdentAcoes[Segmento do executor],MATCH($B42,IdentAcoes[ID Ação],0)),"") ->  | N42: =IFERROR(INDEX(IdentAcoes[Área de abrangência],MATCH($B42,IdentAcoes[ID Ação],0)),"") ->  | O42: =IFERROR(INDEX(IdentAcoes[Detalhamento da área de abrangência],MATCH($B42,IdentAcoes[ID Ação],0)),"") -> 
C43: =INDEX(Financeiro[Descrição da ação],MATCH(B43,Financeiro[ID Ação], 0)) ->  | D43: =IF(INDEX('Acompanhamento das metas 24-27'!$C$2:$C$50,MATCH(B43,'Acompanhamento das metas 24-27'!$A$2:$A$50,0))<>0,INDEX('Acompanhamento das metas 24-27'!$C$2:$C$50,MATCH(B43,'Acompanhamento das metas 24-27'!$A$2:$A$50,0)),"") ->  | E43: =IF(VLOOKUP(A43,Financeiro[[id_ação_Fonte_oculta]:[R$ Executado (2027)]],4,FALSE)=0,"",VLOOKUP(A43,Financeiro[[id_ação_Fonte_oculta]:[R$ Executado (2027)]],4,FALSE)) ->  | F43: =IF(VLOOKUP(A43,Financeiro[[id_ação_Fonte_oculta]:[R$ Executado (2027)]],4,FALSE)=0,"",VLOOKUP(A43,Financeiro[[id_ação_Fonte_oculta]:[R$ Executado (2027)]],5,FALSE)) ->  | G43: =IF(VLOOKUP(A43,Financeiro[[id_ação_Fonte_oculta]:[R$ Executado (2027)]],4,FALSE)=0,"",VLOOKUP(A43,Financeiro[[id_ação_Fonte_oculta]:[R$ Executado (2027)]],8,FALSE)) ->  | H43: =IF(VLOOKUP(A43,Financeiro[[id_ação_Fonte_oculta]:[R$ Executado (2027)]],4,FALSE)=0,"",VLOOKUP(A43,Financeiro[[id_ação_Fonte_oculta]:[R$ Executado (2027)]],11,FALSE)) ->  | I43: =IF(VLOOKUP(A43,Financeiro[[id_ação_Fonte_oculta]:[R$ Executado (2027)]],4,FALSE)=0,"",VLOOKUP(A43,Financeiro[[id_ação_Fonte_oculta]:[R$ Executado (2027)]],14,FALSE)) ->  | J43: 0 | K43: =IFERROR(INDEX(IdentAcoes[SubPDC],MATCH(B43,IdentAcoes[ID Ação],0)),"") ->  | L43: =IFERROR(INDEX(IdentAcoes[Prioridade do PDC],MATCH(B43,IdentAcoes[ID Ação],0)),"") ->  | M43: =IFERROR(INDEX(IdentAcoes[Segmento do executor],MATCH($B43,IdentAcoes[ID Ação],0)),"") ->  | N43: =IFERROR(INDEX(IdentAcoes[Área de abrangência],MATCH($B43,IdentAcoes[ID Ação],0)),"") ->  | O43: =IFERROR(INDEX(IdentAcoes[Detalhamento da área de abrangência],MATCH($B43,IdentAcoes[ID Ação],0)),"") -> 
C44: =INDEX(Financeiro[Descrição da ação],MATCH(B44,Financeiro[ID Ação], 0)) ->  | D44: =IF(INDEX('Acompanhamento das metas 24-27'!$C$2:$C$50,MATCH(B44,'Acompanhamento das metas 24-27'!$A$2:$A$50,0))<>0,INDEX('Acompanhamento das metas 24-27'!$C$2:$C$50,MATCH(B44,'Acompanhamento das metas 24-27'!$A$2:$A$50,0)),"") ->  | E44: =IF(VLOOKUP(A44,Financeiro[[id_ação_Fonte_oculta]:[R$ Executado (2027)]],4,FALSE)=0,"",VLOOKUP(A44,Financeiro[[id_ação_Fonte_oculta]:[R$ Executado (2027)]],4,FALSE)) ->  | F44: =IF(VLOOKUP(A44,Financeiro[[id_ação_Fonte_oculta]:[R$ Executado (2027)]],4,FALSE)=0,"",VLOOKUP(A44,Financeiro[[id_ação_Fonte_oculta]:[R$ Executado (2027)]],5,FALSE)) ->  | G44: =IF(VLOOKUP(A44,Financeiro[[id_ação_Fonte_oculta]:[R$ Executado (2027)]],4,FALSE)=0,"",VLOOKUP(A44,Financeiro[[id_ação_Fonte_oculta]:[R$ Executado (2027)]],8,FALSE)) ->  | H44: =IF(VLOOKUP(A44,Financeiro[[id_ação_Fonte_oculta]:[R$ Executado (2027)]],4,FALSE)=0,"",VLOOKUP(A44,Financeiro[[id_ação_Fonte_oculta]:[R$ Executado (2027)]],11,FALSE)) ->  | I44: =IF(VLOOKUP(A44,Financeiro[[id_ação_Fonte_oculta]:[R$ Executado (2027)]],4,FALSE)=0,"",VLOOKUP(A44,Financeiro[[id_ação_Fonte_oculta]:[R$ Executado (2027)]],14,FALSE)) ->  | J44: 0 | K44: =IFERROR(INDEX(IdentAcoes[SubPDC],MATCH(B44,IdentAcoes[ID Ação],0)),"") ->  | L44: =IFERROR(INDEX(IdentAcoes[Prioridade do PDC],MATCH(B44,IdentAcoes[ID Ação],0)),"") ->  | M44: =IFERROR(INDEX(IdentAcoes[Segmento do executor],MATCH($B44,IdentAcoes[ID Ação],0)),"") ->  | N44: =IFERROR(INDEX(IdentAcoes[Área de abrangência],MATCH($B44,IdentAcoes[ID Ação],0)),"") ->  | O44: =IFERROR(INDEX(IdentAcoes[Detalhamento da área de abrangência],MATCH($B44,IdentAcoes[ID Ação],0)),"") -> 
C45: =INDEX(Financeiro[Descrição da ação],MATCH(B45,Financeiro[ID Ação], 0)) ->  | D45: =IF(INDEX('Acompanhamento das metas 24-27'!$C$2:$C$50,MATCH(B45,'Acompanhamento das metas 24-27'!$A$2:$A$50,0))<>0,INDEX('Acompanhamento das metas 24-27'!$C$2:$C$50,MATCH(B45,'Acompanhamento das metas 24-27'!$A$2:$A$50,0)),"") ->  | E45: =IF(VLOOKUP(A45,Financeiro[[id_ação_Fonte_oculta]:[R$ Executado (2027)]],4,FALSE)=0,"",VLOOKUP(A45,Financeiro[[id_ação_Fonte_oculta]:[R$ Executado (2027)]],4,FALSE)) ->  | F45: =IF(VLOOKUP(A45,Financeiro[[id_ação_Fonte_oculta]:[R$ Executado (2027)]],4,FALSE)=0,"",VLOOKUP(A45,Financeiro[[id_ação_Fonte_oculta]:[R$ Executado (2027)]],5,FALSE)) ->  | G45: =IF(VLOOKUP(A45,Financeiro[[id_ação_Fonte_oculta]:[R$ Executado (2027)]],4,FALSE)=0,"",VLOOKUP(A45,Financeiro[[id_ação_Fonte_oculta]:[R$ Executado (2027)]],8,FALSE)) ->  | H45: =IF(VLOOKUP(A45,Financeiro[[id_ação_Fonte_oculta]:[R$ Executado (2027)]],4,FALSE)=0,"",VLOOKUP(A45,Financeiro[[id_ação_Fonte_oculta]:[R$ Executado (2027)]],11,FALSE)) ->  | I45: =IF(VLOOKUP(A45,Financeiro[[id_ação_Fonte_oculta]:[R$ Executado (2027)]],4,FALSE)=0,"",VLOOKUP(A45,Financeiro[[id_ação_Fonte_oculta]:[R$ Executado (2027)]],14,FALSE)) ->  | J45: 0 | K45: =IFERROR(INDEX(IdentAcoes[SubPDC],MATCH(B45,IdentAcoes[ID Ação],0)),"") ->  | L45: =IFERROR(INDEX(IdentAcoes[Prioridade do PDC],MATCH(B45,IdentAcoes[ID Ação],0)),"") ->  | M45: =IFERROR(INDEX(IdentAcoes[Segmento do executor],MATCH($B45,IdentAcoes[ID Ação],0)),"") ->  | N45: =IFERROR(INDEX(IdentAcoes[Área de abrangência],MATCH($B45,IdentAcoes[ID Ação],0)),"") ->  | O45: =IFERROR(INDEX(IdentAcoes[Detalhamento da área de abrangência],MATCH($B45,IdentAcoes[ID Ação],0)),"") -> 
C46: =INDEX(Financeiro[Descrição da ação],MATCH(B46,Financeiro[ID Ação], 0)) ->  | D46: =IF(INDEX('Acompanhamento das metas 24-27'!$C$2:$C$50,MATCH(B46,'Acompanhamento das metas 24-27'!$A$2:$A$50,0))<>0,INDEX('Acompanhamento das metas 24-27'!$C$2:$C$50,MATCH(B46,'Acompanhamento das metas 24-27'!$A$2:$A$50,0)),"") ->  | E46: =IF(VLOOKUP(A46,Financeiro[[id_ação_Fonte_oculta]:[R$ Executado (2027)]],4,FALSE)=0,"",VLOOKUP(A46,Financeiro[[id_ação_Fonte_oculta]:[R$ Executado (2027)]],4,FALSE)) ->  | F46: =IF(VLOOKUP(A46,Financeiro[[id_ação_Fonte_oculta]:[R$ Executado (2027)]],4,FALSE)=0,"",VLOOKUP(A46,Financeiro[[id_ação_Fonte_oculta]:[R$ Executado (2027)]],5,FALSE)) ->  | G46: =IF(VLOOKUP(A46,Financeiro[[id_ação_Fonte_oculta]:[R$ Executado (2027)]],4,FALSE)=0,"",VLOOKUP(A46,Financeiro[[id_ação_Fonte_oculta]:[R$ Executado (2027)]],8,FALSE)) ->  | H46: =IF(VLOOKUP(A46,Financeiro[[id_ação_Fonte_oculta]:[R$ Executado (2027)]],4,FALSE)=0,"",VLOOKUP(A46,Financeiro[[id_ação_Fonte_oculta]:[R$ Executado (2027)]],11,FALSE)) ->  | I46: =IF(VLOOKUP(A46,Financeiro[[id_ação_Fonte_oculta]:[R$ Executado (2027)]],4,FALSE)=0,"",VLOOKUP(A46,Financeiro[[id_ação_Fonte_oculta]:[R$ Executado (2027)]],14,FALSE)) ->  | J46: 0 | K46: =IFERROR(INDEX(IdentAcoes[SubPDC],MATCH(B46,IdentAcoes[ID Ação],0)),"") ->  | L46: =IFERROR(INDEX(IdentAcoes[Prioridade do PDC],MATCH(B46,IdentAcoes[ID Ação],0)),"") ->  | M46: =IFERROR(INDEX(IdentAcoes[Segmento do executor],MATCH($B46,IdentAcoes[ID Ação],0)),"") ->  | N46: =IFERROR(INDEX(IdentAcoes[Área de abrangência],MATCH($B46,IdentAcoes[ID Ação],0)),"") ->  | O46: =IFERROR(INDEX(IdentAcoes[Detalhamento da área de abrangência],MATCH($B46,IdentAcoes[ID Ação],0)),"") -> 
C47: =INDEX(Financeiro[Descrição da ação],MATCH(B47,Financeiro[ID Ação], 0)) ->  | D47: =IF(INDEX('Acompanhamento das metas 24-27'!$C$2:$C$50,MATCH(B47,'Acompanhamento das metas 24-27'!$A$2:$A$50,0))<>0,INDEX('Acompanhamento das metas 24-27'!$C$2:$C$50,MATCH(B47,'Acompanhamento das metas 24-27'!$A$2:$A$50,0)),"") ->  | E47: =IF(VLOOKUP(A47,Financeiro[[id_ação_Fonte_oculta]:[R$ Executado (2027)]],4,FALSE)=0,"",VLOOKUP(A47,Financeiro[[id_ação_Fonte_oculta]:[R$ Executado (2027)]],4,FALSE)) ->  | F47: =IF(VLOOKUP(A47,Financeiro[[id_ação_Fonte_oculta]:[R$ Executado (2027)]],4,FALSE)=0,"",VLOOKUP(A47,Financeiro[[id_ação_Fonte_oculta]:[R$ Executado (2027)]],5,FALSE)) ->  | G47: =IF(VLOOKUP(A47,Financeiro[[id_ação_Fonte_oculta]:[R$ Executado (2027)]],4,FALSE)=0,"",VLOOKUP(A47,Financeiro[[id_ação_Fonte_oculta]:[R$ Executado (2027)]],8,FALSE)) ->  | H47: =IF(VLOOKUP(A47,Financeiro[[id_ação_Fonte_oculta]:[R$ Executado (2027)]],4,FALSE)=0,"",VLOOKUP(A47,Financeiro[[id_ação_Fonte_oculta]:[R$ Executado (2027)]],11,FALSE)) ->  | I47: =IF(VLOOKUP(A47,Financeiro[[id_ação_Fonte_oculta]:[R$ Executado (2027)]],4,FALSE)=0,"",VLOOKUP(A47,Financeiro[[id_ação_Fonte_oculta]:[R$ Executado (2027)]],14,FALSE)) ->  | J47: 0 | K47: =IFERROR(INDEX(IdentAcoes[SubPDC],MATCH(B47,IdentAcoes[ID Ação],0)),"") ->  | L47: =IFERROR(INDEX(IdentAcoes[Prioridade do PDC],MATCH(B47,IdentAcoes[ID Ação],0)),"") ->  | M47: =IFERROR(INDEX(IdentAcoes[Segmento do executor],MATCH($B47,IdentAcoes[ID Ação],0)),"") ->  | N47: =IFERROR(INDEX(IdentAcoes[Área de abrangência],MATCH($B47,IdentAcoes[ID Ação],0)),"") ->  | O47: =IFERROR(INDEX(IdentAcoes[Detalhamento da área de abrangência],MATCH($B47,IdentAcoes[ID Ação],0)),"") -> 
C48: =INDEX(Financeiro[Descrição da ação],MATCH(B48,Financeiro[ID Ação], 0)) ->  | D48: =IF(INDEX('Acompanhamento das metas 24-27'!$C$2:$C$50,MATCH(B48,'Acompanhamento das metas 24-27'!$A$2:$A$50,0))<>0,INDEX('Acompanhamento das metas 24-27'!$C$2:$C$50,MATCH(B48,'Acompanhamento das metas 24-27'!$A$2:$A$50,0)),"") ->  | E48: =IF(VLOOKUP(A48,Financeiro[[id_ação_Fonte_oculta]:[R$ Executado (2027)]],4,FALSE)=0,"",VLOOKUP(A48,Financeiro[[id_ação_Fonte_oculta]:[R$ Executado (2027)]],4,FALSE)) ->  | F48: =IF(VLOOKUP(A48,Financeiro[[id_ação_Fonte_oculta]:[R$ Executado (2027)]],4,FALSE)=0,"",VLOOKUP(A48,Financeiro[[id_ação_Fonte_oculta]:[R$ Executado (2027)]],5,FALSE)) ->  | G48: =IF(VLOOKUP(A48,Financeiro[[id_ação_Fonte_oculta]:[R$ Executado (2027)]],4,FALSE)=0,"",VLOOKUP(A48,Financeiro[[id_ação_Fonte_oculta]:[R$ Executado (2027)]],8,FALSE)) ->  | H48: =IF(VLOOKUP(A48,Financeiro[[id_ação_Fonte_oculta]:[R$ Executado (2027)]],4,FALSE)=0,"",VLOOKUP(A48,Financeiro[[id_ação_Fonte_oculta]:[R$ Executado (2027)]],11,FALSE)) ->  | I48: =IF(VLOOKUP(A48,Financeiro[[id_ação_Fonte_oculta]:[R$ Executado (2027)]],4,FALSE)=0,"",VLOOKUP(A48,Financeiro[[id_ação_Fonte_oculta]:[R$ Executado (2027)]],14,FALSE)) ->  | J48: 0 | K48: =IFERROR(INDEX(IdentAcoes[SubPDC],MATCH(B48,IdentAcoes[ID Ação],0)),"") ->  | L48: =IFERROR(INDEX(IdentAcoes[Prioridade do PDC],MATCH(B48,IdentAcoes[ID Ação],0)),"") ->  | M48: =IFERROR(INDEX(IdentAcoes[Segmento do executor],MATCH($B48,IdentAcoes[ID Ação],0)),"") ->  | N48: =IFERROR(INDEX(IdentAcoes[Área de abrangência],MATCH($B48,IdentAcoes[ID Ação],0)),"") ->  | O48: =IFERROR(INDEX(IdentAcoes[Detalhamento da área de abrangência],MATCH($B48,IdentAcoes[ID Ação],0)),"") -> 
C49: =INDEX(Financeiro[Descrição da ação],MATCH(B49,Financeiro[ID Ação], 0)) ->  | D49: =IF(INDEX('Acompanhamento das metas 24-27'!$C$2:$C$50,MATCH(B49,'Acompanhamento das metas 24-27'!$A$2:$A$50,0))<>0,INDEX('Acompanhamento das metas 24-27'!$C$2:$C$50,MATCH(B49,'Acompanhamento das metas 24-27'!$A$2:$A$50,0)),"") ->  | E49: =IF(VLOOKUP(A49,Financeiro[[id_ação_Fonte_oculta]:[R$ Executado (2027)]],4,FALSE)=0,"",VLOOKUP(A49,Financeiro[[id_ação_Fonte_oculta]:[R$ Executado (2027)]],4,FALSE)) ->  | F49: =IF(VLOOKUP(A49,Financeiro[[id_ação_Fonte_oculta]:[R$ Executado (2027)]],4,FALSE)=0,"",VLOOKUP(A49,Financeiro[[id_ação_Fonte_oculta]:[R$ Executado (2027)]],5,FALSE)) ->  | G49: =IF(VLOOKUP(A49,Financeiro[[id_ação_Fonte_oculta]:[R$ Executado (2027)]],4,FALSE)=0,"",VLOOKUP(A49,Financeiro[[id_ação_Fonte_oculta]:[R$ Executado (2027)]],8,FALSE)) ->  | H49: =IF(VLOOKUP(A49,Financeiro[[id_ação_Fonte_oculta]:[R$ Executado (2027)]],4,FALSE)=0,"",VLOOKUP(A49,Financeiro[[id_ação_Fonte_oculta]:[R$ Executado (2027)]],11,FALSE)) ->  | I49: =IF(VLOOKUP(A49,Financeiro[[id_ação_Fonte_oculta]:[R$ Executado (2027)]],4,FALSE)=0,"",VLOOKUP(A49,Financeiro[[id_ação_Fonte_oculta]:[R$ Executado (2027)]],14,FALSE)) ->  | J49: 0 | K49: =IFERROR(INDEX(IdentAcoes[SubPDC],MATCH(B49,IdentAcoes[ID Ação],0)),"") ->  | L49: =IFERROR(INDEX(IdentAcoes[Prioridade do PDC],MATCH(B49,IdentAcoes[ID Ação],0)),"") ->  | M49: =IFERROR(INDEX(IdentAcoes[Segmento do executor],MATCH($B49,IdentAcoes[ID Ação],0)),"") ->  | N49: =IFERROR(INDEX(IdentAcoes[Área de abrangência],MATCH($B49,IdentAcoes[ID Ação],0)),"") ->  | O49: =IFERROR(INDEX(IdentAcoes[Detalhamento da área de abrangência],MATCH($B49,IdentAcoes[ID Ação],0)),"") -> 
C50: =INDEX(Financeiro[Descrição da ação],MATCH(B50,Financeiro[ID Ação], 0)) ->  | D50: =IF(INDEX('Acompanhamento das metas 24-27'!$C$2:$C$50,MATCH(B50,'Acompanhamento das metas 24-27'!$A$2:$A$50,0))<>0,INDEX('Acompanhamento das metas 24-27'!$C$2:$C$50,MATCH(B50,'Acompanhamento das metas 24-27'!$A$2:$A$50,0)),"") ->  | E50: =IF(VLOOKUP(A50,Financeiro[[id_ação_Fonte_oculta]:[R$ Executado (2027)]],4,FALSE)=0,"",VLOOKUP(A50,Financeiro[[id_ação_Fonte_oculta]:[R$ Executado (2027)]],4,FALSE)) ->  | F50: =IF(VLOOKUP(A50,Financeiro[[id_ação_Fonte_oculta]:[R$ Executado (2027)]],4,FALSE)=0,"",VLOOKUP(A50,Financeiro[[id_ação_Fonte_oculta]:[R$ Executado (2027)]],5,FALSE)) ->  | G50: =IF(VLOOKUP(A50,Financeiro[[id_ação_Fonte_oculta]:[R$ Executado (2027)]],4,FALSE)=0,"",VLOOKUP(A50,Financeiro[[id_ação_Fonte_oculta]:[R$ Executado (2027)]],8,FALSE)) ->  | H50: =IF(VLOOKUP(A50,Financeiro[[id_ação_Fonte_oculta]:[R$ Executado (2027)]],4,FALSE)=0,"",VLOOKUP(A50,Financeiro[[id_ação_Fonte_oculta]:[R$ Executado (2027)]],11,FALSE)) ->  | I50: =IF(VLOOKUP(A50,Financeiro[[id_ação_Fonte_oculta]:[R$ Executado (2027)]],4,FALSE)=0,"",VLOOKUP(A50,Financeiro[[id_ação_Fonte_oculta]:[R$ Executado (2027)]],14,FALSE)) ->  | J50: 0 | K50: =IFERROR(INDEX(IdentAcoes[SubPDC],MATCH(B50,IdentAcoes[ID Ação],0)),"") ->  | L50: =IFERROR(INDEX(IdentAcoes[Prioridade do PDC],MATCH(B50,IdentAcoes[ID Ação],0)),"") ->  | M50: =IFERROR(INDEX(IdentAcoes[Segmento do executor],MATCH($B50,IdentAcoes[ID Ação],0)),"") ->  | N50: =IFERROR(INDEX(IdentAcoes[Área de abrangência],MATCH($B50,IdentAcoes[ID Ação],0)),"") ->  | O50: =IFERROR(INDEX(IdentAcoes[Detalhamento da área de abrangência],MATCH($B50,IdentAcoes[ID Ação],0)),"") -> 
C51: =INDEX(Financeiro[Descrição da ação],MATCH(B51,Financeiro[ID Ação], 0)) ->  | E51: =IF(VLOOKUP(A51,Financeiro[[id_ação_Fonte_oculta]:[R$ Executado (2027)]],4,FALSE)=0,"",VLOOKUP(A51,Financeiro[[id_ação_Fonte_oculta]:[R$ Executado (2027)]],4,FALSE)) ->  | F51: =IF(VLOOKUP(A51,Financeiro[[id_ação_Fonte_oculta]:[R$ Executado (2027)]],4,FALSE)=0,"",VLOOKUP(A51,Financeiro[[id_ação_Fonte_oculta]:[R$ Executado (2027)]],5,FALSE)) ->  | G51: =IF(VLOOKUP(A51,Financeiro[[id_ação_Fonte_oculta]:[R$ Executado (2027)]],4,FALSE)=0,"",VLOOKUP(A51,Financeiro[[id_ação_Fonte_oculta]:[R$ Executado (2027)]],8,FALSE)) ->  | H51: =IF(VLOOKUP(A51,Financeiro[[id_ação_Fonte_oculta]:[R$ Executado (2027)]],4,FALSE)=0,"",VLOOKUP(A51,Financeiro[[id_ação_Fonte_oculta]:[R$ Executado (2027)]],11,FALSE)) ->  | I51: =IF(VLOOKUP(A51,Financeiro[[id_ação_Fonte_oculta]:[R$ Executado (2027)]],4,FALSE)=0,"",VLOOKUP(A51,Financeiro[[id_ação_Fonte_oculta]:[R$ Executado (2027)]],14,FALSE)) ->  | K51: =IFERROR(INDEX(IdentAcoes[SubPDC],MATCH(B51,IdentAcoes[ID Ação],0)),"") ->  | L51: =IFERROR(INDEX(IdentAcoes[Prioridade do PDC],MATCH(B51,IdentAcoes[ID Ação],0)),"") ->  | M51: =IFERROR(INDEX(IdentAcoes[Segmento do executor],MATCH($B51,IdentAcoes[ID Ação],0)),"") ->  | N51: =IFERROR(INDEX(IdentAcoes[Área de abrangência],MATCH($B51,IdentAcoes[ID Ação],0)),"") ->  | O51: =IFERROR(INDEX(IdentAcoes[Detalhamento da área de abrangência],MATCH($B51,IdentAcoes[ID Ação],0)),"") -> 

Sheet Consolidaçao - 1 (hidden)
A1: Delib. 190 | C1: 2021 (R$ Estimado) | H1: Delib. 246 | I1: 2022 (R$ Estimado) | N1: 2023 (R$ Estimado) | S1: 2022 - 2023 (R$ Estimado)
A2: SubPDC | B2: CFURH | C2: Cobrança Estadual | D2: Cobrança Federal | E2: Outras | F2: TOTAL | H2: SubPDC | I2: CFURH | J2: Cobrança Estadual | K2: Cobrança Federal | L2: Outras | M2: TOTAL | N2: CFURH | O2: Cobrança Estadual | P2: Cobrança Federal | Q2: Outras | R2: TOTAL | S2: TOTAL
A3: 1.1 - SI | B3: =SUMIFS(#REF!,#REF!,A3,#REF!,2021) ->  | C3: =SUMIFS(#REF!,#REF!,A3,#REF!,2021) ->  | D3: =SUMIFS(#REF!,#REF!,A3,#REF!,2021) ->  | E3: =SUMIFS(#REF!,#REF!,A3,#REF!,2021) ->  | F3: =SUM(B3:E3) ->  | H3: 1.1 - Legislação | I3: =SUMIFS(PAPI20_22_23[Recurso financeiro estimado no ano (R$) - CFURH],PAPI20_22_23[SubPDC],'Consolidaçao - 1'!H3,PAPI20_22_23[Ano previsto para início],2022) -> 0 | J3: =SUMIFS(PAPI20_22_23[Recurso financeiro estimado no ano (R$) - Cobrança Estadual],PAPI20_22_23[SubPDC],'Consolidaçao - 1'!H3,PAPI20_22_23[Ano previsto para início],2022) -> 0 | K3: =SUMIFS(PAPI20_22_23[Recurso financeiro estimado no ano (R$) - Cobrança Federal],PAPI20_22_23[SubPDC],'Consolidaçao - 1'!H3,PAPI20_22_23[Ano previsto para início],2022) -> 0 | L3: =SUMIFS(PAPI20_22_23[Recurso financeiro estimado no ano (R$) - Outras],PAPI20_22_23[SubPDC],'Consolidaçao - 1'!H3,PAPI20_22_23[Ano previsto para início],2022) -> 0 | M3: =SUM(I3:L3) -> 0 | N3: =SUMIFS(PAPI20_22_23[Recurso financeiro estimado no ano (R$) - CFURH],PAPI20_22_23[SubPDC],'Consolidaçao - 1'!H3,PAPI20_22_23[Ano previsto para início],2023) -> 0 | O3: =SUMIFS(PAPI20_22_23[Recurso financeiro estimado no ano (R$) - Cobrança Estadual],PAPI20_22_23[SubPDC],'Consolidaçao - 1'!M3,PAPI20_22_23[Ano previsto para início],2023) -> 0 | P3: =SUMIFS(PAPI20_22_23[Recurso financeiro estimado no ano (R$) - Cobrança Federal],PAPI20_22_23[SubPDC],'Consolidaçao - 1'!M3,PAPI20_22_23[Ano previsto para início],2023) -> 0 | Q3: =SUMIFS(PAPI20_22_23[Recurso financeiro estimado no ano (R$) - Outras],PAPI20_22_23[SubPDC],'Consolidaçao - 1'!M3,PAPI20_22_23[Ano previsto para início],2023) -> 0 | R3: =SUM(N3:Q3) -> 0 | S3: =SUM(M3,R3) -> 0
A4: 1.2 - Planejamento | B4: =SUMIFS(#REF!,#REF!,A4,#REF!,2021) ->  | C4: =SUMIFS(#REF!,#REF!,A4,#REF!,2021) ->  | D4: =SUMIFS(#REF!,#REF!,A4,#REF!,2021) ->  | E4: =SUMIFS(#REF!,#REF!,A4,#REF!,2021) ->  | H4: 1.2 - Planejamento | I4: =SUMIFS(PAPI20_22_23[Recurso financeiro estimado no ano (R$) - CFURH],PAPI20_22_23[SubPDC],'Consolidaçao - 1'!H4,PAPI20_22_23[Ano previsto para início],2022) -> 0 | J4: =SUMIFS(PAPI20_22_23[Recurso financeiro estimado no ano (R$) - Cobrança Estadual],PAPI20_22_23[SubPDC],'Consolidaçao - 1'!H4,PAPI20_22_23[Ano previsto para início],2022) -> 0 | K4: =SUMIFS(PAPI20_22_23[Recurso financeiro estimado no ano (R$) - Cobrança Federal],PAPI20_22_23[SubPDC],'Consolidaçao - 1'!H4,PAPI20_22_23[Ano previsto para início],2022) -> 0 | L4: =SUMIFS(PAPI20_22_23[Recurso financeiro estimado no ano (R$) - Outras],PAPI20_22_23[SubPDC],'Consolidaçao - 1'!H4,PAPI20_22_23[Ano previsto para início],2022) -> 0 | M4: 0 | N4: =SUMIFS(PAPI20_22_23[Recurso financeiro estimado no ano (R$) - CFURH],PAPI20_22_23[SubPDC],'Consolidaçao - 1'!H4,PAPI20_22_23[Ano previsto para início],2023) -> 0 | O4: =SUMIFS(PAPI20_22_23[Recurso financeiro estimado no ano (R$) - Cobrança Estadual],PAPI20_22_23[SubPDC],'Consolidaçao - 1'!M4,PAPI20_22_23[Ano previsto para início],2023) -> 0 | P4: =SUMIFS(PAPI20_22_23[Recurso financeiro estimado no ano (R$) - Cobrança Federal],PAPI20_22_23[SubPDC],'Consolidaçao - 1'!M4,PAPI20_22_23[Ano previsto para início],2023) -> 0 | Q4: =SUMIFS(PAPI20_22_23[Recurso financeiro estimado no ano (R$) - Outras],PAPI20_22_23[SubPDC],'Consolidaçao - 1'!M4,PAPI20_22_23[Ano previsto para início],2023) -> 0 | R4: 0 | S4: =SUM(M4,R4) -> 0
A5: 1.3 - Enquadramento | B5: =SUMIFS(#REF!,#REF!,A5,#REF!,2021) ->  | C5: =SUMIFS(#REF!,#REF!,A5,#REF!,2021) ->  | D5: =SUMIFS(#REF!,#REF!,A5,#REF!,2021) ->  | E5: =SUMIFS(#REF!,#REF!,A5,#REF!,2021) ->  | H5: 2.1 - Plano | I5: =SUMIFS(PAPI20_22_23[Recurso financeiro estimado no ano (R$) - CFURH],PAPI20_22_23[SubPDC],'Consolidaçao - 1'!H5,PAPI20_22_23[Ano previsto para início],2022) -> 0 | J5: =SUMIFS(PAPI20_22_23[Recurso financeiro estimado no ano (R$) - Cobrança Estadual],PAPI20_22_23[SubPDC],'Consolidaçao - 1'!H5,PAPI20_22_23[Ano previsto para início],2022) -> 0 | K5: =SUMIFS(PAPI20_22_23[Recurso financeiro estimado no ano (R$) - Cobrança Federal],PAPI20_22_23[SubPDC],'Consolidaçao - 1'!H5,PAPI20_22_23[Ano previsto para início],2022) -> 0 | L5: =SUMIFS(PAPI20_22_23[Recurso financeiro estimado no ano (R$) - Outras],PAPI20_22_23[SubPDC],'Consolidaçao - 1'!H5,PAPI20_22_23[Ano previsto para início],2022) -> 0 | M5: 0 | N5: =SUMIFS(PAPI20_22_23[Recurso financeiro estimado no ano (R$) - CFURH],PAPI20_22_23[SubPDC],'Consolidaçao - 1'!H5,PAPI20_22_23[Ano previsto para início],2023) -> 0 | O5: =SUMIFS(PAPI20_22_23[Recurso financeiro estimado no ano (R$) - Cobrança Estadual],PAPI20_22_23[SubPDC],'Consolidaçao - 1'!M5,PAPI20_22_23[Ano previsto para início],2023) -> 0 | P5: =SUMIFS(PAPI20_22_23[Recurso financeiro estimado no ano (R$) - Cobrança Federal],PAPI20_22_23[SubPDC],'Consolidaçao - 1'!M5,PAPI20_22_23[Ano previsto para início],2023) -> 0 | Q5: =SUMIFS(PAPI20_22_23[Recurso financeiro estimado no ano (R$) - Outras],PAPI20_22_23[SubPDC],'Consolidaçao - 1'!M5,PAPI20_22_23[Ano previsto para início],2023) -> 0 | R5: 0 | S5: 0
A6: 1.4 - Monitoramento | B6: =SUMIFS(#REF!,#REF!,A6,#REF!,2021) ->  | C6: =SUMIFS(#REF!,#REF!,A6,#REF!,2021) ->  | D6: =SUMIFS(#REF!,#REF!,A6,#REF!,2021) ->  | E6: =SUMIFS(#REF!,#REF!,A6,#REF!,2021) ->  | H6: 2.2 - Outorga | I6: =SUMIFS(PAPI20_22_23[Recurso financeiro estimado no ano (R$) - CFURH],PAPI20_22_23[SubPDC],'Consolidaçao - 1'!H6,PAPI20_22_23[Ano previsto para início],2022) -> 0 | J6: =SUMIFS(PAPI20_22_23[Recurso financeiro estimado no ano (R$) - Cobrança Estadual],PAPI20_22_23[SubPDC],'Consolidaçao - 1'!H6,PAPI20_22_23[Ano previsto para início],2022) -> 0 | K6: =SUMIFS(PAPI20_22_23[Recurso financeiro estimado no ano (R$) - Cobrança Federal],PAPI20_22_23[SubPDC],'Consolidaçao - 1'!H6,PAPI20_22_23[Ano previsto para início],2022) -> 0 | L6: =SUMIFS(PAPI20_22_23[Recurso financeiro estimado no ano (R$) - Outras],PAPI20_22_23[SubPDC],'Consolidaçao - 1'!H6,PAPI20_22_23[Ano previsto para início],2022) -> 0 | M6: 0 | N6: =SUMIFS(PAPI20_22_23[Recurso financeiro estimado no ano (R$) - CFURH],PAPI20_22_23[SubPDC],'Consolidaçao - 1'!H6,PAPI20_22_23[Ano previsto para início],2023) -> 0 | O6: =SUMIFS(PAPI20_22_23[Recurso financeiro estimado no ano (R$) - Cobrança Estadual],PAPI20_22_23[SubPDC],'Consolidaçao - 1'!M6,PAPI20_22_23[Ano previsto para início],2023) -> 0 | P6: =SUMIFS(PAPI20_22_23[Recurso financeiro estimado no ano (R$) - Cobrança Federal],PAPI20_22_23[SubPDC],'Consolidaçao - 1'!M6,PAPI20_22_23[Ano previsto para início],2023) -> 0 | Q6: =SUMIFS(PAPI20_22_23[Recurso financeiro estimado no ano (R$) - Outras],PAPI20_22_23[SubPDC],'Consolidaçao - 1'!M6,PAPI20_22_23[Ano previsto para início],2023) -> 0 | R6: 0 | S6: 0
A7: 1.5 - Disponibilidade | B7: =SUMIFS(#REF!,#REF!,A7,#REF!,2021) ->  | C7: =SUMIFS(#REF!,#REF!,A7,#REF!,2021) ->  | D7: =SUMIFS(#REF!,#REF!,A7,#REF!,2021) ->  | E7: =SUMIFS(#REF!,#REF!,A7,#REF!,2021) ->  | H7: 2.3 - Cobrança | I7: =SUMIFS(PAPI20_22_23[Recurso financeiro estimado no ano (R$) - CFURH],PAPI20_22_23[SubPDC],'Consolidaçao - 1'!H7,PAPI20_22_23[Ano previsto para início],2022) -> 0 | J7: =SUMIFS(PAPI20_22_23[Recurso financeiro estimado no ano (R$) - Cobrança Estadual],PAPI20_22_23[SubPDC],'Consolidaçao - 1'!H7,PAPI20_22_23[Ano previsto para início],2022) -> 0 | K7: =SUMIFS(PAPI20_22_23[Recurso financeiro estimado no ano (R$) - Cobrança Federal],PAPI20_22_23[SubPDC],'Consolidaçao - 1'!H7,PAPI20_22_23[Ano previsto para início],2022) -> 0 | L7: =SUMIFS(PAPI20_22_23[Recurso financeiro estimado no ano (R$) - Outras],PAPI20_22_23[SubPDC],'Consolidaçao - 1'!H7,PAPI20_22_23[Ano previsto para início],2022) -> 0 | M7: 0 | N7: =SUMIFS(PAPI20_22_23[Recurso financeiro estimado no ano (R$) - CFURH],PAPI20_22_23[SubPDC],'Consolidaçao - 1'!H7,PAPI20_22_23[Ano previsto para início],2023) -> 0 | O7: =SUMIFS(PAPI20_22_23[Recurso financeiro estimado no ano (R$) - Cobrança Estadual],PAPI20_22_23[SubPDC],'Consolidaçao - 1'!M7,PAPI20_22_23[Ano previsto para início],2023) -> 0 | P7: =SUMIFS(PAPI20_22_23[Recurso financeiro estimado no ano (R$) - Cobrança Federal],PAPI20_22_23[SubPDC],'Consolidaçao - 1'!M7,PAPI20_22_23[Ano previsto para início],2023) -> 0 | Q7: =SUMIFS(PAPI20_22_23[Recurso financeiro estimado no ano (R$) - Outras],PAPI20_22_23[SubPDC],'Consolidaçao - 1'!M7,PAPI20_22_23[Ano previsto para início],2023) -> 0 | R7: 0 | S7: 0
A8: 1.6 - Legislação | B8: =SUMIFS(#REF!,#REF!,A8,#REF!,2021) ->  | C8: =SUMIFS(#REF!,#REF!,A8,#REF!,2021) ->  | D8: =SUMIFS(#REF!,#REF!,A8,#REF!,2021) ->  | E8: =SUMIFS(#REF!,#REF!,A8,#REF!,2021) ->  | H8: 2.4 - Enquadramento | I8: =SUMIFS(PAPI20_22_23[Recurso financeiro estimado no ano (R$) - CFURH],PAPI20_22_23[SubPDC],'Consolidaçao - 1'!H8,PAPI20_22_23[Ano previsto para início],2022) -> 0 | J8: =SUMIFS(PAPI20_22_23[Recurso financeiro estimado no ano (R$) - Cobrança Estadual],PAPI20_22_23[SubPDC],'Consolidaçao - 1'!H8,PAPI20_22_23[Ano previsto para início],2022) -> 0 | K8: =SUMIFS(PAPI20_22_23[Recurso financeiro estimado no ano (R$) - Cobrança Federal],PAPI20_22_23[SubPDC],'Consolidaçao - 1'!H8,PAPI20_22_23[Ano previsto para início],2022) -> 0 | L8: =SUMIFS(PAPI20_22_23[Recurso financeiro estimado no ano (R$) - Outras],PAPI20_22_23[SubPDC],'Consolidaçao - 1'!H8,PAPI20_22_23[Ano previsto para início],2022) -> 0 | M8: 0 | N8: =SUMIFS(PAPI20_22_23[Recurso financeiro estimado no ano (R$) - CFURH],PAPI20_22_23[SubPDC],'Consolidaçao - 1'!H8,PAPI20_22_23[Ano previsto para início],2023) -> 0 | O8: =SUMIFS(PAPI20_22_23[Recurso financeiro estimado no ano (R$) - Cobrança Estadual],PAPI20_22_23[SubPDC],'Consolidaçao - 1'!M8,PAPI20_22_23[Ano previsto para início],2023) -> 0 | P8: =SUMIFS(PAPI20_22_23[Recurso financeiro estimado no ano (R$) - Cobrança Federal],PAPI20_22_23[SubPDC],'Consolidaçao - 1'!M8,PAPI20_22_23[Ano previsto para início],2023) -> 0 | Q8: =SUMIFS(PAPI20_22_23[Recurso financeiro estimado no ano (R$) - Outras],PAPI20_22_23[SubPDC],'Consolidaçao - 1'!M8,PAPI20_22_23[Ano previsto para início],2023) -> 0 | R8: 0 | S8: 0
A9: 1.7 - Poluição | B9: =SUMIFS(#REF!,#REF!,A9,#REF!,2021) ->  | C9: =SUMIFS(#REF!,#REF!,A9,#REF!,2021) ->  | D9: =SUMIFS(#REF!,#REF!,A9,#REF!,2021) ->  | E9: =SUMIFS(#REF!,#REF!,A9,#REF!,2021) ->  | H9: 2.5 - Monitoramento e SI | I9: =SUMIFS(PAPI20_22_23[Recurso financeiro estimado no ano (R$) - CFURH],PAPI20_22_23[SubPDC],'Consolidaçao - 1'!H9,PAPI20_22_23[Ano previsto para início],2022) -> 0 | J9: =SUMIFS(PAPI20_22_23[Recurso financeiro estimado no ano (R$) - Cobrança Estadual],PAPI20_22_23[SubPDC],'Consolidaçao - 1'!H9,PAPI20_22_23[Ano previsto para início],2022) -> 0 | K9: =SUMIFS(PAPI20_22_23[Recurso financeiro estimado no ano (R$) - Cobrança Federal],PAPI20_22_23[SubPDC],'Consolidaçao - 1'!H9,PAPI20_22_23[Ano previsto para início],2022) -> 0 | L9: =SUMIFS(PAPI20_22_23[Recurso financeiro estimado no ano (R$) - Outras],PAPI20_22_23[SubPDC],'Consolidaçao - 1'!H9,PAPI20_22_23[Ano previsto para início],2022) -> 0 | M9: 0 | N9: =SUMIFS(PAPI20_22_23[Recurso financeiro estimado no ano (R$) - CFURH],PAPI20_22_23[SubPDC],'Consolidaçao - 1'!H9,PAPI20_22_23[Ano previsto para início],2023) -> 0 | O9: =SUMIFS(PAPI20_22_23[Recurso financeiro estimado no ano (R$) - Cobrança Estadual],PAPI20_22_23[SubPDC],'Consolidaçao - 1'!M9,PAPI20_22_23[Ano previsto para início],2023) -> 0 | P9: =SUMIFS(PAPI20_22_23[Recurso financeiro estimado no ano (R$) - Cobrança Federal],PAPI20_22_23[SubPDC],'Consolidaçao - 1'!M9,PAPI20_22_23[Ano previsto para início],2023) -> 0 | Q9: =SUMIFS(PAPI20_22_23[Recurso financeiro estimado no ano (R$) - Outras],PAPI20_22_23[SubPDC],'Consolidaçao - 1'!M9,PAPI20_22_23[Ano previsto para início],2023) -> 0 | R9: 0 | S9: 0
A10: 2.1 - Planos | B10: =SUMIFS(#REF!,#REF!,A10,#REF!,2021) ->  | C10: =SUMIFS(#REF!,#REF!,A10,#REF!,2021) ->  | D10: =SUMIFS(#REF!,#REF!,A10,#REF!,2021) ->  | E10: =SUMIFS(#REF!,#REF!,A10,#REF!,2021) ->  | H10: 2.6 - Integração | I10: =SUMIFS(PAPI20_22_23[Recurso financeiro estimado no ano (R$) - CFURH],PAPI20_22_23[SubPDC],'Consolidaçao - 1'!H10,PAPI20_22_23[Ano previsto para início],2022) -> 0 | J10: =SUMIFS(PAPI20_22_23[Recurso financeiro estimado no ano (R$) - Cobrança Estadual],PAPI20_22_23[SubPDC],'Consolidaçao - 1'!H10,PAPI20_22_23[Ano previsto para início],2022) -> 0 | K10: =SUMIFS(PAPI20_22_23[Recurso financeiro estimado no ano (R$) - Cobrança Federal],PAPI20_22_23[SubPDC],'Consolidaçao - 1'!H10,PAPI20_22_23[Ano previsto para início],2022) -> 0 | L10: =SUMIFS(PAPI20_22_23[Recurso financeiro estimado no ano (R$) - Outras],PAPI20_22_23[SubPDC],'Consolidaçao - 1'!H10,PAPI20_22_23[Ano previsto para início],2022) -> 0 | M10: 0 | N10: =SUMIFS(PAPI20_22_23[Recurso financeiro estimado no ano (R$) - CFURH],PAPI20_22_23[SubPDC],'Consolidaçao - 1'!H10,PAPI20_22_23[Ano previsto para início],2023) -> 0 | O10: =SUMIFS(PAPI20_22_23[Recurso financeiro estimado no ano (R$) - Cobrança Estadual],PAPI20_22_23[SubPDC],'Consolidaçao - 1'!M10,PAPI20_22_23[Ano previsto para início],2023) -> 0 | P10: =SUMIFS(PAPI20_22_23[Recurso financeiro estimado no ano (R$) - Cobrança Federal],PAPI20_22_23[SubPDC],'Consolidaçao - 1'!M10,PAPI20_22_23[Ano previsto para início],2023) -> 0 | Q10: =SUMIFS(PAPI20_22_23[Recurso financeiro estimado no ano (R$) - Outras],PAPI20_22_23[SubPDC],'Consolidaçao - 1'!M10,PAPI20_22_23[Ano previsto para início],2023) -> 0 | R10: 0 | S10: 0
A11: 2.2 - Outorga | B11: =SUMIFS(#REF!,#REF!,A11,#REF!,2021) ->  | C11: =SUMIFS(#REF!,#REF!,A11,#REF!,2021) ->  | D11: =SUMIFS(#REF!,#REF!,A11,#REF!,2021) ->  | E11: =SUMIFS(#REF!,#REF!,A11,#REF!,2021) ->  | H11: 2.7 - CORHI | I11: =SUMIFS(PAPI20_22_23[Recurso financeiro estimado no ano (R$) - CFURH],PAPI20_22_23[SubPDC],'Consolidaçao - 1'!H11,PAPI20_22_23[Ano previsto para início],2022) -> 0 | J11: =SUMIFS(PAPI20_22_23[Recurso financeiro estimado no ano (R$) - Cobrança Estadual],PAPI20_22_23[SubPDC],'Consolidaçao - 1'!H11,PAPI20_22_23[Ano previsto para início],2022) -> 0 | K11: =SUMIFS(PAPI20_22_23[Recurso financeiro estimado no ano (R$) - Cobrança Federal],PAPI20_22_23[SubPDC],'Consolidaçao - 1'!H11,PAPI20_22_23[Ano previsto para início],2022) -> 0 | L11: =SUMIFS(PAPI20_22_23[Recurso financeiro estimado no ano (R$) - Outras],PAPI20_22_23[SubPDC],'Consolidaçao - 1'!H11,PAPI20_22_23[Ano previsto para início],2022) -> 0 | M11: 0 | N11: =SUMIFS(PAPI20_22_23[Recurso financeiro estimado no ano (R$) - CFURH],PAPI20_22_23[SubPDC],'Consolidaçao - 1'!H11,PAPI20_22_23[Ano previsto para início],2023) -> 0 | O11: =SUMIFS(PAPI20_22_23[Recurso financeiro estimado no ano (R$) - Cobrança Estadual],PAPI20_22_23[SubPDC],'Consolidaçao - 1'!M11,PAPI20_22_23[Ano previsto para início],2023) -> 0 | P11: =SUMIFS(PAPI20_22_23[Recurso financeiro estimado no ano (R$) - Cobrança Federal],PAPI20_22_23[SubPDC],'Consolidaçao - 1'!M11,PAPI20_22_23[Ano previsto para início],2023) -> 0 | Q11: =SUMIFS(PAPI20_22_23[Recurso financeiro estimado no ano (R$) - Outras],PAPI20_22_23[SubPDC],'Consolidaçao - 1'!M11,PAPI20_22_23[Ano previsto para início],2023) -> 0 | R11: 0 | S11: 0
A12: 2.3 - Cobrança | B12: =SUMIFS(#REF!,#REF!,A12,#REF!,2021) ->  | C12: =SUMIFS(#REF!,#REF!,A12,#REF!,2021) ->  | D12: =SUMIFS(#REF!,#REF!,A12,#REF!,2021) ->  | E12: =SUMIFS(#REF!,#REF!,A12,#REF!,2021) ->  | H12: 3.1 - Efluentes | I12: =SUMIFS(PAPI20_22_23[Recurso financeiro estimado no ano (R$) - CFURH],PAPI20_22_23[SubPDC],'Consolidaçao - 1'!H12,PAPI20_22_23[Ano previsto para início],2022) -> 0 | J12: =SUMIFS(PAPI20_22_23[Recurso financeiro estimado no ano (R$) - Cobrança Estadual],PAPI20_22_23[SubPDC],'Consolidaçao - 1'!H12,PAPI20_22_23[Ano previsto para início],2022) -> 0 | K12: =SUMIFS(PAPI20_22_23[Recurso financeiro estimado no ano (R$) - Cobrança Federal],PAPI20_22_23[SubPDC],'Consolidaçao - 1'!H12,PAPI20_22_23[Ano previsto para início],2022) -> 0 | L12: =SUMIFS(PAPI20_22_23[Recurso financeiro estimado no ano (R$) - Outras],PAPI20_22_23[SubPDC],'Consolidaçao - 1'!H12,PAPI20_22_23[Ano previsto para início],2022) -> 0 | M12: 0 | N12: =SUMIFS(PAPI20_22_23[Recurso financeiro estimado no ano (R$) - CFURH],PAPI20_22_23[SubPDC],'Consolidaçao - 1'!H12,PAPI20_22_23[Ano previsto para início],2023) -> 0 | O12: =SUMIFS(PAPI20_22_23[Recurso financeiro estimado no ano (R$) - Cobrança Estadual],PAPI20_22_23[SubPDC],'Consolidaçao - 1'!M12,PAPI20_22_23[Ano previsto para início],2023) -> 0 | P12: =SUMIFS(PAPI20_22_23[Recurso financeiro estimado no ano (R$) - Cobrança Federal],PAPI20_22_23[SubPDC],'Consolidaçao - 1'!M12,PAPI20_22_23[Ano previsto para início],2023) -> 0 | Q12: =SUMIFS(PAPI20_22_23[Recurso financeiro estimado no ano (R$) - Outras],PAPI20_22_23[SubPDC],'Consolidaçao - 1'!M12,PAPI20_22_23[Ano previsto para início],2023) -> 0 | R12: 0 | S12: 0
A13: 2.4 - Efetivação | B13: =SUMIFS(#REF!,#REF!,A13,#REF!,2021) ->  | C13: =SUMIFS(#REF!,#REF!,A13,#REF!,2021) ->  | D13: =SUMIFS(#REF!,#REF!,A13,#REF!,2021) ->  | E13: =SUMIFS(#REF!,#REF!,A13,#REF!,2021) ->  | H13: 3.2 - Poluição | I13: =SUMIFS(PAPI20_22_23[Recurso financeiro estimado no ano (R$) - CFURH],PAPI20_22_23[SubPDC],'Consolidaçao - 1'!H13,PAPI20_22_23[Ano previsto para início],2022) -> 0 | J13: =SUMIFS(PAPI20_22_23[Recurso financeiro estimado no ano (R$) - Cobrança Estadual],PAPI20_22_23[SubPDC],'Consolidaçao - 1'!H13,PAPI20_22_23[Ano previsto para início],2022) -> 0 | K13: =SUMIFS(PAPI20_22_23[Recurso financeiro estimado no ano (R$) - Cobrança Federal],PAPI20_22_23[SubPDC],'Consolidaçao - 1'!H13,PAPI20_22_23[Ano previsto para início],2022) -> 0 | L13: =SUMIFS(PAPI20_22_23[Recurso financeiro estimado no ano (R$) - Outras],PAPI20_22_23[SubPDC],'Consolidaçao - 1'!H13,PAPI20_22_23[Ano previsto para início],2022) -> 0 | M13: 0 | N13: =SUMIFS(PAPI20_22_23[Recurso financeiro estimado no ano (R$) - CFURH],PAPI20_22_23[SubPDC],'Consolidaçao - 1'!H13,PAPI20_22_23[Ano previsto para início],2023) -> 0 | O13: =SUMIFS(PAPI20_22_23[Recurso financeiro estimado no ano (R$) - Cobrança Estadual],PAPI20_22_23[SubPDC],'Consolidaçao - 1'!M13,PAPI20_22_23[Ano previsto para início],2023) -> 0 | P13: =SUMIFS(PAPI20_22_23[Recurso financeiro estimado no ano (R$) - Cobrança Federal],PAPI20_22_23[SubPDC],'Consolidaçao - 1'!M13,PAPI20_22_23[Ano previsto para início],2023) -> 0 | Q13: =SUMIFS(PAPI20_22_23[Recurso financeiro estimado no ano (R$) - Outras],PAPI20_22_23[SubPDC],'Consolidaçao - 1'!M13,PAPI20_22_23[Ano previsto para início],2023) -> 0 | R13: 0 | S13: 0
A14: 2.5 - Integração | B14: =SUMIFS(#REF!,#REF!,A14,#REF!,2021) ->  | C14: =SUMIFS(#REF!,#REF!,A14,#REF!,2021) ->  | D14: =SUMIFS(#REF!,#REF!,A14,#REF!,2021) ->  | E14: =SUMIFS(#REF!,#REF!,A14,#REF!,2021) ->  | H14: 3.3 - Resíduos | I14: =SUMIFS(PAPI20_22_23[Recurso financeiro estimado no ano (R$) - CFURH],PAPI20_22_23[SubPDC],'Consolidaçao - 1'!H14,PAPI20_22_23[Ano previsto para início],2022) -> 0 | J14: =SUMIFS(PAPI20_22_23[Recurso financeiro estimado no ano (R$) - Cobrança Estadual],PAPI20_22_23[SubPDC],'Consolidaçao - 1'!H14,PAPI20_22_23[Ano previsto para início],2022) -> 0 | K14: =SUMIFS(PAPI20_22_23[Recurso financeiro estimado no ano (R$) - Cobrança Federal],PAPI20_22_23[SubPDC],'Consolidaçao - 1'!H14,PAPI20_22_23[Ano previsto para início],2022) -> 0 | L14: =SUMIFS(PAPI20_22_23[Recurso financeiro estimado no ano (R$) - Outras],PAPI20_22_23[SubPDC],'Consolidaçao - 1'!H14,PAPI20_22_23[Ano previsto para início],2022) -> 0 | M14: 0 | N14: =SUMIFS(PAPI20_22_23[Recurso financeiro estimado no ano (R$) - CFURH],PAPI20_22_23[SubPDC],'Consolidaçao - 1'!H14,PAPI20_22_23[Ano previsto para início],2023) -> 0 | O14: =SUMIFS(PAPI20_22_23[Recurso financeiro estimado no ano (R$) - Cobrança Estadual],PAPI20_22_23[SubPDC],'Consolidaçao - 1'!M14,PAPI20_22_23[Ano previsto para início],2023) -> 0 | P14: =SUMIFS(PAPI20_22_23[Recurso financeiro estimado no ano (R$) - Cobrança Federal],PAPI20_22_23[SubPDC],'Consolidaçao - 1'!M14,PAPI20_22_23[Ano previsto para início],2023) -> 0 | Q14: =SUMIFS(PAPI20_22_23[Recurso financeiro estimado no ano (R$) - Outras],PAPI20_22_23[SubPDC],'Consolidaçao - 1'!M14,PAPI20_22_23[Ano previsto para início],2023) -> 0 | R14: 0 | S14: 0
A15: 2.6 - CORHI | B15: =SUMIFS(#REF!,#REF!,A15,#REF!,2021) ->  | C15: =SUMIFS(#REF!,#REF!,A15,#REF!,2021) ->  | D15: =SUMIFS(#REF!,#REF!,A15,#REF!,2021) ->  | E15: =SUMIFS(#REF!,#REF!,A15,#REF!,2021) ->  | H15: 3.4 - Intervenções | I15: =SUMIFS(PAPI20_22_23[Recurso financeiro estimado no ano (R$) - CFURH],PAPI20_22_23[SubPDC],'Consolidaçao - 1'!H15,PAPI20_22_23[Ano previsto para início],2022) -> 0 | J15: =SUMIFS(PAPI20_22_23[Recurso financeiro estimado no ano (R$) - Cobrança Estadual],PAPI20_22_23[SubPDC],'Consolidaçao - 1'!H15,PAPI20_22_23[Ano previsto para início],2022) -> 0 | K15: =SUMIFS(PAPI20_22_23[Recurso financeiro estimado no ano (R$) - Cobrança Federal],PAPI20_22_23[SubPDC],'Consolidaçao - 1'!H15,PAPI20_22_23[Ano previsto para início],2022) -> 0 | L15: =SUMIFS(PAPI20_22_23[Recurso financeiro estimado no ano (R$) - Outras],PAPI20_22_23[SubPDC],'Consolidaçao - 1'!H15,PAPI20_22_23[Ano previsto para início],2022) -> 0 | M15: 0 | N15: =SUMIFS(PAPI20_22_23[Recurso financeiro estimado no ano (R$) - CFURH],PAPI20_22_23[SubPDC],'Consolidaçao - 1'!H15,PAPI20_22_23[Ano previsto para início],2023) -> 0 | O15: =SUMIFS(PAPI20_22_23[Recurso financeiro estimado no ano (R$) - Cobrança Estadual],PAPI20_22_23[SubPDC],'Consolidaçao - 1'!H15,PAPI20_22_23[Ano previsto para início],2023) -> 0 | P15: =SUMIFS(PAPI20_22_23[Recurso financeiro estimado no ano (R$) - Cobrança Federal],PAPI20_22_23[SubPDC],'Consolidaçao - 1'!H15,PAPI20_22_23[Ano previsto para início],2023) -> 0 | Q15: =SUMIFS(PAPI20_22_23[Recurso financeiro estimado no ano (R$) - Outras],PAPI20_22_23[SubPDC],'Consolidaçao - 1'!H15,PAPI20_22_23[Ano previsto para início],2023) -> 0 | R15: 0 | S15: 0
A16: 3.1 - Efluentes | B16: =SUMIFS(#REF!,#REF!,A16,#REF!,2021) ->  | C16: =SUMIFS(#REF!,#REF!,A16,#REF!,2021) ->  | D16: =SUMIFS(#REF!,#REF!,A16,#REF!,2021) ->  | E16: =SUMIFS(#REF!,#REF!,A16,#REF!,2021) ->  | H16: 4.1 - Erosão | I16: =SUMIFS(PAPI20_22_23[Recurso financeiro estimado no ano (R$) - CFURH],PAPI20_22_23[SubPDC],'Consolidaçao - 1'!H16,PAPI20_22_23[Ano previsto para início],2022) -> 0 | J16: =SUMIFS(PAPI20_22_23[Recurso financeiro estimado no ano (R$) - Cobrança Estadual],PAPI20_22_23[SubPDC],'Consolidaçao - 1'!H16,PAPI20_22_23[Ano previsto para início],2022) -> 0 | K16: =SUMIFS(PAPI20_22_23[Recurso financeiro estimado no ano (R$) - Cobrança Federal],PAPI20_22_23[SubPDC],'Consolidaçao - 1'!H16,PAPI20_22_23[Ano previsto para início],2022) -> 0 | L16: =SUMIFS(PAPI20_22_23[Recurso financeiro estimado no ano (R$) - Outras],PAPI20_22_23[SubPDC],'Consolidaçao - 1'!H16,PAPI20_22_23[Ano previsto para início],2022) -> 0 | M16: 0 | N16: =SUMIFS(PAPI20_22_23[Recurso financeiro estimado no ano (R$) - CFURH],PAPI20_22_23[SubPDC],'Consolidaçao - 1'!H16,PAPI20_22_23[Ano previsto para início],2023) -> 0 | O16: =SUMIFS(PAPI20_22_23[Recurso financeiro estimado no ano (R$) - Cobrança Estadual],PAPI20_22_23[SubPDC],'Consolidaçao - 1'!H16,PAPI20_22_23[Ano previsto para início],2023) -> 0 | P16: =SUMIFS(PAPI20_22_23[Recurso financeiro estimado no ano (R$) - Cobrança Federal],PAPI20_22_23[SubPDC],'Consolidaçao - 1'!H16,PAPI20_22_23[Ano previsto para início],2023) -> 0 | Q16: =SUMIFS(PAPI20_22_23[Recurso financeiro estimado no ano (R$) - Outras],PAPI20_22_23[SubPDC],'Consolidaçao - 1'!H16,PAPI20_22_23[Ano previsto para início],2023) -> 0 | R16: 0 | S16: 0
A17: 3.2 - Resíduos | B17: =SUMIFS(#REF!,#REF!,A17,#REF!,2021) ->  | C17: =SUMIFS(#REF!,#REF!,A17,#REF!,2021) ->  | D17: =SUMIFS(#REF!,#REF!,A17,#REF!,2021) ->  | E17: =SUMIFS(#REF!,#REF!,A17,#REF!,2021) ->  | H17: 4.2 - Conservação | I17: =SUMIFS(PAPI20_22_23[Recurso financeiro estimado no ano (R$) - CFURH],PAPI20_22_23[SubPDC],'Consolidaçao - 1'!H17,PAPI20_22_23[Ano previsto para início],2022) -> 0 | J17: =SUMIFS(PAPI20_22_23[Recurso financeiro estimado no ano (R$) - Cobrança Estadual],PAPI20_22_23[SubPDC],'Consolidaçao - 1'!H17,PAPI20_22_23[Ano previsto para início],2022) -> 0 | K17: =SUMIFS(PAPI20_22_23[Recurso financeiro estimado no ano (R$) - Cobrança Federal],PAPI20_22_23[SubPDC],'Consolidaçao - 1'!H17,PAPI20_22_23[Ano previsto para início],2022) -> 0 | L17: =SUMIFS(PAPI20_22_23[Recurso financeiro estimado no ano (R$) - Outras],PAPI20_22_23[SubPDC],'Consolidaçao - 1'!H17,PAPI20_22_23[Ano previsto para início],2022) -> 0 | M17: 0 | N17: =SUMIFS(PAPI20_22_23[Recurso financeiro estimado no ano (R$) - CFURH],PAPI20_22_23[SubPDC],'Consolidaçao - 1'!H17,PAPI20_22_23[Ano previsto para início],2023) -> 0 | O17: =SUMIFS(PAPI20_22_23[Recurso financeiro estimado no ano (R$) - Cobrança Estadual],PAPI20_22_23[SubPDC],'Consolidaçao - 1'!H17,PAPI20_22_23[Ano previsto para início],2023) -> 0 | P17: =SUMIFS(PAPI20_22_23[Recurso financeiro estimado no ano (R$) - Cobrança Federal],PAPI20_22_23[SubPDC],'Consolidaçao - 1'!H17,PAPI20_22_23[Ano previsto para início],2023) -> 0 | Q17: =SUMIFS(PAPI20_22_23[Recurso financeiro estimado no ano (R$) - Outras],PAPI20_22_23[SubPDC],'Consolidaçao - 1'!H17,PAPI20_22_23[Ano previsto para início],2023) -> 0 | R17: 0 | S17: 0
A18: 3.3 - Drenagem | B18: =SUMIFS(#REF!,#REF!,A18,#REF!,2021) ->  | C18: =SUMIFS(#REF!,#REF!,A18,#REF!,2021) ->  | D18: =SUMIFS(#REF!,#REF!,A18,#REF!,2021) ->  | E18: =SUMIFS(#REF!,#REF!,A18,#REF!,2021) ->  | H18: 4.3 - Mananciais | I18: =SUMIFS(PAPI20_22_23[Recurso financeiro estimado no ano (R$) - CFURH],PAPI20_22_23[SubPDC],'Consolidaçao - 1'!H18,PAPI20_22_23[Ano previsto para início],2022) -> 0 | J18: =SUMIFS(PAPI20_22_23[Recurso financeiro estimado no ano (R$) - Cobrança Estadual],PAPI20_22_23[SubPDC],'Consolidaçao - 1'!H18,PAPI20_22_23[Ano previsto para início],2022) -> 0 | K18: =SUMIFS(PAPI20_22_23[Recurso financeiro estimado no ano (R$) - Cobrança Federal],PAPI20_22_23[SubPDC],'Consolidaçao - 1'!H18,PAPI20_22_23[Ano previsto para início],2022) -> 0 | L18: =SUMIFS(PAPI20_22_23[Recurso financeiro estimado no ano (R$) - Outras],PAPI20_22_23[SubPDC],'Consolidaçao - 1'!H18,PAPI20_22_23[Ano previsto para início],2022) -> 0 | M18: 0 | N18: =SUMIFS(PAPI20_22_23[Recurso financeiro estimado no ano (R$) - CFURH],PAPI20_22_23[SubPDC],'Consolidaçao - 1'!H18,PAPI20_22_23[Ano previsto para início],2023) -> 0 | O18: =SUMIFS(PAPI20_22_23[Recurso financeiro estimado no ano (R$) - Cobrança Estadual],PAPI20_22_23[SubPDC],'Consolidaçao - 1'!H18,PAPI20_22_23[Ano previsto para início],2023) -> 0 | P18: =SUMIFS(PAPI20_22_23[Recurso financeiro estimado no ano (R$) - Cobrança Federal],PAPI20_22_23[SubPDC],'Consolidaçao - 1'!H18,PAPI20_22_23[Ano previsto para início],2023) -> 0 | Q18: =SUMIFS(PAPI20_22_23[Recurso financeiro estimado no ano (R$) - Outras],PAPI20_22_23[SubPDC],'Consolidaçao - 1'!H18,PAPI20_22_23[Ano previsto para início],2023) -> 0 | R18: 0 | S18: 0
A19: 3.4 - Erosão | B19: =SUMIFS(#REF!,#REF!,A19,#REF!,2021) ->  | C19: =SUMIFS(#REF!,#REF!,A19,#REF!,2021) ->  | D19: =SUMIFS(#REF!,#REF!,A19,#REF!,2021) ->  | E19: =SUMIFS(#REF!,#REF!,A19,#REF!,2021) ->  | H19: 5.1 - Perdas | I19: =SUMIFS(PAPI20_22_23[Recurso financeiro estimado no ano (R$) - CFURH],PAPI20_22_23[SubPDC],'Consolidaçao - 1'!H19,PAPI20_22_23[Ano previsto para início],2022) -> 0 | J19: =SUMIFS(PAPI20_22_23[Recurso financeiro estimado no ano (R$) - Cobrança Estadual],PAPI20_22_23[SubPDC],'Consolidaçao - 1'!H19,PAPI20_22_23[Ano previsto para início],2022) -> 0 | K19: =SUMIFS(PAPI20_22_23[Recurso financeiro estimado no ano (R$) - Cobrança Federal],PAPI20_22_23[SubPDC],'Consolidaçao - 1'!H19,PAPI20_22_23[Ano previsto para início],2022) -> 0 | L19: =SUMIFS(PAPI20_22_23[Recurso financeiro estimado no ano (R$) - Outras],PAPI20_22_23[SubPDC],'Consolidaçao - 1'!H19,PAPI20_22_23[Ano previsto para início],2022) -> 0 | M19: 0 | N19: =SUMIFS(PAPI20_22_23[Recurso financeiro estimado no ano (R$) - CFURH],PAPI20_22_23[SubPDC],'Consolidaçao - 1'!H19,PAPI20_22_23[Ano previsto para início],2023) -> 0 | O19: =SUMIFS(PAPI20_22_23[Recurso financeiro estimado no ano (R$) - Cobrança Estadual],PAPI20_22_23[SubPDC],'Consolidaçao - 1'!H19,PAPI20_22_23[Ano previsto para início],2023) -> 0 | P19: =SUMIFS(PAPI20_22_23[Recurso financeiro estimado no ano (R$) - Cobrança Federal],PAPI20_22_23[SubPDC],'Consolidaçao - 1'!H19,PAPI20_22_23[Ano previsto para início],2023) -> 0 | Q19: =SUMIFS(PAPI20_22_23[Recurso financeiro estimado no ano (R$) - Outras],PAPI20_22_23[SubPDC],'Consolidaçao - 1'!H19,PAPI20_22_23[Ano previsto para início],2023) -> 0 | R19: 0 | S19: 0
A20: 3.5 - Intervenções | B20: =SUMIFS(#REF!,#REF!,A20,#REF!,2021) ->  | C20: =SUMIFS(#REF!,#REF!,A20,#REF!,2021) ->  | D20: =SUMIFS(#REF!,#REF!,A20,#REF!,2021) ->  | E20: =SUMIFS(#REF!,#REF!,A20,#REF!,2021) ->  | H20: 5.2 - Racionalização | I20: =SUMIFS(PAPI20_22_23[Recurso financeiro estimado no ano (R$) - CFURH],PAPI20_22_23[SubPDC],'Consolidaçao - 1'!H20,PAPI20_22_23[Ano previsto para início],2022) -> 0 | J20: =SUMIFS(PAPI20_22_23[Recurso financeiro estimado no ano (R$) - Cobrança Estadual],PAPI20_22_23[SubPDC],'Consolidaçao - 1'!H20,PAPI20_22_23[Ano previsto para início],2022) -> 0 | K20: =SUMIFS(PAPI20_22_23[Recurso financeiro estimado no ano (R$) - Cobrança Federal],PAPI20_22_23[SubPDC],'Consolidaçao - 1'!H20,PAPI20_22_23[Ano previsto para início],2022) -> 0 | L20: =SUMIFS(PAPI20_22_23[Recurso financeiro estimado no ano (R$) - Outras],PAPI20_22_23[SubPDC],'Consolidaçao - 1'!H20,PAPI20_22_23[Ano previsto para início],2022) -> 0 | M20: 0 | N20: =SUMIFS(PAPI20_22_23[Recurso financeiro estimado no ano (R$) - CFURH],PAPI20_22_23[SubPDC],'Consolidaçao - 1'!H20,PAPI20_22_23[Ano previsto para início],2023) -> 0 | O20: =SUMIFS(PAPI20_22_23[Recurso financeiro estimado no ano (R$) - Cobrança Estadual],PAPI20_22_23[SubPDC],'Consolidaçao - 1'!H20,PAPI20_22_23[Ano previsto para início],2023) -> 0 | P20: =SUMIFS(PAPI20_22_23[Recurso financeiro estimado no ano (R$) - Cobrança Federal],PAPI20_22_23[SubPDC],'Consolidaçao - 1'!H20,PAPI20_22_23[Ano previsto para início],2023) -> 0 | Q20: =SUMIFS(PAPI20_22_23[Recurso financeiro estimado no ano (R$) - Outras],PAPI20_22_23[SubPDC],'Consolidaçao - 1'!H20,PAPI20_22_23[Ano previsto para início],2023) -> 0 | R20: 0 | S20: 0
A21: 4.1 - Mananciais | B21: =SUMIFS(#REF!,#REF!,A21,#REF!,2021) ->  | C21: =SUMIFS(#REF!,#REF!,A21,#REF!,2021) ->  | D21: =SUMIFS(#REF!,#REF!,A21,#REF!,2021) ->  | E21: =SUMIFS(#REF!,#REF!,A21,#REF!,2021) ->  | H21: 5.3 - Reuso | I21: =SUMIFS(PAPI20_22_23[Recurso financeiro estimado no ano (R$) - CFURH],PAPI20_22_23[SubPDC],'Consolidaçao - 1'!H21,PAPI20_22_23[Ano previsto para início],2022) -> 0 | J21: =SUMIFS(PAPI20_22_23[Recurso financeiro estimado no ano (R$) - Cobrança Estadual],PAPI20_22_23[SubPDC],'Consolidaçao - 1'!H21,PAPI20_22_23[Ano previsto para início],2022) -> 0 | K21: =SUMIFS(PAPI20_22_23[Recurso financeiro estimado no ano (R$) - Cobrança Federal],PAPI20_22_23[SubPDC],'Consolidaçao - 1'!H21,PAPI20_22_23[Ano previsto para início],2022) -> 0 | L21: =SUMIFS(PAPI20_22_23[Recurso financeiro estimado no ano (R$) - Outras],PAPI20_22_23[SubPDC],'Consolidaçao - 1'!H21,PAPI20_22_23[Ano previsto para início],2022) -> 0 | M21: 0 | N21: =SUMIFS(PAPI20_22_23[Recurso financeiro estimado no ano (R$) - CFURH],PAPI20_22_23[SubPDC],'Consolidaçao - 1'!H21,PAPI20_22_23[Ano previsto para início],2023) -> 0 | O21: =SUMIFS(PAPI20_22_23[Recurso financeiro estimado no ano (R$) - Cobrança Estadual],PAPI20_22_23[SubPDC],'Consolidaçao - 1'!H21,PAPI20_22_23[Ano previsto para início],2023) -> 0 | P21: =SUMIFS(PAPI20_22_23[Recurso financeiro estimado no ano (R$) - Cobrança Federal],PAPI20_22_23[SubPDC],'Consolidaçao - 1'!H21,PAPI20_22_23[Ano previsto para início],2023) -> 0 | Q21: =SUMIFS(PAPI20_22_23[Recurso financeiro estimado no ano (R$) - Outras],PAPI20_22_23[SubPDC],'Consolidaçao - 1'!H21,PAPI20_22_23[Ano previsto para início],2023) -> 0 | R21: 0 | S21: 0
A22: 4.2 - Vegetação | B22: =SUMIFS(#REF!,#REF!,A22,#REF!,2021) ->  | C22: =SUMIFS(#REF!,#REF!,A22,#REF!,2021) ->  | D22: =SUMIFS(#REF!,#REF!,A22,#REF!,2021) ->  | E22: =SUMIFS(#REF!,#REF!,A22,#REF!,2021) ->  | H22: 6.1 - Captação | I22: =SUMIFS(PAPI20_22_23[Recurso financeiro estimado no ano (R$) - CFURH],PAPI20_22_23[SubPDC],'Consolidaçao - 1'!H22,PAPI20_22_23[Ano previsto para início],2022) -> 0 | J22: =SUMIFS(PAPI20_22_23[Recurso financeiro estimado no ano (R$) - Cobrança Estadual],PAPI20_22_23[SubPDC],'Consolidaçao - 1'!H22,PAPI20_22_23[Ano previsto para início],2022) -> 0 | K22: =SUMIFS(PAPI20_22_23[Recurso financeiro estimado no ano (R$) - Cobrança Federal],PAPI20_22_23[SubPDC],'Consolidaçao - 1'!H22,PAPI20_22_23[Ano previsto para início],2022) -> 0 | L22: =SUMIFS(PAPI20_22_23[Recurso financeiro estimado no ano (R$) - Outras],PAPI20_22_23[SubPDC],'Consolidaçao - 1'!H22,PAPI20_22_23[Ano previsto para início],2022) -> 0 | M22: 0 | N22: =SUMIFS(PAPI20_22_23[Recurso financeiro estimado no ano (R$) - CFURH],PAPI20_22_23[SubPDC],'Consolidaçao - 1'!H22,PAPI20_22_23[Ano previsto para início],2023) -> 0 | O22: =SUMIFS(PAPI20_22_23[Recurso financeiro estimado no ano (R$) - Cobrança Estadual],PAPI20_22_23[SubPDC],'Consolidaçao - 1'!H22,PAPI20_22_23[Ano previsto para início],2023) -> 0 | P22: =SUMIFS(PAPI20_22_23[Recurso financeiro estimado no ano (R$) - Cobrança Federal],PAPI20_22_23[SubPDC],'Consolidaçao - 1'!H22,PAPI20_22_23[Ano previsto para início],2023) -> 0 | Q22: =SUMIFS(PAPI20_22_23[Recurso financeiro estimado no ano (R$) - Outras],PAPI20_22_23[SubPDC],'Consolidaçao - 1'!H22,PAPI20_22_23[Ano previsto para início],2023) -> 0 | R22: 0 | S22: 0
A23: 5.1 - Perdas | B23: =SUMIFS(#REF!,#REF!,A23,#REF!,2021) ->  | C23: =SUMIFS(#REF!,#REF!,A23,#REF!,2021) ->  | D23: =SUMIFS(#REF!,#REF!,A23,#REF!,2021) ->  | E23: =SUMIFS(#REF!,#REF!,A23,#REF!,2021) ->  | H23: 6.2 - Regularização | I23: =SUMIFS(PAPI20_22_23[Recurso financeiro estimado no ano (R$) - CFURH],PAPI20_22_23[SubPDC],'Consolidaçao - 1'!H23,PAPI20_22_23[Ano previsto para início],2022) -> 0 | J23: =SUMIFS(PAPI20_22_23[Recurso financeiro estimado no ano (R$) - Cobrança Estadual],PAPI20_22_23[SubPDC],'Consolidaçao - 1'!H23,PAPI20_22_23[Ano previsto para início],2022) -> 0 | K23: =SUMIFS(PAPI20_22_23[Recurso financeiro estimado no ano (R$) - Cobrança Federal],PAPI20_22_23[SubPDC],'Consolidaçao - 1'!H23,PAPI20_22_23[Ano previsto para início],2022) -> 0 | L23: =SUMIFS(PAPI20_22_23[Recurso financeiro estimado no ano (R$) - Outras],PAPI20_22_23[SubPDC],'Consolidaçao - 1'!H23,PAPI20_22_23[Ano previsto para início],2022) -> 0 | M23: 0 | N23: =SUMIFS(PAPI20_22_23[Recurso financeiro estimado no ano (R$) - CFURH],PAPI20_22_23[SubPDC],'Consolidaçao - 1'!H23,PAPI20_22_23[Ano previsto para início],2023) -> 0 | O23: =SUMIFS(PAPI20_22_23[Recurso financeiro estimado no ano (R$) - Cobrança Estadual],PAPI20_22_23[SubPDC],'Consolidaçao - 1'!H23,PAPI20_22_23[Ano previsto para início],2023) -> 0 | P23: =SUMIFS(PAPI20_22_23[Recurso financeiro estimado no ano (R$) - Cobrança Federal],PAPI20_22_23[SubPDC],'Consolidaçao - 1'!H23,PAPI20_22_23[Ano previsto para início],2023) -> 0 | Q23: =SUMIFS(PAPI20_22_23[Recurso financeiro estimado no ano (R$) - Outras],PAPI20_22_23[SubPDC],'Consolidaçao - 1'!H23,PAPI20_22_23[Ano previsto para início],2023) -> 0 | R23: 0 | S23: 0
A24: 5.2 - Racionalização | B24: =SUMIFS(#REF!,#REF!,A24,#REF!,2021) ->  | C24: =SUMIFS(#REF!,#REF!,A24,#REF!,2021) ->  | D24: =SUMIFS(#REF!,#REF!,A24,#REF!,2021) ->  | E24: =SUMIFS(#REF!,#REF!,A24,#REF!,2021) ->  | H24: 7.1 - Drenagem | I24: =SUMIFS(PAPI20_22_23[Recurso financeiro estimado no ano (R$) - CFURH],PAPI20_22_23[SubPDC],'Consolidaçao - 1'!H24,PAPI20_22_23[Ano previsto para início],2022) -> 0 | J24: =SUMIFS(PAPI20_22_23[Recurso financeiro estimado no ano (R$) - Cobrança Estadual],PAPI20_22_23[SubPDC],'Consolidaçao - 1'!H24,PAPI20_22_23[Ano previsto para início],2022) -> 0 | K24: =SUMIFS(PAPI20_22_23[Recurso financeiro estimado no ano (R$) - Cobrança Federal],PAPI20_22_23[SubPDC],'Consolidaçao - 1'!H24,PAPI20_22_23[Ano previsto para início],2022) -> 0 | L24: =SUMIFS(PAPI20_22_23[Recurso financeiro estimado no ano (R$) - Outras],PAPI20_22_23[SubPDC],'Consolidaçao - 1'!H24,PAPI20_22_23[Ano previsto para início],2022) -> 0 | M24: 0 | N24: =SUMIFS(PAPI20_22_23[Recurso financeiro estimado no ano (R$) - CFURH],PAPI20_22_23[SubPDC],'Consolidaçao - 1'!H24,PAPI20_22_23[Ano previsto para início],2023) -> 0 | O24: =SUMIFS(PAPI20_22_23[Recurso financeiro estimado no ano (R$) - Cobrança Estadual],PAPI20_22_23[SubPDC],'Consolidaçao - 1'!H24,PAPI20_22_23[Ano previsto para início],2023) -> 0 | P24: =SUMIFS(PAPI20_22_23[Recurso financeiro estimado no ano (R$) - Cobrança Federal],PAPI20_22_23[SubPDC],'Consolidaçao - 1'!H24,PAPI20_22_23[Ano previsto para início],2023) -> 0 | Q24: =SUMIFS(PAPI20_22_23[Recurso financeiro estimado no ano (R$) - Outras],PAPI20_22_23[SubPDC],'Consolidaçao - 1'!H24,PAPI20_22_23[Ano previsto para início],2023) -> 0 | R24: 0 | S24: 0
A25: 5.3 - Reuso | B25: =SUMIFS(#REF!,#REF!,A25,#REF!,2021) ->  | C25: =SUMIFS(#REF!,#REF!,A25,#REF!,2021) ->  | D25: =SUMIFS(#REF!,#REF!,A25,#REF!,2021) ->  | E25: =SUMIFS(#REF!,#REF!,A25,#REF!,2021) ->  | H25: 7.2 - Escassez | I25: =SUMIFS(PAPI20_22_23[Recurso financeiro estimado no ano (R$) - CFURH],PAPI20_22_23[SubPDC],'Consolidaçao - 1'!H25,PAPI20_22_23[Ano previsto para início],2022) -> 0 | J25: =SUMIFS(PAPI20_22_23[Recurso financeiro estimado no ano (R$) - Cobrança Estadual],PAPI20_22_23[SubPDC],'Consolidaçao - 1'!H25,PAPI20_22_23[Ano previsto para início],2022) -> 0 | K25: =SUMIFS(PAPI20_22_23[Recurso financeiro estimado no ano (R$) - Cobrança Federal],PAPI20_22_23[SubPDC],'Consolidaçao - 1'!H25,PAPI20_22_23[Ano previsto para início],2022) -> 0 | L25: =SUMIFS(PAPI20_22_23[Recurso financeiro estimado no ano (R$) - Outras],PAPI20_22_23[SubPDC],'Consolidaçao - 1'!H25,PAPI20_22_23[Ano previsto para início],2022) -> 0 | M25: 0 | N25: =SUMIFS(PAPI20_22_23[Recurso financeiro estimado no ano (R$) - CFURH],PAPI20_22_23[SubPDC],'Consolidaçao - 1'!H25,PAPI20_22_23[Ano previsto para início],2023) -> 0 | O25: =SUMIFS(PAPI20_22_23[Recurso financeiro estimado no ano (R$) - Cobrança Estadual],PAPI20_22_23[SubPDC],'Consolidaçao - 1'!H25,PAPI20_22_23[Ano previsto para início],2023) -> 0 | P25: =SUMIFS(PAPI20_22_23[Recurso financeiro estimado no ano (R$) - Cobrança Federal],PAPI20_22_23[SubPDC],'Consolidaçao - 1'!H25,PAPI20_22_23[Ano previsto para início],2023) -> 0 | Q25: =SUMIFS(PAPI20_22_23[Recurso financeiro estimado no ano (R$) - Outras],PAPI20_22_23[SubPDC],'Consolidaçao - 1'!H25,PAPI20_22_23[Ano previsto para início],2023) -> 0 | R25: 0 | S25: 0
A26: 6.1 - Usos | B26: =SUMIFS(#REF!,#REF!,A26,#REF!,2021) ->  | C26: =SUMIFS(#REF!,#REF!,A26,#REF!,2021) ->  | D26: =SUMIFS(#REF!,#REF!,A26,#REF!,2021) ->  | E26: =SUMIFS(#REF!,#REF!,A26,#REF!,2021) ->  | H26: 8.1 - Capacitação | I26: =SUMIFS(PAPI20_22_23[Recurso financeiro estimado no ano (R$) - CFURH],PAPI20_22_23[SubPDC],'Consolidaçao - 1'!H26,PAPI20_22_23[Ano previsto para início],2022) -> 0 | J26: =SUMIFS(PAPI20_22_23[Recurso financeiro estimado no ano (R$) - Cobrança Estadual],PAPI20_22_23[SubPDC],'Consolidaçao - 1'!H26,PAPI20_22_23[Ano previsto para início],2022) -> 0 | K26: =SUMIFS(PAPI20_22_23[Recurso financeiro estimado no ano (R$) - Cobrança Federal],PAPI20_22_23[SubPDC],'Consolidaçao - 1'!H26,PAPI20_22_23[Ano previsto para início],2022) -> 0 | L26: =SUMIFS(PAPI20_22_23[Recurso financeiro estimado no ano (R$) - Outras],PAPI20_22_23[SubPDC],'Consolidaçao - 1'!H26,PAPI20_22_23[Ano previsto para início],2022) -> 0 | M26: 0 | N26: =SUMIFS(PAPI20_22_23[Recurso financeiro estimado no ano (R$) - CFURH],PAPI20_22_23[SubPDC],'Consolidaçao - 1'!H26,PAPI20_22_23[Ano previsto para início],2023) -> 0 | O26: =SUMIFS(PAPI20_22_23[Recurso financeiro estimado no ano (R$) - Cobrança Estadual],PAPI20_22_23[SubPDC],'Consolidaçao - 1'!H26,PAPI20_22_23[Ano previsto para início],2023) -> 0 | P26: =SUMIFS(PAPI20_22_23[Recurso financeiro estimado no ano (R$) - Cobrança Federal],PAPI20_22_23[SubPDC],'Consolidaçao - 1'!H26,PAPI20_22_23[Ano previsto para início],2023) -> 0 | Q26: =SUMIFS(PAPI20_22_23[Recurso financeiro estimado no ano (R$) - Outras],PAPI20_22_23[SubPDC],'Consolidaçao - 1'!H26,PAPI20_22_23[Ano previsto para início],2023) -> 0 | R26: 0 | S26: 0
A27: 6.2 - Segurança | B27: =SUMIFS(#REF!,#REF!,A27,#REF!,2021) ->  | C27: =SUMIFS(#REF!,#REF!,A27,#REF!,2021) ->  | D27: =SUMIFS(#REF!,#REF!,A27,#REF!,2021) ->  | E27: =SUMIFS(#REF!,#REF!,A27,#REF!,2021) ->  | H27: 8.2 - Educação | I27: =SUMIFS(PAPI20_22_23[Recurso financeiro estimado no ano (R$) - CFURH],PAPI20_22_23[SubPDC],'Consolidaçao - 1'!H27,PAPI20_22_23[Ano previsto para início],2022) -> 0 | J27: =SUMIFS(PAPI20_22_23[Recurso financeiro estimado no ano (R$) - Cobrança Estadual],PAPI20_22_23[SubPDC],'Consolidaçao - 1'!H27,PAPI20_22_23[Ano previsto para início],2022) -> 0 | K27: =SUMIFS(PAPI20_22_23[Recurso financeiro estimado no ano (R$) - Cobrança Federal],PAPI20_22_23[SubPDC],'Consolidaçao - 1'!H27,PAPI20_22_23[Ano previsto para início],2022) -> 0 | L27: =SUMIFS(PAPI20_22_23[Recurso financeiro estimado no ano (R$) - Outras],PAPI20_22_23[SubPDC],'Consolidaçao - 1'!H27,PAPI20_22_23[Ano previsto para início],2022) -> 0 | M27: 0 | N27: =SUMIFS(PAPI20_22_23[Recurso financeiro estimado no ano (R$) - CFURH],PAPI20_22_23[SubPDC],'Consolidaçao - 1'!H27,PAPI20_22_23[Ano previsto para início],2023) -> 0 | O27: =SUMIFS(PAPI20_22_23[Recurso financeiro estimado no ano (R$) - Cobrança Estadual],PAPI20_22_23[SubPDC],'Consolidaçao - 1'!H27,PAPI20_22_23[Ano previsto para início],2023) -> 0 | P27: =SUMIFS(PAPI20_22_23[Recurso financeiro estimado no ano (R$) - Cobrança Federal],PAPI20_22_23[SubPDC],'Consolidaçao - 1'!H27,PAPI20_22_23[Ano previsto para início],2023) -> 0 | Q27: =SUMIFS(PAPI20_22_23[Recurso financeiro estimado no ano (R$) - Outras],PAPI20_22_23[SubPDC],'Consolidaçao - 1'!H27,PAPI20_22_23[Ano previsto para início],2023) -> 0 | R27: 0 | S27: 0
A28: 6.3 - Aproveitamento | B28: =SUMIFS(#REF!,#REF!,A28,#REF!,2021) ->  | C28: =SUMIFS(#REF!,#REF!,A28,#REF!,2021) ->  | D28: =SUMIFS(#REF!,#REF!,A28,#REF!,2021) ->  | E28: =SUMIFS(#REF!,#REF!,A28,#REF!,2021) ->  | H28: 8.3 - Comunicação | I28: =SUMIFS(PAPI20_22_23[Recurso financeiro estimado no ano (R$) - CFURH],PAPI20_22_23[SubPDC],'Consolidaçao - 1'!H28,PAPI20_22_23[Ano previsto para início],2022) -> 0 | J28: =SUMIFS(PAPI20_22_23[Recurso financeiro estimado no ano (R$) - Cobrança Estadual],PAPI20_22_23[SubPDC],'Consolidaçao - 1'!H28,PAPI20_22_23[Ano previsto para início],2022) -> 0 | K28: =SUMIFS(PAPI20_22_23[Recurso financeiro estimado no ano (R$) - Cobrança Federal],PAPI20_22_23[SubPDC],'Consolidaçao - 1'!H28,PAPI20_22_23[Ano previsto para início],2022) -> 0 | L28: =SUMIFS(PAPI20_22_23[Recurso financeiro estimado no ano (R$) - Outras],PAPI20_22_23[SubPDC],'Consolidaçao - 1'!H28,PAPI20_22_23[Ano previsto para início],2022) -> 0 | M28: 0 | N28: =SUMIFS(PAPI20_22_23[Recurso financeiro estimado no ano (R$) - CFURH],PAPI20_22_23[SubPDC],'Consolidaçao - 1'!H28,PAPI20_22_23[Ano previsto para início],2023) -> 0 | O28: =SUMIFS(PAPI20_22_23[Recurso financeiro estimado no ano (R$) - Cobrança Estadual],PAPI20_22_23[SubPDC],'Consolidaçao - 1'!H28,PAPI20_22_23[Ano previsto para início],2023) -> 0 | P28: =SUMIFS(PAPI20_22_23[Recurso financeiro estimado no ano (R$) - Cobrança Federal],PAPI20_22_23[SubPDC],'Consolidaçao - 1'!H28,PAPI20_22_23[Ano previsto para início],2023) -> 0 | Q28: =SUMIFS(PAPI20_22_23[Recurso financeiro estimado no ano (R$) - Outras],PAPI20_22_23[SubPDC],'Consolidaçao - 1'!H28,PAPI20_22_23[Ano previsto para início],2023) -> 0 | R28: 0 | S28: 0
A29: 7.1 - Criticidades | B29: =SUMIFS(#REF!,#REF!,A29,#REF!,2021) ->  | C29: =SUMIFS(#REF!,#REF!,A29,#REF!,2021) ->  | D29: =SUMIFS(#REF!,#REF!,A29,#REF!,2021) ->  | E29: =SUMIFS(#REF!,#REF!,A29,#REF!,2021) -> 
A30: 7.2 - Inundações | B30: =SUMIFS(#REF!,#REF!,A30,#REF!,2021) ->  | C30: =SUMIFS(#REF!,#REF!,A30,#REF!,2021) ->  | D30: =SUMIFS(#REF!,#REF!,A30,#REF!,2021) ->  | E30: =SUMIFS(#REF!,#REF!,A30,#REF!,2021) ->  | H30: Delib. 246 | I30: PDC 1 e 2 | J30: Prioritário | K30: Não Prioritário
A31: 7.3 - Estiagens | B31: =SUMIFS(#REF!,#REF!,A31,#REF!,2021) ->  | C31: =SUMIFS(#REF!,#REF!,A31,#REF!,2021) ->  | D31: =SUMIFS(#REF!,#REF!,A31,#REF!,2021) ->  | E31: =SUMIFS(#REF!,#REF!,A31,#REF!,2021) ->  | H31: SubPDC | I31: =SUMIF(#REF!,I$30,PAPI20_22_23[Recurso financeiro estimado no ano (R$)]) ->  | J31: =SUMIF(#REF!,J$30,PAPI20_22_23[Recurso financeiro estimado no ano (R$)]) ->  | K31: =SUMIF(#REF!,K$30,PAPI20_22_23[Recurso financeiro estimado no ano (R$)]) -> 
A32: 8.1 - Capacitação | B32: =SUMIFS(#REF!,#REF!,A32,#REF!,2021) ->  | C32: =SUMIFS(#REF!,#REF!,A32,#REF!,2021) ->  | D32: =SUMIFS(#REF!,#REF!,A32,#REF!,2021) ->  | E32: =SUMIFS(#REF!,#REF!,A32,#REF!,2021) ->  | I32: =IFERROR(I31/SUM(I31:K31),"") ->  | J32: =IFERROR(J31/SUM(I31:K31),"") ->  | K32: =IFERROR(K31/SUM(I31:K31),"") -> 
A33: 8.2 - Educação | B33: =SUMIFS(#REF!,#REF!,A33,#REF!,2021) ->  | C33: =SUMIFS(#REF!,#REF!,A33,#REF!,2021) ->  | D33: =SUMIFS(#REF!,#REF!,A33,#REF!,2021) ->  | E33: =SUMIFS(#REF!,#REF!,A33,#REF!,2021) -> 
A34: 8.3 - Comunicação | B34: =SUMIFS(#REF!,#REF!,A34,#REF!,2021) ->  | C34: =SUMIFS(#REF!,#REF!,A34,#REF!,2021) ->  | D34: =SUMIFS(#REF!,#REF!,A34,#REF!,2021) ->  | E34: =SUMIFS(#REF!,#REF!,A34,#REF!,2021) -> 
A36: Delib. 190 | B36: PDC 1 e 2 | C36: Prioritário | D36: Não Prioritário
A37: SubPDC | B37: =SUMIF(#REF!,B$36,#REF!) ->  | C37: =SUMIF(#REF!,C$36,#REF!) ->  | D37: =SUMIF(#REF!,D$36,#REF!) -> 
B38: =B37/SUM(B37:D37) ->  | C38: =C37/SUM(B37:D37) ->  | D38: =D37/SUM(B37:D37) -> 

Sheet Consolidaçao - 2 (hidden)
A1: Para atualizar, vá em Dados --> Atualizar Tudo ou aperte
A2: CTRL + Alt + F5

Sheet Orientações
C1: MELHOR VISUALIZADO no Office 365
C3: Este modelo de PAPI para o quadriênio 2024-2027 tem uma estrutura distinta dos enviados nos outros períodos/anos, pois ele contempla tanto o PAPI 24-27 e seu acompanhamento, quanto o acompanhamento do PAPI anterior.
C4: Está dividido em multiplas planilhas ("abas"), estruturadas em dois grupos: PAPI 24-27 e PAPI 20-23 (Acompanhamento). A expectativa é que a mesma planilha sirva para todo o quadriênio.
B8: A | C8: PAPI 2024-2027
C9: Compreende quatro planilhas ("abas") e se refere ao planejamento e acompanhamento do PAPI - 24-27.
B10: 1 | C10: Identificação das ações - 24-27" - Compreende a indicação das ações previstas para o PAPI 2024-2027. Sugere-se a indicação do que será produzido/realizado com o recurso pleiteado, considerando a esfera de atuação direta do CBH. Envolve um fluxo de atividades a serem executadas para entregar um produto final. Preencher TODAS informações das colunas também de forma sequencial (esquerda para direita).
B11: 2 | C11: Acompanhamento das metas 24-27 - Compreende a indicação e o acompanhamento da execução das Metas (do quadriênio e anuais).Devem ser quantificáveis e mensuráveis por meio de indicadores que reflitam as mudanças para as quais espera-se que as intervenções previstos pelas ações propostas influenciem.
B12: 3 | C12: Acomp. Financeiro 24-27 - Acompanhamento das previsões dos valores (R$) planejados, disponbilizados e executados. Para esta primeira etapa, só precisam ser preenchidos os valores Planejados (colunas em roxo). O acompanhamento se dará ao longo do quadriênio.
B13: 4 | C13: PAPI 2024-2027 - Resultado automático do preenchimento anterior. Somente as ações sem recursos financeiros previstos deve ser preenchida. As demais são inseridas automaticamente. É o conteúdo mínimo do PAPI 24/27 que deve ser deliberado e referendado nas revisões anuais.
B15: B | C15: ACOMPANHAMENTO - PAPI 20-23
C16: Compreende o acompanhamento das ações iniciadas no quadriênio anterior. Como grande parte delas ainda está em execução, ideal é monitorar, na medida do possível, sua execução.
B17: 1 | C17: Serão utilizadas as mesmas planilhas do ano anterior, que devem ser incorporadas no presente arquivo. Observar as duas colunas na cor roxa, relativa ao acompanhamento 2024. As outras colunas devem ser copiadas do último PAPI aprovado. Como se trata do acompanhamento de 2024 dessas ações, só será iniciado em 2025.

Sheet Acomp. - PAPI_21 (Delib. 190)
A1: ID Ação | B1: Ano | C1: SubPDC | D1: Prioridade do SubPDC | E1: Ação | F1: Meta | G1: % Execução da meta | H1: Segmento do executor | I1: Área de abrangência | J1: Nome da área de abrangência | K1: Recurso financeiro executado no ano (R$) | L1: Justificativa sobre execução física e financeira em 2024
A2: RB012021 | B2: 2021 | C2: 1.1 - SI | D2: PDC 1 e 2 | E2: Desenvolver projetos executivos de microdrenagem para os municípios da UGRHI 11 | F2: Elaborar 23 projetos de microdrenagem até 2027 | H2: Município | I2: Município | J2: UGRHI 11
A3: RB022021 | B3: 2021 | C3: 1.1 - SI | D3: PDC 1 e 2 | E3: Elaborar ou Revisar os Planos Municipais de Resíduos Sólidos | F3: Elaborar e implantar 23 Planos Municipais de Resíduos Sólidos até 2023 | H3: Sociedade Civil | I3: Município | J3: Cananéia, Itarirí e Tapiraí
A4: RB032021 | B4: 2021 | C4: 1.1 - SI | D4: PDC 1 e 2 | E4: Atualização de tecnologias, site responsivo (acesso pelo celular), segurança e identidade visual e remodelação do site do SIG-RB | F4: Renovação do Sistema de Informações Geográficas com atualização tecnológica do sistema operacional até 2022 | H4: Sociedade Civil | I4: Município | J4: UGRHI 11
A5: RB042021 | B5: 2021 | C5: 1.4 - Monitoramento | D5: PDC 1 e 2 | E5: Instalação de novos pontos de monitoramento fluviométrico e realizar reparos necessários nos pontos existentes e atualização do sistema de informação | F5: Ampliação com instalação de 8 postos hidrométricos e manutenção da rede de monitoramento hidrológico, sendo 4 postos em 2021 e 4 postos em 2022. | H5: Sociedade Civil | I5: UGRHi | J5: UGRHI 11
A6: RB052021 | B6: 2021 | C6: 2.2 - Outorga | D6: PDC 1 e 2 | E6: Campanha de comunicação social e sensibilização; Capacitação e mobilização sobre a importância e os procedimentos para cadastro e outorga. (CBH-RB) | F6: Produzir material e atualizar o cadastro de outorga do DAEE | H6: Estado | I6: Região Hidrográfica | J6: Vertente Litorânea
A7: RB062021 | B7: 2021 | C7: 2.6 - CORHI | D7: PDC 1 e 2 | E7: Execução de reforma predial e aquisição de material permanente em 2021 | F7: Adequação da infraestrutura da Secretaria Executiva | H7: Sociedade Civil | I7: Área urbana (bairro; via de circulação; distrito; praça; parque; etc.) | J7: Rua Félix Aby-Azar, 442 Centro - Registro/SP
A8: RB072021 | B8: 2021 | C8: 2.6 - CORHI | D8: PDC 1 e 2 | E8: Instalação de uma sala com equipamentos de informática e multimídia, para o funcionamento da CT-APRM-AJSL | F8: Consolidar a infrastrutura de apoio para CT-APRM-AJ/SL em 2021 | H8: Município | I8: Município | J8: Juquitiba e São Lourenço da Serra
A9: RB082021 | B9: 2021 | C9: 3.1 - Efluentes | D9: Prioritário | E9: Contratação e execução de unidades de saneamento individual (USI) | F9: Implantação de 20 empreendimentos de saneamento na área rural da UGRHI 11 até 2023 | H9: Município | I9: Município | J9: Barra do Turvo, Iguape, Iporanga, Itaóca, Juquiá, Juquitiba, Miracatu e Ilha Comprida
A10: RB092021 | B10: 2021 | C10: 3.2 - Resíduos | D10: Prioritário | E10: Implantar, ampliar ou manter a coleta seletiva nos municípios | F10: Implantação ou manutenção de 8 empreendimentos de coleta seletiva nos municípios da UGRHI até 2023 | H10: Município | I10: Município | J10: Iporanga
A11: RB102021 | B11: 2021 | C11: 3.4 - Erosão | D11: Prioritário | E11: Executar 3 obras de Combate a erosão de cursos d'água entre 2021 a 2023 | F11: Reazlizar 4 Obras e ações de proteção e controle da erosão do solo ou do assoreamento dos corpos d'água até 2023 | H11: Município | I11: Município | J11: UGRHI 11
A12: RB112021 | B12: 2021 | C12: 4.2 - Vegetação | D12: Prioritário | E12: Executar projeto de Diagnóstico, prognóstico e plano de ação | F12: Implantar 1 projeto de Pagamentos por Serviços Ambientais - PSA na UGRHI 11 em 2021 e 2023 | H12: Sociedade Civil | I12: UGRHi | J12: UGRHI 11
A13: RB122021 | B13: 2021 | C13: 4.2 - Vegetação | D13: Prioritário | E13: Recuperar as APPs conforme o Plano Diretor de Mata Ciliares do CBH-RB | F13: Elaborar e executar 2 projetos de recuperação de APPs, em 2021 e 2023 | H13: Sociedade Civil | I13: Município | J13: Município
A14: RB132021 | B14: 2021 | C14: 4.2 - Vegetação | D14: Não prioritário | E14: Contratar Projeto (básico ou executivo) para garantir a oferta de água para o abastecimento das populações urbanas e rurais e a dessedentação animal. | F14: Desenvolvimento de 1 estudo de concepção e projeto executivo do sistema de abastecimento da Vila Barra do Uma | H14: Município | I14: Município | J14: Peruíbe
A15: RB142021 | B15: 2021 | C15: 7.1 - Criticidades | D15: Prioritário | E15: Instalação de sala com equipamentos de informática e multimídia para monitoramento e sistemas de alerta nos municípios com histórico de inundação | F15: Instalação de 2 Salas de Situação para monitoramento de eventos extremos e sistemas de suporte e decisão em apoio a ações de Defesa Civil, sendo 1 em 2021 e 1 em 2023 | H15: Município | I15: Município | J15: UGRHI 11
A16: RB152021 | B16: 2021 | C16: 7.1 - Criticidades | D16: Prioritário | E16: Desenvolver Planos de Proteção e Prevenção de Defesa Civil até 2021, para os municípios de Barra do Chapéu, Itaóca, Itapirapuã Paulista, Juquitiba, Ribeira e S. Lourenço da Serra | F16: Apoio às medidas não estruturais contra inundações e apoio às atividades de Defesa Civil, por meio de elaboração de 6 Planos Preventivos de Proteção e Defesa Civil em 3 municípios em 2020 e 3 municípios em 2021 | H16: Sociedade Civil | I16: Município | J16: Barra do Chapéu, Itaóca, Itapirapuã Paulista, Juquitiba, Ribeira e S. Lourenço da Serra
A17: RB162021 | B17: 2021 | C17: 7.1 - Criticidades | D17: Prioritário | E17: Execução de serviços e obras para contenção de inundações ou alagamentos. | F17: Executar 12 empreendimentos estruturais visando mitigar os impactos das inundações até 2023 | H17: Município | I17: Município | J17: Pariquera-Açu e Sete Barras
A18: RB172021 | B18: 2021 | C18: 8.1 - Capacitação | D18: Não prioritário | E18: Promover debates periódicos sobre mecanismos de pagamento por serviços ambientais, práticas ambientais sustentáveis e legislação Ambiental (1,5 evento/ano) | F18: Realizar um evento a cada 3 anos de pagamento de serviços ambientais, práticas ambientais sustentáveis e legislação Ambiental pertinente para agricultores | H18: Sociedade Civil | I18: UGRHi | J18: UGRHI 11
A19: RB182021 | B19: 2021 | C19: 8.2 - Educação | D19: Não prioritário | E19: Realizar ações de educação ambiental (sensibilização e mobilização social) nos temas: recursos hídricos, participação, meio ambiente, poluição, mata ciliar, práticas sustentáveis, resíduos sólidos, defesa civil, solos e arborização urbana, para os seguintes públicos: estudantes, agricultores, pescadores, comunidades tradicionais, catadores, população em geral; via projetos Fehidro | F19: Realizar 1 projeto por ano em 2020, 2021, 2022 e 2023, contemplando ações de educação ambiental | H19: Sociedade Civil | I19: UGRHi | J19: UGRHI 11
A20: RB192021 | B20: 2021 | C20: 8.2 - Educação | D20: Não prioritário | E20: Oficinas de capacitação em recursos hídricos para educadores | F20: Realizar 1 projeto em 2021 e 1 projeto em 2023 | H20: Sociedade Civil | I20: UGRHi | J20: UGRHI 11
A21: RB202021 | B21: 2021 | C21: 8.2 - Educação | D21: Não prioritário | E21: Reproduzir material de apoio (kit água) a cada biênio | F21: Inserção da temática de água e meio ambiente na sociedade | H21: Sociedade Civil | I21: UGRHi | J21: UGRHI 11
A22: RB212021 | B22: 2021 | C22: 8.3 - Comunicação | D22: Não prioritário | E22: Execução de projetos bianuais de elaboração de releases, boletins informativos e operação das ferramentas de comunicação | F22: Ampliar comunicação do CBH internamente e com público em geral (plano de comunicação elaborado) | H22: Sociedade Civil | I22: UGRHi | J22: UGRHI 11

Sheet Acomp. PAPI_22_23 (Delib. 246)
A1: ID Ação | B1: Ano | C1: SubPDC | D1: Prioridade do SubPDC | E1: Ação | F1: Meta | G1: % Execução da meta | H1: Segmento do executor | I1: Área de abrangência | J1: Nome da área de abrangência | K1: Justificativa sobre execução física e financeira em 2024
A2: RB012022 | B2: 2022 | C2: 1.2 - Planejamento | D2: PDC 1 e 2 | E2: Elaborar ou Revisar os Planos Municipais de Resíduos Sólidos | F2: Elaborar ou revisar 23 Planos Municipais de Resíduos Sólidos até 2023 | H2: Sociedade civil | I2: UGRHi | J2: 11
A3: RB022022 | B3: 2022 | C3: 1.2 - Planejamento | D3: PDC 1 e 2 | E3: Contratar o serviço técnico para os trabalhos de atualização e revisão do Plano Diretor de Educação ambiental | F3: Atualizar e revisar Plano Diretor de Educação ambiental em 2022 | H3: Município | I3: UGRHi | J3: 11
A4: RB032022 | B4: 2022 | C4: 2.5 - Monitoramento e SI | D4: PDC 1 e 2 | E4: Instalação de novos pontos de monitoramento fluviométrico e realizar reparos necessários nos pontos existentes e atualização do sistema de informação | F4: Ampliação com instalação de 8 postos hidrométricos e manutenção da rede de monitoramento hidrológico, sendo 4 postos em 2021 e 4 postos em 2022. | H4: Estado | I4: UGRHi | J4: 11
A5: RB042022 | B5: 2022 | C5: 3.1 - Efluentes | D5: Prioritário | E5: Contratação e execução de obras de saneamento básico na área rural e urbanizada | F5: Implantação de 20 empreendimentos de saneamento na área rural da UGRHI 11 até 2023 | H5: Município | I5: UGRHi | J5: 11
A6: RB052022 | B6: 2022 | C6: 3.3 - Resíduos | D6: Prioritário | E6: Implantar, ampliar ou manter ações de melhoria de gestão de resíduos sólidos, com ênfase na coleta seletiva | F6: Implantação ou manutenção de 8 empreendimentos de melhoria da gestão de resíduos sólidos nos municípios da UGRHI até 2023 | H6: Município | I6: UGRHi | J6: 11
A7: RB062022 | B7: 2022 | C7: 4.1 - Erosão | D7: Prioritário | E7: Executar 3 obras de Combate a erosão de cursos d'água entre 2021 a 2023 | F7: Reazlizar 4 Obras e ações de proteção e controle da erosão do solo ou do assoreamento dos corpos d'água até 2023 | H7: Município | I7: UGRHi | J7: 11
A8: RB072022 | B8: 2022 | C8: 7.1 - Drenagem | D8: Não prioritário | E8: Desenvolver projetos executivos de microdrenagem para os municípios da UGRHI 11 | F8: Elaborar 23 projetos de microdrenagem até 2027 | H8: Município | I8: UGRHi | J8: 11
A9: RB082022 | B9: 2022 | C9: 7.1 - Drenagem | D9: Prioritário | E9: Execução de serviços e obras para contenção de inundações ou alagamentos. | F9: Executar 12 empreendimentos estruturais visando mitigar os impactos das inundações até 2023 | H9: Município | I9: UGRHi | J9: 11
A10: RB092022 | B10: 2022 | C10: 8.1 - Capacitação | D10: Prioritário | E10: Capacitar os membros do CBH e CTs sobre conceitos, práticas e experiências em PSA. | F10: Realizar 1 oficina de capacitação sobre PSA membros do CBH e CTs | H10: Sociedade civil | I10: UGRHi | J10: 11
A11: RB102022 | B11: 2022 | C11: 8.1 - Capacitação | D11: Prioritário | E11: Realizar capacitação sobre gestão de águas com base nas ações dos participantes | F11: Realizar eventos bienais de formação para instituições com representação no CBH-RB, instituições parceiras, organizações da sociedade civil, comunidades rurais e jovens. | H11: Estado | I11: UGRHi | J11: 11
A12: RB112022 | B12: 2022 | C12: 8.2 - Educação | D12: Não prioritário | E12: Realizar ações de educação ambiental (sensibilização e mobilização social) nos temas: recursos hídricos, participação, meio ambiente, poluição, mata ciliar, práticas sustentáveis, resíduos sólidos, defesa civil, solos e arborização urbana, para os seguintes públicos: estudantes, agricultores, pescadores, comunidades tradicionais, catadores, população em geral; via projetos Fehidro | F12: Realizar 1 projeto por ano em 2020, 2021, 2022 e 2023, contemplando ações de educação ambiental | H12: Sociedade civil | I12: UGRHi | J12: 11
A13: RB122022 | B13: 2022 | C13: 8.2 - Educação | D13: Prioritário | E13: Produzir série didática de vídeos com materiais educativos e informativos sobre educação ambiental e recursos hídricos, com identidade local, para população em geral, em linguagem acessível e lúdica ( 1 temática a cada 2 anos) | F13: Produzir materiais educativos e informativos sobre 1 temática a cada 2 anos | H13: Sociedade civil | I13: UGRHi | J13: 11
A14: RB132022 | B14: 2022 | C14: 8.2 - Educação | D14: Prioritário | E14: Oficinas de capacitação em recursos hídricos para educadores | F14: Realizar 1 projeto em 2021 e 1 projeto em 2022 | H14: Sociedade civil | I14: UGRHi | J14: 11
A15: RB012022 | B15: 2023 | C15: 1.2 - Planejamento | D15: PDC 1 e 2 | E15: Elaborar ou Revisar os Planos Municipais de Resíduos Sólidos | F15: Elaborar ou revisar 23 Planos Municipais de Resíduos Sólidos até 2023 | H15: Sociedade civil | I15: UGRHi | J15: 11
A16: RB042022 | B16: 2023 | C16: 3.1 - Efluentes | D16: Prioritário | E16: Contratação e execução de obras de saneamento básico na área rural e urbanizada | F16: Implantação de 20 empreendimentos de saneamento na área rural da UGRHI 11 até 2023 | H16: Município | I16: UGRHi | J16: 11
A17: RB052022 | B17: 2023 | C17: 3.3 - Resíduos | D17: Prioritário | E17: Implantar, ampliar ou manter ações de melhoria de gestão de resíduos sólidos, com ênfase na coleta seletiva | F17: Implantação ou manutenção de 8 empreendimentos de melhoria da gestão de resíduos sólidos nos municípios da UGRHI até 2023 | H17: Município | I17: UGRHi | J17: 11
A18: RB062022 | B18: 2023 | C18: 4.1 - Erosão | D18: Prioritário | E18: Executar 3 obras de Combate a erosão de cursos d'água entre 2021 a 2023 | F18: Reazlizar 4 Obras e ações de proteção e controle da erosão do solo ou do assoreamento dos corpos d'água até 2023 | H18: Município | I18: UGRHi | J18: 11
A19: RB072022 | B19: 2023 | C19: 7.1 - Drenagem | D19: Não prioritário | E19: Desenvolver projetos executivos de microdrenagem para os municípios da UGRHI 11 | F19: Elaborar 23 projetos de microdrenagem até 2027 | H19: Município | I19: UGRHi | J19: 11
A20: RB082022 | B20: 2023 | C20: 7.1 - Drenagem | D20: Prioritário | E20: Execução de serviços e obras para contenção de inundações ou alagamentos. | F20: Executar 12 empreendimentos estruturais visando mitigar os impactos das inundações até 2023 | H20: Município | I20: UGRHi | J20: 11
A21: RB112022 | B21: 2023 | C21: 8.2 - Educação | D21: Não prioritário | E21: Realizar ações de educação ambiental (sensibilização e mobilização social) nos temas: recursos hídricos, participação, meio ambiente, poluição, mata ciliar, práticas sustentáveis, resíduos sólidos, defesa civil, solos e arborização urbana, para os seguintes públicos: estudantes, agricultores, pescadores, comunidades tradicionais, catadores, população em geral; via projetos Fehidro | F21: Realizar 1 projeto por ano em 2020, 2021, 2022 e 2023, contemplando ações de educação ambiental | H21: Sociedade civil | I21: UGRHi | J21: 11
A22: RB122023 | B22: 2023 | C22: 1.2 - Planejamento | D22: PDC 1 e 2 | E22: Executar a revisão do Plano Diretor de Matas Ciliares | F22: Revisão do Plano Diretor de Matas Ciliares em 2022 | H22: Sociedade civil | I22: UGRHi | J22: 11
A23: RB132023 | B23: 2023 | C23: 1.2 - Planejamento | D23: PDC 1 e 2 | E23: Elaborar diagnóstico da situação da Pesca profissional e amadora nos rios do Vale, considerando os aspectos positivos e negativos. | F23: Realizar 1 diagnóstico da situação da pesca em 2022 | H23: Estado | I23: UGRHi | J23: 11
A24: RB142023 | B24: 2023 | C24: 1.2 - Planejamento | D24: PDC 1 e 2 | E24: Estudar a criação de um fundo permanente de pagamento por serviços ambientais, com recursos vindos de compensações ambientais, cobrança pelo uso da água, transposição de águas e outras fontes | F24: Realizar 1 estudo para definição de fundo permanente para PSA em 2021 | H24: Estado | I24: UGRHi | J24: 11
A25: RB152023 | B25: 2023 | C25: 1.2 - Planejamento | D25: PDC 1 e 2 | E25: Realizar o diagnóstico da demanda de saneamento básico rural, o prognóstico de atendimento com tipificação de alternativa de solução e avaliação da eficiência das USIs implantadas. | F25: Avaliar a situação do saneamento na UGRHI 11 | H25: Sociedade civil | I25: UGRHi | J25: 11
A26: RB162023 | B26: 2023 | C26: 1.2 - Planejamento | D26: PDC 1 e 2 | E26: Realizar a sistematização de procedimentos e digitalização de cartas geográficas e de processos antigos | F26: Sistema de apoio a procedimentos de Outorga de Recursos Hídricos em 2023 | H26: Sociedade civil | I26: UGRHi | J26: 11
A27: RB172023 | B27: 2023 | C27: 2.7 - CORHI | D27: PDC 1 e 2 | E27: Equipar a sala de situação do DAEE com equipamentos de informática e multimídia para monitoramento e sistemas de alerta nos municípios com histórico de inundação. | F27: Equpar a Sala de Situação existente do DAEE para monitoramento de eventos extremos e sistemas de suporte e decisão em apoio a ações de Defesa Civil em 2023 | H27: Sociedade civil | I27: UGRHi | J27: 11
A28: RB182023 | B28: 2023 | C28: 4.2 - Conservação | D28: Prioritário | E28: Executar projeto de Diagnóstico, prognóstico e plano de ação | F28: Implantar 1 projeto de Pagamentos por Serviços Ambientais - PSA na UGRHI 11 em 2021 e 2013 | H28: Município | I28: Município | J28: "áreas críticas de abastecimento"
A29: RB192023 | B29: 2023 | C29: 4.2 - Conservação | D29: Prioritário | E29: Fomentar a produção agroecológica e orgânica | F29: Implantar 1 projeto piloto de produção de SAF ou sistema orgânico, com objetivo de formar unidade(s) demonstrativa(s) para fortalecimento e experimentação da técnica na bacia em 2023 | H29: Sociedade civil | I29: UGRHi | J29: 11
A30: RB202023 | B30: 2023 | C30: 4.2 - Conservação | D30: Prioritário | E30: Recuperar as APPs conforme o plano de recuperação de matas ciliares | F30: Elaborar e executar 1 projeto de recuperação de APPs em 2023 | H30: Sociedade civil | I30: UGRHi | J30: 11
A31: RB212023 | B31: 2023 | C31: 8.2 - Educação | D31: Prioritário | E31: Reproduzir material de apoio (kit água) a cada biênio | F31: Inserção da temática de água e meio ambiente na sociedade. | H31: Sociedade civil | I31: UGRHi | J31: 11
A32: RB222023 | B32: 2023 | C32: 8.2 - Educação | D32: Prioritário | E32: Adequar e equipar 1 centro e espaço de Educação Ambiental | F32: Incentivar e fomentar a criação de 1 centro e espaço de Educação Ambiental. | H32: Sociedade civil | I32: UGRHi | J32: 11
A33: RB232023 | B33: 2023 | C33: 8.3 - Comunicação | D33: Prioritário | E33: Contratação de serviço "profissional" na área de comuniação | F33: Ampliar comunicação do CBH internamente e com público em geral | H33: Sociedade civil | I33: UGRHI | J33: 11

Sheet Operacional
B1: SubPDC - Delib.CRH N° 190 /2016 | C1: SubPDC - Delib.CRH N° 246/2021 | E1: Area | F1: Executor | G1: Fonte | I1: Tipo de Ação | K1: Prioridade | M1: Fonte
B2: 1.1 - SI | C2: Não se aplica | E2: APRM | F2: Estado | G2: CFURH | I2: Obra | K2: Não prioritário | M2: FEHIDRO - Cobrança estadual
B3: 1.2 - Planejamento | C3: 1.1 - Legislação | E3: Aquífero | F3: Município | G3: Cobrança Estadual | I3: Serviços | K3: PDC 1 e 2 | M3: FEHIDRO - CFURH
B4: 1.3 - Enquadramento | C4: 1.2 - Planejamento | E4: Área rural | F4: Sociedade Civil | G4: Outras | I4: Projeto Básico/Executivo | K4: Prioritário | M4: Cobrança Federal
B5: 1.4 - Monitoramento | C5: 2.1 - Plano | E5: Área urbana | F5: Município e Sociedade Civil | G5: Cobrança Federal | I5: Estudo/Diagnóstico | M5: Tesouro do Estado
B6: 1.5 - Disponibilidade | C6: 2.2 - Outorga | E6: Bacia | F6: Estado e Município | I6: Capacitação | M6: Fundo especial de despesa
B7: 1.6 - Legislação | C7: 2.3 - Cobrança | E7: Corpo hídrico | F7: Estado e Sociedade Civil | M7: Recursos da administração indireta
B8: 1.7 - Poluição | C8: 2.4 - Enquadramento | E8: Município | F8: Estado, Município e Sociedade Civil | M8: Recursos vinculados federais
B9: 2.1 - Planos | C9: 2.5 - Redes de monitoramento e SI | E9: Região Hidrográfica | F9: Iniciativa privada | M9: Operações de crédito
B10: 2.2 - Outorga | C10: 2.6 - Integração | E10: Sub-bacia | M10: Recursos privados da sociedade civil
B11: 2.3 - Cobrança | C11: 2.7 - CORHI | E11: UGRHi | M11: Recursos de instrumentos de fomento
B12: 2.4 - Efetivação | C12: 3.1 - Efluentes | E12: Outra | M12: Outras fontes
B13: 2.5 - Integração | C13: 3.2 - Poluição
B14: 2.6 - CORHI | C14: 3.3 - Resíduos
B15: 3.1 - Efluentes | C15: 3.4 - Intervenções
B16: 3.2 - Resíduos | C16: 4.1 - Controle erosão | G16: PRIORIDADE
B17: 3.3 - Drenagem | C17: 4.2 - Soluções baseadas Natureza | G17: PDC 1 e 2
B18: 3.4 - Erosão | C18: 4.3 - Mananciais | G18: Prioritário
B19: 3.5 - Intervenções | C19: 5.1 - Perdas | G19: Não prioritário
B20: 4.1 - Mananciais | C20: 5.2 - Racionalização
B21: 4.2 - Vegetação | C21: 5.3 - Reuso | E21: Area
B22: 5.1 - Perdas | C22: 6.1 - Captação | E22: APRM
B23: 5.2 - Racionalização | C23: 6.2 - Regularização | E23: Aquífero
B24: 5.3 - Reuso | C24: 7.1 - Drenagem | E24: Área rural (via de circulação; rodovia; distrito; etc.)
B25: 6.1 - Usos | C25: 7.2 - Escassez | E25: Área urbana (bairro; via de circulação; distrito; praça; parque; etc.)
B26: 6.2 - Segurança | C26: 8.1 - Capacitação | E26: Bacia
B27: 6.3 - Aproveitamento | C27: 8.2 - Educação | E27: Corpo hídrico
B28: 7.1 - Criticidades | C28: 8.3 - Comunicação | E28: Município
B29: 7.2 - Inundações | E29: Região Hidrográfica
B30: 7.3 - Estiagens | E30: Sub-bacia
B31: 8.1 - Capacitação | E31: UGRHi
B32: 8.2 - Educação
B33: 8.3 - Comunicação
B36: Delib. CRH N° 246/2021 | BL36: Delib. CRH N° 190/2016, revogada a partir de 31/12/21
A37: Não se aplica | B37: 1.1 - Legislação | C37: 1.2 - Planejamento | D37: 2.1 - Plano | E37: 2.2 - Outorga | F37: 2.3 - Cobrança | G37: 2.4 - Enquadramento | H37: 2.5 - Redes de monitoramento e SI | I37: 2.6 - Integração | J37: 2.7 - CORHI | K37: 3.1 - Efluentes | L37: 3.2 - Poluição | M37: 3.3 - Resíduos | N37: 3.4 - Intervenções | O37: 4.1 - Controle erosão | P37: 4.2 - Soluções baseadas Natureza | Q37: 4.3 - Mananciais | R37: 5.1 - Perdas | S37: 5.2 - Racionalização | T37: 5.3 - Reuso | U37: 6.1 - Captação | V37: 6.2 - Regularização | W37: 7.1 - Drenagem | X37: 7.2 - Escassez | Y37: 8.1 - Capacitação | Z37: 8.2 - Educação | AA37: 8.3 - Comunicação | BH37: 2020 | BI37: 2021 | BL37: 1.1 - SI | BM37: 1.2 - Planejamento | BN37: 1.3 - Enquadramento | BO37: 1.4 - Monitoramento | BP37: 1.5 - Disponibilidade | BQ37: 1.6 - Legislação | BR37: 1.7 - Poluição | BS37: 2.1 - Planos | BT37: 2.2 - Outorga | BU37: 2.3 - Cobrança | BV37: 2.4 - Efetivação | BW37: 2.5 - Integração | BX37: 2.6 - CORHI | BY37: 3.1 - Efluentes | BZ37: 3.2 - Resíduos | CA37: 3.3 - Drenagem | CB37: 3.4 - Erosão | CC37: 3.5 - Intervenções | CD37: 4.1 - Mananciais | CE37: 4.2 - Vegetação | CF37: 5.1 - Perdas | CG37: 5.2 - Racionalização | CH37: 5.3 - Reuso | CI37: 6.1 - Usos | CJ37: 6.2 - Segurança | CK37: 6.3 - Aproveitamento | CL37: 7.1 - Criticidades | CM37: 7.2 - Inundações | CN37: 7.3 - Estiagens | CO37: 8.1 - Capacitação | CP37: 8.2 - Educação | CQ37: 8.3 - Comunicação
A38: Não se aplica | B38: PDC 1 e 2 | C38: PDC 1 e 2 | D38: PDC 1 e 2 | E38: PDC 1 e 2 | F38: PDC 1 e 2 | G38: PDC 1 e 2 | H38: PDC 1 e 2 | I38: PDC 1 e 2 | J38: PDC 1 e 2 | K38: Prioritário | L38: Prioritário | M38: Prioritário | N38: Prioritário | O38: Prioritário | P38: Prioritário | Q38: Prioritário | R38: Prioritário | S38: Prioritário | T38: Prioritário | U38: Prioritário | V38: Prioritário | W38: Prioritário | X38: Prioritário | Y38: Prioritário | Z38: Prioritário | AA38: Prioritário | BH38: 1.1 | BI38: 1.1 | BL38: PDC 1 e 2 | BM38: PDC 1 e 2 | BN38: PDC 1 e 2 | BO38: PDC 1 e 2 | BP38: PDC 1 e 2 | BQ38: PDC 1 e 2 | BR38: PDC 1 e 2 | BS38: PDC 1 e 2 | BT38: PDC 1 e 2 | BU38: PDC 1 e 2 | BV38: PDC 1 e 2 | BW38: PDC 1 e 2 | BX38: PDC 1 e 2 | BY38: Prioritário | BZ38: Prioritário | CA38: Prioritário | CB38: Prioritário | CC38: Prioritário | CD38: Prioritário | CE38: Prioritário | CF38: Prioritário | CG38: Prioritário | CH38: Prioritário | CI38: Prioritário | CJ38: Prioritário | CK38: Prioritário | CL38: Prioritário | CM38: Prioritário | CN38: Prioritário | CO38: Prioritário | CP38: Prioritário | CQ38: Prioritário
K39: Não prioritário | L39: Não prioritário | M39: Não prioritário | N39: Não prioritário | O39: Não prioritário | P39: Não prioritário | Q39: Não prioritário | R39: Não prioritário | S39: Não prioritário | T39: Não prioritário | U39: Não prioritário | V39: Não prioritário | W39: Não prioritário | X39: Não prioritário | Y39: Não prioritário | Z39: Não prioritário | AA39: Não prioritário | BH39: 1.2 | BI39: 1.2 | BY39: Não prioritário | BZ39: Não prioritário | CA39: Não prioritário | CB39: Não prioritário | CC39: Não prioritário | CD39: Não prioritário | CE39: Não prioritário | CF39: Não prioritário | CG39: Não prioritário | CH39: Não prioritário | CI39: Não prioritário | CJ39: Não prioritário | CK39: Não prioritário | CL39: Não prioritário | CM39: Não prioritário | CN39: Não prioritário | CO39: Não prioritário | CP39: Não prioritário | CQ39: Não prioritário
BH40: 1.3 | BI40: 1.3
BH41: 1.4 | BI41: 1.4
BH42: 1.5 | BI42: 1.5
BH43: 1.6 | BI43: 1.6
BH44: 1.7 | BI44: 1.7
A45: Sim | B45: Não | BH45: 2.1 | BI45: 2.1
A46: Sim | B46: Sim | BH46: 2.2 | BI46: 2.2
B47: Não | BH47: 2.3 | BI47: 2.3
BH48: 2.4 | BI48: 2.4
BH49: 2.5 | BI49: 2.5
BH50: 2.6 | BI50: 2.6
A51: Não se aplica | B51: Não se aplica | BH51: 3.1 | BI51: 3.1
A52: 1.1 - Legislação | B52: PDC 1 e 2 | BH52: 3.2 | BI52: 3.2
A53: 1.2 - Planejamento | BH53: 3.3 | BI53: 3.3
A54: 2.1 - Plano | BH54: 3.4 | BI54: 3.4
A55: 2.2 - Outorga | BH55: 3.5 | BI55: 3.5
A56: 2.3 - Cobrança | BH56: 4.1 | BI56: 4.1
A57: 2.4 - Enquadramento | BH57: 4.2 | BI57: 4.2
A58: 2.6 - Integração | BH58: 5.1 | BI58: 5.1
A59: 2.7 - CORHI | BH59: 5.2 | BI59: 5.2
A60: 3.1 - Efluentes | BH60: 5.3 | BI60: 5.3
A61: 3.2 - Poluição | BH61: 6.1 | BI61: 6.1
A62: 3.3 - Resíduos | BH62: 6.2 | BI62: 6.2
A63: 3.4 - Intervenções | BH63: 6.3 | BI63: 6.3
A64: 4.1 - Erosão | BH64: 7.1 | BI64: 7.1
A65: 4.2 - Conservação | BH65: 7.2 | BI65: 7.2
A66: 4.3 - Mananciais | BH66: 7.3 | BI66: 7.3
A67: 5.1 - Perdas | BH67: 8.1 | BI67: 8.1
A68: 5.2 - Racionalização | BH68: 8.2 | BI68: 8.2
A69: 5.3 - Reuso | BH69: 8.3 | BI69: 8.3
A70: 6.1 - Captação
A71: 6.2 - Regularização
A72: 7.1 - Drenagem
A73: 7.2 - Escassez
A74: 8.1 - Capacitação
A75: 8.2 - Educação
A76: 8.3 - Comunicação

Sheet Explicativo (hidden)
A1: Explicativo | B1: Função
A2: sheet PAPI_20_21
A3: Coluna A | B3: PDCs da Delib. CRH 190/2016 = lista suspensa (Operacional)
A4: Coluna B | B4: subPDCs da Delib. CRH 190/2016 = lista suspensa (Operacional)
A5: Coluna E | B5: formatação condicional para % = % tem que coincidir com o informado pelo CBH na Coluna O (Execução)
A6: Coluna F | B6: categorias de Executores de Empreendimentos Fehidro = lista suspensa (Operacional)
A7: Coluna G | B7: Área de abrangencia = delimitações possível em mapeamento = lista suspensa (Operacional)
A8: Coluna H | B8: Nome da área de abrangencia conforme consta no Empreendimento Fehidro ou TR ou similar (preenchimento livre)
A9: Coluna I | B9: R$ total que consta no PAPI vigente aprovado pelo CBH no RS
A10: Coluna J | B10: R$ total disponibilizado para investimento conforme Deliberação do COFEHIDRO
A11: Coluna K | B11: R$ total efetivamente pago/repassado neste exercício (Coluna L) ao Executor da Ação = tem que coincidir com informações do SINFehidro Quando R$ de K é maior que R$ de I, valor é destacado em vermelho = CBH tem que explicar a extrapolação dos recursos
A12: Coluna L | B12: ano/exercício ao qual se referem os dados informados
A13: Coluna M | B13: categorias de Fontes de recursos para os Executores da Ação = lista suspensa (Operacional)
A14: Coluna N | B14: Nome da Fonte de recursos conforme consta no Empreendimento Fehidro ou TR ou similar = tem que coincidir com informações do SinFEHIDRO
A15: Coluna O | B15: Informações relevantes sobre a execução Física e Financeira da Ação = tem que coincidir com a execução do Empreendimento e informações do SinFEHIDRO
A17: sheet PAPI_22_23
A18: Coluna A | B18: PDCs da Delib. CRH 246/2021 = lista suspensa (Operacional)
A19: Coluna B | B19: subPDCs da Delib. CRH 246/2021 = lista suspensa (Operacional)
A20: Coluna E | B20: formatação condicional para % = % tem que coincidir com o informado pelo CBH na Coluna O (Execução)
A21: Coluna F | B21: categorias de Executores de Empreendimentos Fehidro = lista suspensa (Operacional)
A22: Coluna G | B22: Área de abrangencia = delimitações possível em mapeamento = lista suspensa (Operacional)
A23: Coluna H | B23: Nome da área de abrangencia conforme consta no Empreendimento Fehidro ou TR ou similar (preenchimento livre)
A24: Coluna I | B24: R$ total que consta no PAPI vigente aprovado pelo CBH no RS
A25: Coluna J | B25: R$ total disponibilizado para investimento conforme Deliberação do COFEHIDRO
A26: Coluna K | B26: R$ total efetivamente pago/repassado neste exercício (Coluna L) ao Executor da Ação = tem que coincidir com informações do SINFehidro Quando R$ de K é maior que R$ de I, valor é destacado em vermelho = CBH tem que explicar a extrapolação dos recursos
A27: Coluna L | B27: ano/exercício ao qual se referem os dados informados
A28: Coluna M | B28: categorias de Fontes de recursos para os Executores da Ação = lista suspensa (Operacional)
A29: Coluna N | B29: Nome da Fonte de recursos conforme consta no Empreendimento Fehidro ou TR ou similar = tem que coincidir com informações do SinFEHIDRO
A30: Coluna O | B30: Informações relevantes sobre a execução Física e Financeira da Ação = tem que coincidir com a execução do Empreendimento e informações do SinFEHIDRO
A32: sheet Consolidação | B32: DEVE SER BLOQUEADA PARA ALTERAÇÕES
A34: Coluna A | B34: PDCs da Delib. CRH 190/2016 = lista suspensa (Operacional)
A35: Colunas B C D | B35: Cálculos com os valores de Recurso financeiro Executado 2020 (sheet PAPI_20_21; Coluna K) para cada fonte FEHIDRO e para outras (soma da demais fontes)
A36: Colunas E F G | B36: Cálculos com os valores de Recurso financeiro Executado 2021 (sheet PAPI_20_21; Coluna K) para cada fonte FEHIDRO e para outras (soma da demais fontes)
A37: Coluna H | B37: PDCs da Delib. CRH 246/2021 = lista suspensa (Operacional)
A38: Colunas H I J | B38: Cálculos com os valores de Recurso financeiro Executado 2022 (sheet PAPI_22_23; Coluna K) para cada fonte FEHIDRO e para outras (soma da demais fontes)
A39: Colunas K L M | B39: Cálculos com os valores de Recurso financeiro Executado 2023 (sheet PAPI_22_23; Coluna K) para cada fonte FEHIDRO e para outras (soma da demais fontes)

Sheet de-para 246 190 (hidden)
A1: 246 | B1: 190 | C1: Coluna1 | E1: 246 | F1: 190 | G1: Coluna1 | H1: Coluna12 | J1: 190 | K1: 246 | M1: 190 | N1: 246
A2: 1.1 | B2: 1.6 | E2: 1.1 | F2: 1.6 | J2: 1.1 | K2: 2.5 | M2: 1.1 | N2: 2.5
A3: 1.2 | B3: 1.2 | E3: 1.2 | F3: 1.2 | G3: 1.5 | H3: 1.7 | J3: 1.2 | K3: 1.2 | M3: 1.2 | N3: 1.2
A4: 2.1 | B4: 2.1 | E4: 2.1 | F4: 2.1 | J4: 1.3 | K4: 2.4 | M4: 1.3 | N4: 2.4
A5: 2.2 | B5: 2.2 | E5: 2.2 | F5: 2.2 | J5: 1.4 | K5: 2.5 | M5: 1.4 | N5: 2.5
A6: 2.3 | B6: 2.3 | E6: 2.3 | F6: 2.3 | J6: 1.5 | K6: 6.1 | M6: 1.5 | N6: 1.2
A7: 2.4 | B7: 1.3 | E7: 2.4 | F7: 1.3 | G7: 2.4 | J7: 1.6 | K7: 1.1 | M7: 1.6 | N7: 1.1
A8: 2.4 | B8: 2.4 | E8: 2.5 | F8: 1.1 | G8: 1.4 | H8: 7.1 | J8: 1.7 | K8: 3.2 | M8: 1.7 | N8: 1.2
A9: 2.5 | B9: 1.1 | C9: 1.4 | E9: 2.6 | F9: 2.5 | J9: 2.1 | K9: 2.1 | M9: 2.1 | N9: 2.1
A10: 2.6 | B10: 2.5 | E10: 2.7 | F10: 2.6 | J10: 2.2 | K10: 2.2 | M10: 2.2 | N10: 2.2
A11: 2.7 | B11: 2.6 | E11: 3.1 | F11: 3.1 | J11: 2.3 | K11: 2.3 | M11: 2.3 | N11: 2.3
A12: 3.1 | B12: 3.1 | E12: 3.2 | J12: 2.4 | K12: 2.4 | M12: 2.4 | N12: 2.4
A13: 3.2 | B13: 1.7 | E13: 3.3 | F13: 3.2 | J13: 2.5 | K13: 2.6 | M13: 2.5 | N13: 2.6
A14: 3.3 | B14: 3.2 | E14: 3.4 | F14: 3.5 | J14: 2.6 | K14: 2.7 | M14: 2.6 | N14: 2.7
A15: 3.4 | B15: 3.5 | E15: 4.1 | F15: 3.4 | J15: 3.1 | K15: 3.1 | M15: 3.1 | N15: 3.1
A16: 4.1 | B16: 3.4 | E16: 4.2 | F16: 4.2 | J16: 3.2 | K16: 3.3 | M16: 3.2 | N16: 3.3
A17: 4.2 | B17: 4.2 | E17: 4.3 | F17: 4.1 | J17: 3.3 | K17: 7.1 | M17: 3.4 | N17: 4.1
A18: 4.3 | B18: 4.1 | E18: 5.1 | F18: 5.1 | J18: 3.4 | K18: 4.1 | M18: 3.5 | N18: 3.4
A19: 5.1 | B19: 5.1 | E19: 5.2 | F19: 5.2 | J19: 3.5 | K19: 3.4 | M19: 4.1 | N19: 4.3
A20: 5.2 | B20: 5.2 | E20: 5.3 | F20: 5.3 | J20: 4.1 | K20: 4.3 | M20: 4.2 | N20: 4.2
A21: 5.3 | B21: 5.3 | E21: 6.1 | J21: 4.2 | K21: 4.2 | M21: 5.1 | N21: 5.1
A22: 6.1 | B22: 1.5 | C22: 6.2 | E22: 6.2 | F22: 6.2 | J22: 5.1 | K22: 5.1 | M22: 5.2 | N22: 5.2
A23: 6.2 | B23: 6.1 | C23: 6.3 | E23: 7.1 | F23: 7.2 | J23: 5.2 | K23: 5.2 | M23: 5.3 | N23: 5.3
A24: 7.1 | B24: 3.3 | C24: 7.2 | E24: 7.2 | F24: 7.3 | J24: 5.3 | K24: 5.3 | M24: 6.2 | N24: 6.2
A25: 7.2 | B25: 7.1 | C25: 7.3 | E25: 8.1 | F25: 8.1 | J25: 6.1 | K25: 6.2 | M25: 7.1 | N25: 2.5
A26: 8.1 | B26: 8.1 | E26: 8.2 | F26: 8.2 | J26: 6.2 | K26: 6.1 | M26: 7.2 | N26: 7.1
A27: 8.2 | B27: 8.2 | E27: 8.3 | F27: 8.3 | J27: 6.3 | K27: 6.2 | M27: 7.3 | N27: 7.2
A28: 8.3 | B28: 8.3 | J28: 7.1 | K28: 7.2 | M28: 8.1 | N28: 8.1
J29: 7.2 | K29: 7.1 | M29: 8.2 | N29: 8.2
J30: 7.3 | K30: 7.2 | M30: 8.3 | N30: 8.3
J31: 8.1 | K31: 8.1
J32: 8.2 | K32: 8.2
J33: 8.3 | K33: 8.3
